Ref No,Fund Type,Dept,Cost Centre Description    ,Description    ,Creditor Name    ,GL Code Net Amount,Payment date        
2,Revenue,CCHD,Under 65s PWLD - KD,Residential Homes,.,6770.72, 04-Oct-2011
3,Revenue,CCHD,Supporting People Programme,Grants to Voluntary Bodies,1625 Independent People,3658.32, 10-Oct-2011
4,Revenue,CCHD,Supporting People Programme,Grants to Voluntary Bodies,1625 Independent People,14490.12, 10-Oct-2011
5,Revenue,CCHD,Purchase of Non-Res Care - KH,Private & Voluntary Day Care,3 Trees Community Support Ltd,610.09, 26-Oct-2011
6,Revenue,CCHD,Purchase of Non-Res Care - KD,Private & Voluntary Day Care,3 Trees Community Support Ltd,4908.36, 28-Oct-2011
7,Revenue,CCHD,Supported Living (S28a),Private & Voluntary Home Care,3 Trees Community Support Ltd,6085.56, 19-Oct-2011
8,Revenue,CCHD,Purchase of Non-Res Care - KD,Private & Voluntary Day Care,3 Trees Community Support Ltd,5695.84, 28-Oct-2011
9,Revenue,CCHD,Supported Living - KD,Private & Voluntary Home Care,3 Trees Community Support Ltd,2222.04, 18-Oct-2011
10,Revenue,CCHD,Purchase of Non-Res Care - PS,Private & Voluntary Day Care,3 Trees Community Support Ltd,642.08, 26-Oct-2011
11,Revenue,CCHD,Purchase of Non-Res Care - KD,Private & Voluntary Day Care,3 Trees Community Support Ltd,1043.29, 28-Oct-2011
12,Revenue,CCHD,Supported Living - KD,Private & Voluntary Home Care,3 Trees Community Support Ltd,5627, 18-Oct-2011
13,Revenue,CCHD,Home Care Purch North,Other Small Contracts,3 Trees Community Support Ltd,500.64, 25-Oct-2011
14,Revenue,CCHD,Purchase of Non-Res Care - KD,Private & Voluntary Day Care,3 Trees Community Support Ltd,1986.83, 27-Oct-2011
15,Revenue,CCHD,Purchase of Non-Res Care - KD,Private & Voluntary Day Care,3 Trees Community Support Ltd,6758.35, 28-Oct-2011
16,Revenue,CCHD,Supported Living - KH,Private & Voluntary Home Care,3 Trees Community Support Ltd,9620.25, 19-Oct-2011
17,Revenue,CCHD,Purchase of Non-Res Care - KD,Private & Voluntary Day Care,3 Trees Community Support Ltd,1561.78, 28-Oct-2011
18,Revenue,CCHD,PD Direct Payments North,Grants to Voluntary Bodies,A4E Management Limited,22857.93, 20-Oct-2011
19,Revenue,CCHD,PD Direct Payments North,Grants to Voluntary Bodies,A4E Management Limited,22857.93, 25-Oct-2011
20,Revenue,CCHD,Elderly Purchasing - South,Nursing Homes,Aabletone Nursing Home,1177.52, 04-Oct-2011
21,Revenue,CCHD,Elderly Purchasing - South,Residential Homes,Ablecare Homes,903.4, 04-Oct-2011
22,Revenue,CCHD,Southmead Hospital Purchasing,Residential Homes,Ablecare Homes,1418.08, 04-Oct-2011
23,Revenue,CCHD,Elderly Mental Health,Residential Homes,Ablecare Homes,1389, 04-Oct-2011
24,Revenue,CCHD,Elderly Purchasing - North,Residential Homes,Ablecare Homes,871.04, 04-Oct-2011
25,Revenue,CCHD,Frenchay Hospital Purchasing,Residential Homes,Ablecare Homes,1283.64, 04-Oct-2011
26,Revenue,CCHD,Elderly Purchasing - North,Residential Homes,Ablecare Homes,778.32, 04-Oct-2011
27,Revenue,CCHD,Elderly Purchasing - South,Residential Homes,Ablecare Homes,1572.44, 04-Oct-2011
28,Revenue,CCHD,Elderly Purchasing - North,Residential Homes,Ablecare Homes,1226.72, 04-Oct-2011
29,Revenue,CCHD,Elderly Purchasing - South,Residential Homes,Ablecare Homes,1383.78, 04-Oct-2011
30,Revenue,CCHD,Elderly Purchasing - South,Residential Homes,Ablecare Homes,1102.32, 04-Oct-2011
31,Revenue,CCHD,Frenchay Hospital Purchasing,Residential Homes,Ablecare Homes,1232.16, 04-Oct-2011
32,Revenue,CCHD,Southmead Hospital Purchasing,Residential Homes,Ablecare Homes,1229, 04-Oct-2011
33,Revenue,CCHD,Elderly Mental Health,Residential Homes,Ablecare Homes,1267.32, 04-Oct-2011
34,Revenue,CCHD,Elderly Mental Health,Residential Homes,Ablecare Homes,1180.8, 04-Oct-2011
35,Revenue,CCHD,Elderly Purchasing - South,Residential Homes,Ablecare Homes,1263.6, 04-Oct-2011
36,Revenue,CCHD,Elderly Purchasing - South,Residential Homes,Ablecare Homes,1395.22, 04-Oct-2011
37,Revenue,CCHD,Community Support ACM - North,Preventative Assistance,Action for Blind People,3025.7, 13-Oct-2011
38,Revenue,CCHD,Day Care - North,Private & Voluntary Day Care,Action on Hearing Loss,855.6, 07-Oct-2011
39,Revenue,CCHD,Day Care - North,Private & Voluntary Day Care,Age UK South Gloucestershire,1619.2, 20-Oct-2011
40,Revenue,CCHD,Day Care - North,Private & Voluntary Day Care,Age UK South Gloucestershire,1693.12, 20-Oct-2011
41,Revenue,CCHD,Day Care - South,Private & Voluntary Day Care,Age UK South Gloucestershire,769.6, 20-Oct-2011
42,Revenue,CCHD,Day Care - South,Private & Voluntary Day Care,Age UK South Gloucestershire,541.76, 20-Oct-2011
43,Revenue,CCHD,Day Care - South,Private & Voluntary Day Care,Age UK South Gloucestershire,1711.36, 20-Oct-2011
44,Revenue,CCHD,Home Care Purch North,Other Small Contracts,Agincare UK Limited,799.96, 03-Oct-2011
45,Revenue,CCHD,Home Care Purch North,Other Small Contracts,Agincare UK Limited,799.96, 03-Oct-2011
46,Revenue,CCHD,Home Care Purch North,Other Small Contracts,Agincare UK Limited,799.96, 03-Oct-2011
47,Revenue,CCHD,Home Care Purch North,Other Small Contracts,Agincare UK Limited,799.96, 03-Oct-2011
48,Revenue,CCHD,Home Care Purch North,Other Small Contracts,Agincare UK Limited,799.96, 03-Oct-2011
49,Revenue,CCHD,Home Care Purch North,Other Small Contracts,Agincare UK Limited,799.96, 25-Oct-2011
50,Revenue,CCHD,Home Care Purch North,Other Small Contracts,Agincare UK Limited,799.96, 25-Oct-2011
51,Revenue,CCHD,Home Care Purch North,Other Small Contracts,Agincare UK Limited,799.96, 25-Oct-2011
52,Revenue,CCHD,Home Care Purch North,Other Small Contracts,Agincare UK Limited,799.96, 25-Oct-2011
53,Revenue,CCHD,Home Care Purch North,Other Small Contracts,Agincare UK Limited,799.96, 25-Oct-2011
54,Revenue,CCHD,Contracts & Commissioning Team,Other Small Contracts,Agincare UK Limited,4500, 07-Oct-2011
55,Revenue,CCHD,Contracts & Commissioning Team,Other Small Contracts,Agincare UK Limited,4500, 14-Oct-2011
56,Revenue,CCHD,Contracts & Commissioning Team,Other Small Contracts,Agincare UK Limited,4500, 21-Oct-2011
57,Revenue,CCHD,Contracts & Commissioning Team,Other Small Contracts,Agincare UK Limited,4500, 28-Oct-2011
58,Revenue,CCHD,S117 Placements PCT,Residential Homes,Alexandra House,6697.76, 04-Oct-2011
59,Revenue,CCHD,Contracts & Commissioning Team,Other Small Contracts,Allied Healthcare Group,5000, 07-Oct-2011
60,Revenue,CCHD,Contracts & Commissioning Team,Other Small Contracts,Allied Healthcare Group,5000, 14-Oct-2011
61,Revenue,CCHD,Contracts & Commissioning Team,Other Small Contracts,Allied Healthcare Group,5000, 21-Oct-2011
62,Revenue,CCHD,Contracts & Commissioning Team,Other Small Contracts,Allied Healthcare Group,5000, 28-Oct-2011
63,Revenue,CCHD,Elderly MH non-res purchasing,Private & Voluntary Day Care,Alzheimers Society,605.52, 25-Oct-2011
64,Revenue,CCHD,Elderly MH non-res purchasing,Private & Voluntary Day Care,Alzheimers Society,874.64, 25-Oct-2011
65,Revenue,CCHD,Elderly MH non-res purchasing,Private & Voluntary Day Care,Alzheimers Society,941.92, 25-Oct-2011
66,Revenue,CCHD,Elderly MH non-res purchasing,Private & Voluntary Day Care,Alzheimers Society,874.64, 24-Oct-2011
67,Revenue,CCHD,Elderly MH non-res purchasing,Private & Voluntary Day Care,Alzheimers Society,605.52, 25-Oct-2011
68,Revenue,CCHD,Section 117 Placements,Private & Voluntary Day Care,Alzheimers Society,605.52, 24-Oct-2011
69,Revenue,CCHD,Frenchay Hospital Purchasing,Residential Homes,Anbridge Care Home,832, 04-Oct-2011
70,Revenue,CCHD,Private Sector Housing,Conference Expenses,APP User Group,540, 14-Oct-2011
71,Revenue,CCHD,Under 65s PWLD - KD,Residential Homes,Ark Care Homes Ltd,10342.92, 04-Oct-2011
72,Revenue,CCHD,Bed and Breakfast,Bed & Breakfast,Ashley Guest House Ltd,960, 04-Oct-2011
73,Revenue,CCHD,Bed and Breakfast,Bed & Breakfast,Ashley Guest House Ltd,1176, 21-Oct-2011
74,Revenue,CCHD,Bed and Breakfast,Bed & Breakfast,Ashley Guest House Ltd,1008, 04-Oct-2011
75,Revenue,CCHD,Bed and Breakfast,Bed & Breakfast,Ashley Guest House Ltd,864, 28-Oct-2011
76,Revenue,CCHD,Bed and Breakfast,Bed & Breakfast,Ashley Guest House Ltd,1080, 13-Oct-2011
77,Revenue,CCHD,Bed and Breakfast,Bed & Breakfast,Ashley Guest House Ltd,1152, 14-Oct-2011
78,Revenue,CCHD,S28A - Over 65,Residential Homes,Aspects &  Milestones Trust,3828.08, 04-Oct-2011
79,Revenue,CCHD,Elderly Purchasing - South,Residential Homes,Aspects &  Milestones Trust,1379, 04-Oct-2011
80,Revenue,CCHD,Elderly Mental Health,Residential Homes,Aspects &  Milestones Trust,1229, 04-Oct-2011
81,Revenue,CCHD,Section 117 Placements,Residential Homes,Aspects &  Milestones Trust,1304, 04-Oct-2011
82,Revenue,CCHD,Elderly Mental Health,Nursing Homes,Aspects &  Milestones Trust,797.08, 04-Oct-2011
83,Revenue,CCHD,Section 117 Placements,Nursing Homes,Aspects &  Milestones Trust,1911.96, 04-Oct-2011
84,Revenue,CCHD,Under 65s PWLD - PS,Residential Homes,Aspects &  Milestones Trust,5601.08, 04-Oct-2011
85,Revenue,CCHD,Under 65s PWLD - KD,Nursing Homes,Aspects &  Milestones Trust,2703.44, 04-Oct-2011
86,Revenue,CCHD,Section 117 Placements,Nursing Homes,Aspects &  Milestones Trust,1912, 04-Oct-2011
87,Revenue,CCHD,Elderly Mental Health,Nursing Homes,Aspects &  Milestones Trust,1453, 04-Oct-2011
88,Revenue,CCHD,Elderly PWLD - PS,Residential Homes,Aspects &  Milestones Trust,3304.92, 04-Oct-2011
89,Revenue,CCHD,Elderly PWLD - PS,Residential Homes,Aspects &  Milestones Trust,4295.72, 04-Oct-2011
90,Revenue,CCHD,S28A - Under 65,Nursing Homes,Aspects &  Milestones Trust,5712.32, 04-Oct-2011
91,Revenue,CCHD,S28A - Under 65,Residential Homes,Aspects &  Milestones Trust,5272.24, 04-Oct-2011
92,Revenue,CCHD,Under 65s PWLD - KH,Residential Homes,Aspects &  Milestones Trust,3441.76, 04-Oct-2011
93,Revenue,CCHD,S28A - Under 65,Residential Homes,Aspects &  Milestones Trust,5251.04, 04-Oct-2011
94,Revenue,CCHD,Under 65s PWLD - KD,Residential Homes,Aspects &  Milestones Trust,5638.32, 04-Oct-2011
95,Revenue,CCHD,Under 65s PWLD - KH,Residential Homes,Aspects &  Milestones Trust,3782.04, 04-Oct-2011
96,Revenue,CCHD,S28A - Under 65,Residential Homes,Aspects &  Milestones Trust,7624.84, 04-Oct-2011
97,Revenue,CCHD,MH Purchasing - Younger,Residential Homes,Aspects &  Milestones Trust,1009, 04-Oct-2011
98,Revenue,CCHD,Elderly PWLD - PS,Residential Homes,Aspects &  Milestones Trust,5191.2, 04-Oct-2011
99,Revenue,CCHD,Elderly PWLD - PS,Residential Homes,Aspects &  Milestones Trust,3739.2, 04-Oct-2011
100,Revenue,CCHD,Elderly PWLD - KH,Residential Homes,Aspects &  Milestones Trust,4891.88, 04-Oct-2011
101,Revenue,CCHD,S28A - Under 65,Residential Homes,Aspects &  Milestones Trust,5187.68, 04-Oct-2011
102,Revenue,CCHD,S28A - Under 65,Residential Homes,Aspects &  Milestones Trust,6036, 04-Oct-2011
103,Revenue,CCHD,S28A - Over 65,Residential Homes,Aspects &  Milestones Trust,3543.56, 04-Oct-2011
104,Revenue,CCHD,S28A - Under 65,Nursing Homes,Aspects &  Milestones Trust,6122.48, 04-Oct-2011
105,Revenue,CCHD,Section 117 Placements MH Younger,Residential Homes,Aspects &  Milestones Trust,1304, 04-Oct-2011
106,Revenue,CCHD,Under 65s PWLD - PS,Residential Homes,Aspects &  Milestones Trust,3630.6, 04-Oct-2011
107,Revenue,CCHD,S28A - Under 65,Residential Homes,Aspects &  Milestones Trust,6036, 04-Oct-2011
108,Revenue,CCHD,S28A - Under 65,Residential Homes,Aspects &  Milestones Trust,4787.92, 04-Oct-2011
109,Revenue,CCHD,S28A - Over 65,Residential Homes,Aspects &  Milestones Trust,4892.16, 04-Oct-2011
110,Revenue,CCHD,S28A - Over 65,Residential Homes,Aspects &  Milestones Trust,4149.64, 04-Oct-2011
111,Revenue,CCHD,S28A - Under 65,Residential Homes,Aspects &  Milestones Trust,6036, 04-Oct-2011
112,Revenue,CCHD,S28A - Over 65,Residential Homes,Aspects &  Milestones Trust,4179.08, 04-Oct-2011
113,Revenue,CCHD,S28A - Under 65,Residential Homes,Aspects &  Milestones Trust,6036, 04-Oct-2011
114,Revenue,CCHD,S28A - Over 65,Residential Homes,Aspects &  Milestones Trust,3854.92, 04-Oct-2011
115,Revenue,CCHD,S28A - Under 65,Residential Homes,Aspects &  Milestones Trust,4980, 04-Oct-2011
116,Revenue,CCHD,S28A - Under 65,Residential Homes,Aspects &  Milestones Trust,6528.04, 04-Oct-2011
117,Revenue,CCHD,S28A - Under 65,Residential Homes,Aspects &  Milestones Trust,3992.16, 04-Oct-2011
118,Revenue,CCHD,S28A - Over 65,Residential Homes,Aspects &  Milestones Trust,5737.96, 04-Oct-2011
119,Revenue,CCHD,S28A - Over 65,Residential Homes,Aspects &  Milestones Trust,3351.52, 04-Oct-2011
120,Revenue,CCHD,S28A - Over 65,Residential Homes,Aspects &  Milestones Trust,4691.8, 04-Oct-2011
121,Revenue,CCHD,S28A - Over 65,Residential Homes,Aspects &  Milestones Trust,4837.04, 04-Oct-2011
122,Revenue,CCHD,S28A - Over 65,Residential Homes,Aspects &  Milestones Trust,4556.16, 04-Oct-2011
123,Revenue,CCHD,S28A - Over 65,Residential Homes,Aspects &  Milestones Trust,4440, 04-Oct-2011
124,Revenue,CCHD,S28A - Over 65,Residential Homes,Aspects &  Milestones Trust,4112.28, 04-Oct-2011
125,Revenue,CCHD,S28A - Over 65,Residential Homes,Aspects &  Milestones Trust,3419.64, 04-Oct-2011
126,Revenue,CCHD,S28A - Under 65,Residential Homes,Aspects &  Milestones Trust,7200, 04-Oct-2011
127,Revenue,CCHD,S28A - Under 65,Nursing Homes,Aspects &  Milestones Trust,6203.68, 04-Oct-2011
128,Revenue,CCHD,S28A - Over 65,Residential Homes,Aspects &  Milestones Trust,3445.12, 04-Oct-2011
129,Revenue,CCHD,S28A - Over 65,Residential Homes,Aspects &  Milestones Trust,3207.68, 04-Oct-2011
130,Revenue,CCHD,S28A - Over 65,Residential Homes,Aspects &  Milestones Trust,3263.96, 04-Oct-2011
131,Revenue,CCHD,S28A - Over 65,Residential Homes,Aspects &  Milestones Trust,4652.36, 04-Oct-2011
132,Revenue,CCHD,Elderly Mental Health,Residential Homes,Aspects &  Milestones Trust,845.36, 04-Oct-2011
133,Revenue,CCHD,S28A - Under 65,Residential Homes,Aspects &  Milestones Trust,4723.04, 04-Oct-2011
134,Revenue,CCHD,Elderly PWLD - KD,Residential Homes,Aspects &  Milestones Trust,2722.88, 04-Oct-2011
135,Revenue,CCHD,Elderly PWLD - KH,Residential Homes,Aspects &  Milestones Trust,5344.36, 04-Oct-2011
136,Revenue,CCHD,Under 65s PWLD - KD,Residential Homes,Aspects &  Milestones Trust,5705.36, 04-Oct-2011
137,Revenue,CCHD,Elderly PWLD - KD,Residential Homes,Aspects &  Milestones Trust,4180.6, 04-Oct-2011
138,Revenue,CCHD,Under 65s PWLD - PS,Residential Homes,Aspects &  Milestones Trust,3797.04, 04-Oct-2011
139,Revenue,CCHD,S28A - Under 65,Residential Homes,Aspects &  Milestones Trust,10765.59, 04-Oct-2011
140,Revenue,CCHD,S28A - Under 65,Residential Homes,Aspects &  Milestones Trust,2034.96, 04-Oct-2011
141,Revenue,CCHD,Under 65s PWLD - KD,Residential Homes,Aspects &  Milestones Trust,5687.48, 04-Oct-2011
142,Revenue,CCHD,S28A - Over 65,Residential Homes,Aspects &  Milestones Trust,3294.24, 04-Oct-2011
143,Revenue,CCHD,Section 117 Placements MH Younger,Residential Homes,Aspects &  Milestones Trust,1688, 04-Oct-2011
144,Revenue,CCHD,MH Purchasing - Younger,Residential Homes,Aspects &  Milestones Trust,1009, 04-Oct-2011
145,Revenue,CCHD,S28A - Over 65,Residential Homes,Aspects &  Milestones Trust,3463.2, 04-Oct-2011
146,Revenue,CCHD,S28A - Under 65,Residential Homes,Aspects &  Milestones Trust,3514.96, 04-Oct-2011
147,Revenue,CCHD,S28A - Under 65,Residential Homes,Aspects &  Milestones Trust,4980, 04-Oct-2011
148,Revenue,CCHD,S28A - Under 65,Residential Homes,Aspects &  Milestones Trust,5936.36, 04-Oct-2011
149,Revenue,CCHD,S28A - Over 65,Residential Homes,Aspects &  Milestones Trust,5810.64, 04-Oct-2011
150,Revenue,CCHD,S28A - Over 65,Residential Homes,Aspects &  Milestones Trust,4106.08, 04-Oct-2011
151,Revenue,CCHD,S28A - Over 65,Residential Homes,Aspects &  Milestones Trust,4652.36, 04-Oct-2011
152,Revenue,CCHD,S28A - Over 65,Residential Homes,Aspects &  Milestones Trust,4923.12, 04-Oct-2011
153,Revenue,CCHD,S28A - Under 65,Residential Homes,Aspects &  Milestones Trust,5524.88, 04-Oct-2011
154,Revenue,CCHD,S28A - Under 65,Residential Homes,Aspects &  Milestones Trust,7621.72, 04-Oct-2011
155,Revenue,CCHD,S28A - Over 65,Residential Homes,Aspects &  Milestones Trust,4831.24, 04-Oct-2011
156,Revenue,CCHD,S28A - Under 65,Residential Homes,Aspects &  Milestones Trust,4675.48, 04-Oct-2011
157,Revenue,CCHD,S28A - Over 65,Residential Homes,Aspects &  Milestones Trust,4814.6, 04-Oct-2011
158,Revenue,CCHD,S28A - Over 65,Residential Homes,Aspects &  Milestones Trust,5393.12, 04-Oct-2011
159,Revenue,CCHD,S28A - Under 65,Residential Homes,Aspects &  Milestones Trust,4546.52, 04-Oct-2011
160,Revenue,CCHD,S28A - Over 65,Residential Homes,Aspects &  Milestones Trust,4814.6, 04-Oct-2011
161,Revenue,CCHD,S28A - Over 65,Residential Homes,Aspects &  Milestones Trust,9842.86, 04-Oct-2011
162,Revenue,CCHD,S28A - Over 65,Residential Homes,Aspects &  Milestones Trust,1903.55, 04-Oct-2011
163,Revenue,CCHD,Elderly PWLD - KD,Residential Homes,Aspects &  Milestones Trust,5200, 04-Oct-2011
164,Revenue,CCHD,S28A - Over 65,Residential Homes,Aspects &  Milestones Trust,4837.04, 04-Oct-2011
165,Revenue,CCHD,S28A - Under 65,Residential Homes,Aspects &  Milestones Trust,4667.44, 04-Oct-2011
166,Revenue,CCHD,S28A - Under 65,Residential Homes,Aspects &  Milestones Trust,6036, 04-Oct-2011
167,Revenue,CCHD,S28A - Over 65,Residential Homes,Aspects &  Milestones Trust,5538.72, 04-Oct-2011
168,Revenue,CCHD,S28A - Under 65,Residential Homes,Aspects &  Milestones Trust,3186.12, 04-Oct-2011
169,Revenue,CCHD,S28A - Over 65,Residential Homes,Aspects &  Milestones Trust,3230.96, 04-Oct-2011
170,Revenue,CCHD,S28A - Over 65,Residential Homes,Aspects &  Milestones Trust,3366.4, 04-Oct-2011
171,Revenue,CCHD,S28A - Over 65,Residential Homes,Aspects &  Milestones Trust,3161.2, 04-Oct-2011
172,Revenue,CCHD,Under 65s PWLD - KH,Residential Homes,Aspects &  Milestones Trust,7561.2, 04-Oct-2011
173,Revenue,CCHD,Section 117 Placements,Residential Homes,Aspects &  Milestones Trust,1913.04, 04-Oct-2011
174,Revenue,CCHD,Elderly Mental Health,Nursing Homes,Aspects &  Milestones Trust,1323.08, 04-Oct-2011
175,Revenue,CCHD,Under 65s PWLD - KD,Residential Homes,Aspects &  Milestones Trust,6036, 04-Oct-2011
176,Revenue,CCHD,MH Purchasing - Younger,Nursing Homes,Aspects &  Milestones Trust,908.88, 04-Oct-2011
177,Revenue,CCHD,MH Purchasing - Younger,Nursing Homes,Aspects &  Milestones Trust,1097, 04-Oct-2011
178,Revenue,CCHD,MH Purchasing - Younger,Residential Homes,Aspects &  Milestones Trust,1009, 04-Oct-2011
179,Revenue,CCHD,Under 65s PWLD - PS,Residential Homes,Aspects &  Milestones Trust,3353.52, 04-Oct-2011
180,Revenue,CCHD,Section 117 Placements MH Younger,Nursing Homes,Aspects &  Milestones Trust,1392, 04-Oct-2011
181,Revenue,CCHD,S28A - Over 65,Residential Homes,Aspects &  Milestones Trust,4997.16, 04-Oct-2011
182,Revenue,CCHD,S28A - Under 65,Residential Homes,Aspects &  Milestones Trust,4796.24, 04-Oct-2011
183,Revenue,CCHD,S28A - Over 65,Residential Homes,Aspects &  Milestones Trust,3996.88, 04-Oct-2011
184,Revenue,CCHD,S28A - Over 65,Residential Homes,Aspects &  Milestones Trust,4562.12, 04-Oct-2011
185,Revenue,CCHD,Under 65s PWLD - KH,Residential Homes,Aspects &  Milestones Trust,4115.4, 04-Oct-2011
186,Revenue,CCHD,S28A - Over 65,Residential Homes,Aspects &  Milestones Trust,4037.96, 04-Oct-2011
187,Revenue,CCHD,S28A - Over 65,Residential Homes,Aspects &  Milestones Trust,3748.88, 04-Oct-2011
188,Revenue,CCHD,S28A - Over 65,Residential Homes,Aspects &  Milestones Trust,5810.64, 04-Oct-2011
189,Revenue,CCHD,S28A - Over 65,Residential Homes,Aspects &  Milestones Trust,4641.36, 04-Oct-2011
190,Revenue,CCHD,S28A - Over 65,Residential Homes,Aspects &  Milestones Trust,3917.36, 04-Oct-2011
191,Revenue,CCHD,S28A - Over 65,Residential Homes,Aspects &  Milestones Trust,4343.92, 04-Oct-2011
192,Revenue,CCHD,S28A - Over 65,Residential Homes,Aspects &  Milestones Trust,5080.6, 04-Oct-2011
193,Revenue,CCHD,S28A - Over 65,Residential Homes,Aspects &  Milestones Trust,4638.04, 04-Oct-2011
194,Revenue,CCHD,Elderly Mental Health,Residential Homes,Aspects &  Milestones Trust,1214, 04-Oct-2011
195,Revenue,CCHD,S28A - Over 65,Residential Homes,Aspects &  Milestones Trust,4922.96, 04-Oct-2011
196,Revenue,CCHD,S28A - Under 65,Residential Homes,Aspects &  Milestones Trust,5606.64, 04-Oct-2011
197,Revenue,CCHD,Section 117 Placements,Nursing Homes,Aspects &  Milestones Trust,1912, 04-Oct-2011
198,Revenue,CCHD,Elderly Mental Health,Nursing Homes,Aspects &  Milestones Trust,1425, 04-Oct-2011
199,Revenue,CCHD,Section 117 Placements,Nursing Homes,Aspects &  Milestones Trust,1912, 04-Oct-2011
200,Revenue,CCHD,Section 117 Placements,Residential Homes,Aspects &  Milestones Trust,1304, 04-Oct-2011
201,Revenue,CCHD,Under 65s PWLD - KD,Residential Homes,Aspects & Milestones Trust,8708.64, 04-Oct-2011
202,Revenue,CCHD,Under 65s PWLD - KD,Residential Homes,Aspects & Milestones Trust,10805.44, 04-Oct-2011
203,Revenue,CCHD,Supporting People Programme,Grants to Voluntary Bodies,Aspects and Milestones Trust,5152.32, 04-Oct-2011
204,Revenue,CCHD,Supporting People Programme,Grants to Voluntary Bodies,Aspects and Milestones Trust,5152.32, 04-Oct-2011
205,Revenue,CCHD,Supporting People Programme,Grants to Voluntary Bodies,Aspects and Milestones Trust,5152.32, 04-Oct-2011
206,Revenue,CCHD,Supporting People Programme,Grants to Voluntary Bodies,Aspects and Milestones Trust,5152.32, 04-Oct-2011
207,Revenue,CCHD,Supporting People Programme,Grants to Voluntary Bodies,Aspects and Milestones Trust,5152.32, 04-Oct-2011
208,Revenue,CCHD,Supporting People Programme,Grants to Voluntary Bodies,Aspects and Milestones Trust,1426.32, 04-Oct-2011
209,Revenue,CCHD,Supporting People Programme,Grants to Voluntary Bodies,Aspects and Milestones Trust,1737.24, 04-Oct-2011
210,Revenue,CCHD,Supporting People Programme,Grants to Voluntary Bodies,Aspects and Milestones Trust,2165.04, 04-Oct-2011
211,Revenue,CCHD,Supporting People Programme,Grants to Voluntary Bodies,Aspects and Milestones Trust,2783.52, 04-Oct-2011
212,Revenue,CCHD,Supporting People Programme,Grants to Voluntary Bodies,Aspects and Milestones Trust,2844.96, 04-Oct-2011
213,Revenue,CCHD,Supporting People Programme,Grants to Voluntary Bodies,Aspects and Milestones Trust,3996.4, 04-Oct-2011
214,Revenue,CCHD,Supporting People Programme,Grants to Voluntary Bodies,Aspects and Milestones Trust,5152.32, 04-Oct-2011
215,Revenue,CCHD,Supporting People Programme,Grants to Voluntary Bodies,Aspects and Milestones Trust,5152.32, 04-Oct-2011
216,Revenue,CCHD,Supporting People Programme,Grants to Voluntary Bodies,Aspects and Milestones Trust,5152.32, 04-Oct-2011
217,Revenue,CCHD,Supporting People Programme,Grants to Voluntary Bodies,Aspects and Milestones Trust,5152.32, 04-Oct-2011
218,Revenue,CCHD,Supported Living (S28a),Private & Voluntary Home Care,Aspects and Milestones Trust,4577.9, 21-Oct-2011
219,Revenue,CCHD,Under 65s PWLD - KH,Residential Homes,Autism Specialised Care Homes,5425.76, 04-Oct-2011
220,Revenue,CCHD,Purchase of Non-Res Care - KD,Private & Voluntary Day Care,Avon Autistic Foundation Limited,3290.64, 20-Oct-2011
221,Revenue,CCHD,Purchase of Non-Res Care - KD,Private & Voluntary Day Care,Avon Autistic Foundation Limited,2802.6, 20-Oct-2011
222,Revenue,CCHD,Purchase of Non-Res Care - KD,Private & Voluntary Day Care,Avon Autistic Foundation Limited,3290.64, 17-Oct-2011
223,Revenue,CCHD,Purchase of Non-Res Care - KD,Private & Voluntary Day Care,Avon Autistic Foundation Limited,2242.08, 17-Oct-2011
224,Revenue,CCHD,Day Care - South,Private & Voluntary Day Care,Banff Securities Ltd,557.04, 11-Oct-2011
225,Revenue,CCHD,Better Support for Older People,Other Supplies & Services,Barberry,560, 21-Oct-2011
226,Revenue,CCHD,Frenchay Hospital Purchasing,Residential Homes,Beaufort House,670.32, 04-Oct-2011
227,Revenue,CCHD,Elderly Mental Health,Residential Homes,Beaufort House,1414.6, 04-Oct-2011
228,Revenue,CCHD,Southmead Hospital Purchasing,Residential Homes,Beaufort House,1545, 04-Oct-2011
229,Revenue,CCHD,Frenchay Hospital Purchasing,Residential Homes,Beaufort House,3565.01, 04-Oct-2011
230,Revenue,CCHD,Frenchay Hospital Purchasing,Residential Homes,Beaufort House,1258.76, 04-Oct-2011
231,Revenue,CCHD,Elderly Mental Health,Residential Homes,Beaufort House,1285.84, 04-Oct-2011
232,Revenue,CCHD,Frenchay Hospital Purchasing,Residential Homes,Beaufort House,1263.8, 04-Oct-2011
233,Revenue,CCHD,Elderly Mental Health,Residential Homes,Beaufort House,1288.32, 04-Oct-2011
234,Revenue,CCHD,Elderly Mental Health,Residential Homes,Beaufort House,1307.68, 04-Oct-2011
235,Revenue,CCHD,Elderly Purchasing - North,Residential Homes,Beaufort House,1670.64, 04-Oct-2011
236,Revenue,CCHD,Elderly Mental Health,Residential Homes,Beaufort House,1389, 04-Oct-2011
237,Revenue,CCHD,Elderly Mental Health,Residential Homes,Beaufort House,1328.16, 04-Oct-2011
238,Revenue,CCHD,Elderly Mental Health,Residential Homes,Beaufort House,1032.16, 04-Oct-2011
239,Revenue,CCHD,Elderly Mental Health,Residential Homes,Beaufort House,1654.92, 04-Oct-2011
240,Revenue,CCHD,Swift Dump Code,Residential Homes,Bloomfield Care Centre,838.54, 04-Oct-2011
241,Revenue,CCHD,Southmead Hospital Purchasing,Nursing Homes,Blossom Field,1055.53, 04-Oct-2011
242,Revenue,CCHD,Elderly Purchasing - North,Residential Homes,Blossom Field,4335.02, 04-Oct-2011
243,Revenue,CCHD,Elderly Purchasing - North,Residential Homes,Blossom Field,965.65, 04-Oct-2011
244,Revenue,CCHD,Elderly Purchasing - North,Residential Homes,Blossom Field,526.72, 04-Oct-2011
245,Revenue,CCHD,Elderly Mental Health,Nursing Homes,Blossom Field,1378.68, 04-Oct-2011
246,Revenue,CCHD,South Glos Users in South Glos Homes,Nursing Homes,Blossom Field,838.54, 04-Oct-2011
247,Revenue,CCHD,South Glos Users in South Glos Homes,Nursing Homes,Blossom Field,1024.89, 04-Oct-2011
248,Revenue,CCHD,Training - Adult Services,Training Expenses,Bob Dawson,1102.5, 10-Oct-2011
249,Revenue,CCHD,Frenchay Hospital Purchasing,Nursing Homes,Bradbury House,1350.32, 04-Oct-2011
250,Revenue,CCHD,Home Care Purch South,Other Small Contracts,Bradley House Home Care Services,90.51, 07-Oct-2011
251,Revenue,CCHD,Home Care Purch North,Other Small Contracts,Bradley House Home Care Services,1991.22, 07-Oct-2011
252,Revenue,CCHD,Day Care - South,Private & Voluntary Day Care,Bradley House Home Care Services,51.72, 07-Oct-2011
253,Revenue,CCHD,Day Care - North,Private & Voluntary Day Care,Bradley House Home Care Services,215.5, 07-Oct-2011
254,Revenue,CCHD,Younger MH non-res purchasing,Private & Voluntary Day Care,Bradley House Home Care Services,68.96, 07-Oct-2011
255,Revenue,CCHD,Alexandra Way,"Provisions (Food, etc)",Brake Bros,544.72, 03-Oct-2011
256,Revenue,CCHD,Woodleaze,"Provisions (Food, etc)",Brake Bros,590.06, 06-Oct-2011
257,Revenue,CCHD,Woodleaze,"Provisions (Food, etc)",Brake Bros,557.26, 17-Oct-2011
258,Revenue,CCHD,Woodleaze,"Provisions (Food, etc)",Brake Bros,601.28, 26-Oct-2011
259,Revenue,CCHD,Elderly Purchasing - North,Residential Homes,Bridge House Care Home,1232.6, 04-Oct-2011
260,Revenue,CCHD,Elderly Purchasing - North,Residential Homes,Bridge House Care Home,1029.16, 04-Oct-2011
261,Revenue,CCHD,Supporting People Programme,Grants to Voluntary Bodies,Bristol Care & Repair,9780.82, 10-Oct-2011
262,Revenue,CCHD,TSG Practice Placements,Training Expenses,Bristol City Council,1000, 20-Oct-2011
263,Revenue,CCHD,Supported Living - KD,Private & Voluntary Home Care,Bristol Houses UK Ltd,1269.1, 04-Oct-2011
264,Revenue,CCHD,Supported Living - KD,Private & Voluntary Home Care,Bristol Houses UK Ltd,1029, 04-Oct-2011
265,Revenue,CCHD,Supported Living - KD,Private & Voluntary Home Care,Bristol Houses UK Ltd,1899.36, 04-Oct-2011
266,Revenue,CCHD,Day Care - North,Private & Voluntary Day Care,Bristol Houses UK Ltd,1534.62, 20-Oct-2011
267,Revenue,CCHD,Supported Living - KD,Private & Voluntary Home Care,Bristol Houses UK Ltd,891.8, 04-Oct-2011
268,Revenue,CCHD,Supported Living - KD,Private & Voluntary Home Care,Bristol Houses UK Ltd,885, 04-Oct-2011
269,Revenue,CCHD,Supported Living - KD,Private & Voluntary Home Care,Bristol Houses UK Ltd,988.25, 13-Oct-2011
270,Revenue,CCHD,Day Care - North,Private & Voluntary Day Care,Bristol Houses UK Ltd,2495.33, 20-Oct-2011
271,Revenue,CCHD,Supported Living - KD,Private & Voluntary Home Care,Bristol Houses UK Ltd,590, 17-Oct-2011
272,Revenue,CCHD,Bed and Breakfast,Bed & Breakfast,Bristol Housing & Support Limited,872, 13-Oct-2011
273,Revenue,CCHD,Bed and Breakfast,Bed & Breakfast,Bristol Housing & Support Limited,712, 21-Oct-2011
274,Revenue,CCHD,Bed and Breakfast,Bed & Breakfast,Bristol Housing & Support Limited,672, 24-Oct-2011
275,Revenue,CCHD,Emersons Green Offices,Water Charges,Bristol Wessex Billing Services Limited,784.16, 13-Oct-2011
276,Revenue,CCHD,Downend Day Centre,Water Charges,Bristol Wessex Billing Services Limited,1353.42, 04-Oct-2011
277,Revenue,CCHD,Kerr House,Water Charges,Bristol Wessex Billing Services Limited,5445.61, 12-Oct-2011
278,Revenue,CCHD,Kerr House NRC,Water Charges,Bristol Wessex Billing Services Limited,960.99, 12-Oct-2011
279,Revenue,CCHD,Section 117 Placements,Residential Homes,Brockley Court Care Home,1788, 04-Oct-2011
280,Revenue,CCHD,Elderly Purchasing - North,Residential Homes,Brook Lane Residential Home,886.4, 04-Oct-2011
281,Revenue,CCHD,Frenchay Hospital Purchasing,Nursing Homes,Brunel Care,2549.25, 04-Oct-2011
282,Revenue,CCHD,South Glos Users in South Glos Homes,Nursing Homes,Brunel Care,2779.61, 04-Oct-2011
283,Revenue,CCHD,Southmead Hospital Purchasing,Nursing Homes,Brunel Care,3050.32, 04-Oct-2011
284,Revenue,CCHD,Section 117 Placements,Nursing Homes,Brunel Care,3488, 04-Oct-2011
285,Revenue,CCHD,Southmead Hospital Purchasing,Residential Homes,Brunel Care,2474.24, 04-Oct-2011
286,Revenue,CCHD,Southmead Hospital Purchasing,Residential Homes,Brunel Care,2600.64, 04-Oct-2011
287,Revenue,CCHD,Elderly Purchasing - South,Residential Homes,Brunel Care,8384.44, 04-Oct-2011
288,Revenue,CCHD,Elderly Purchasing - South,Nursing Homes,Brunelcare,8147.6, 14-Oct-2011
289,Revenue,CCHD,Elderly Purchasing - North,Nursing Homes,Brunelcare,1252.27, 14-Oct-2011
290,Revenue,CCHD,Frenchay Hospital Purchasing,Nursing Homes,Brunelcare,2821.05, 14-Oct-2011
291,Revenue,CCHD,Southmead Hospital Purchasing,Nursing Homes,Brunelcare,5472.25, 14-Oct-2011
292,Revenue,CCHD,South Glos Users in South Glos Homes,Nursing Homes,Brunelcare,10093.57, 14-Oct-2011
293,Revenue,CCHD,Elderly Mental Health,Nursing Homes,Brunelcare,13121.69, 14-Oct-2011
294,Revenue,CCHD,Section 117 Placements,Nursing Homes,Brunelcare,6768.97, 14-Oct-2011
295,Revenue,CCHD,Elderly MH non-res purchasing,Private & Voluntary Day Care,Brunelcare,712.4, 31-Oct-2011
296,Revenue,CCHD,Contracts & Commissioning Team,Other Small Contracts,Brunelcare,10500, 07-Oct-2011
297,Revenue,CCHD,Contracts & Commissioning Team,Other Small Contracts,Brunelcare,10500, 14-Oct-2011
298,Revenue,CCHD,Contracts & Commissioning Team,Other Small Contracts,Brunelcare,10500, 21-Oct-2011
299,Revenue,CCHD,Contracts & Commissioning Team,Other Small Contracts,Brunelcare,10500, 28-Oct-2011
300,Revenue,CCHD,Information Systems - Software,Computer Equipment - Purchase,BT Global Services Solutions,759.31, 17-Oct-2011
301,Revenue,CCHD,Woodleaze,Cleaning & Domestic Supplies,Bunzl Cleaning & Hygiene Supplies,656.35, 06-Oct-2011
302,Revenue,CCHD,Purchasing Phys Dis - North,Nursing Homes,Bupa Care Services  Bridge House,5700.16, 04-Oct-2011
303,Revenue,CCHD,South Glos Users in all other LA Homes,Nursing Homes,Bupa Care Services  Bridge House,598.4, 04-Oct-2011
304,Revenue,CCHD,Alexandra Way,Prop.Serv. General Repairs,C B Decorators,1120, 19-Oct-2011
305,Revenue,CCHD,Purchase of Non-Res Care - KD,Private & Voluntary Day Care,Camphill Communities Thornbury Limited,2179.44, 03-Oct-2011
306,Revenue,CCHD,Purchase of Non-Res Care - KD,Private & Voluntary Day Care,Camphill Communities Thornbury Limited,1802.56, 06-Oct-2011
307,Revenue,CCHD,Purchase of Non-Res Care - KD,Private & Voluntary Day Care,Camphill Communities Thornbury Limited,2231.64, 03-Oct-2011
308,Revenue,CCHD,Purchase of Non-Res Care - KD,Private & Voluntary Day Care,Camphill Communities Thornbury Limited,2211.36, 03-Oct-2011
309,Revenue,CCHD,Purchase of Non-Res Care - KD,Private & Voluntary Day Care,Camphill Communities Thornbury Limited,1964.56, 03-Oct-2011
310,Revenue,CCHD,Purchase of Non-Res Care - KD,Private & Voluntary Day Care,Camphill Communities Thornbury Limited,1964.32, 03-Oct-2011
311,Revenue,CCHD,Purchase of Non-Res Care - KD,Private & Voluntary Day Care,Camphill Communities Thornbury Limited,2231.64, 03-Oct-2011
312,Revenue,CCHD,Purchase of Non-Res Care - KD,Private & Voluntary Day Care,Camphill Communities Thornbury Limited,1964.32, 03-Oct-2011
313,Revenue,CCHD,Purchase of Non-Res Care - KD,Private & Voluntary Day Care,Camphill Communities Thornbury Limited,1964.32, 06-Oct-2011
314,Revenue,CCHD,Purchase of Non-Res Care - KD,Private & Voluntary Day Care,Camphill Communities Thornbury Limited,2179.44, 03-Oct-2011
315,Revenue,CCHD,Purchase of Non-Res Care - KD,Private & Voluntary Day Care,Camphill Communities Thornbury Limited,1996.72, 06-Oct-2011
316,Revenue,CCHD,Purchase of Non-Res Care - KD,Private & Voluntary Day Care,Camphill Communities Thornbury Limited,1964.32, 03-Oct-2011
317,Revenue,CCHD,Purchase of Non-Res Care - KD,Private & Voluntary Day Care,Camphill Communities Thornbury Limited,2179.44, 03-Oct-2011
318,Revenue,CCHD,Supported Living - KD,Private & Voluntary Home Care,Camphill Communities Thornbury Limited,1017.22, 13-Oct-2011
319,Revenue,CCHD,Supported Living - KD,Private & Voluntary Home Care,Camphill Communities Thornbury Limited,2231.64, 14-Oct-2011
320,Revenue,CCHD,Supported Living - KD,Private & Voluntary Home Care,Camphill Communities Thornbury Limited,1996.72, 14-Oct-2011
321,Revenue,CCHD,Supported Living - KD,Private & Voluntary Home Care,Camphill Communities Thornbury Limited,2211.36, 14-Oct-2011
322,Revenue,CCHD,Supported Living - KD,Private & Voluntary Home Care,Camphill Communities Thornbury Limited,1964.32, 14-Oct-2011
323,Revenue,CCHD,Supported Living - KD,Private & Voluntary Home Care,Camphill Communities Thornbury Limited,2077.72, 21-Oct-2011
324,Revenue,CCHD,Supported Living - KD,Private & Voluntary Home Care,Camphill Communities Thornbury Limited,1017.22, 21-Oct-2011
325,Revenue,CCHD,Supported Living - KD,Private & Voluntary Home Care,Camphill Communities Thornbury Limited,1964.32, 24-Oct-2011
326,Revenue,CCHD,Supported Living - KD,Private & Voluntary Home Care,Camphill Communities Thornbury Limited,2179.44, 24-Oct-2011
327,Revenue,CCHD,Under 65s PWLD - KD,Residential Homes,Camphill Devon Community,3143.88, 04-Oct-2011
328,Revenue,CCHD,Under 65s PWLD - KD,Residential Homes,Camphill Devon Community,2208.44, 04-Oct-2011
329,Revenue,CCHD,Home Care Purch South,Other Small Contracts,Care 1st Homecare,4375.76, 20-Oct-2011
330,Revenue,CCHD,Home Care Purch North,Other Small Contracts,Care 1st Homecare,5050.62, 20-Oct-2011
331,Revenue,CCHD,Day Care - South,Private & Voluntary Day Care,Care 1st Homecare,405.96, 20-Oct-2011
332,Revenue,CCHD,Day Care - North,Private & Voluntary Day Care,Care 1st Homecare,815.9, 20-Oct-2011
333,Revenue,CCHD,Elderly MH Home Care,Other Small Contracts,Care 1st Homecare,306.46, 20-Oct-2011
334,Revenue,CCHD,Elderly MH non-res purchasing,Private & Voluntary Day Care,Care 1st Homecare,67.66, 20-Oct-2011
335,Revenue,CCHD,PWLD Home Care - Under 65 - PS,Private & Voluntary Home Care,Care 1st Homecare,31.84, 20-Oct-2011
336,Revenue,CCHD,PWLD Home Care - Under 65 - KD,Private & Voluntary Home Care,Care 1st Homecare,15.92, 20-Oct-2011
337,Revenue,CCHD,PWLD Home Care - Under 65 - KH,Private & Voluntary Home Care,Care 1st Homecare,71.64, 20-Oct-2011
338,Revenue,CCHD,Home Care Purch South,Other Small Contracts,Care 1st Homecare,4310.34, 20-Oct-2011
339,Revenue,CCHD,Home Care Purch North,Other Small Contracts,Care 1st Homecare,5599.86, 20-Oct-2011
340,Revenue,CCHD,Day Care - South,Private & Voluntary Day Care,Care 1st Homecare,376.34, 20-Oct-2011
341,Revenue,CCHD,Day Care - North,Private & Voluntary Day Care,Care 1st Homecare,822.86, 20-Oct-2011
342,Revenue,CCHD,Elderly MH Home Care,Other Small Contracts,Care 1st Homecare,250.24, 20-Oct-2011
343,Revenue,CCHD,Elderly MH non-res purchasing,Private & Voluntary Day Care,Care 1st Homecare,54.72, 20-Oct-2011
344,Revenue,CCHD,PWLD Home Care - Under 65 - PS,Private & Voluntary Home Care,Care 1st Homecare,31.84, 20-Oct-2011
345,Revenue,CCHD,PWLD Home Care - Under 65 - KH,Private & Voluntary Home Care,Care 1st Homecare,51.74, 20-Oct-2011
346,Revenue,CCHD,Home Care Purch South,Other Small Contracts,Care 1st Homecare,4429.74, 20-Oct-2011
347,Revenue,CCHD,Home Care Purch North,Other Small Contracts,Care 1st Homecare,5536.18, 20-Oct-2011
348,Revenue,CCHD,Day Care - South,Private & Voluntary Day Care,Care 1st Homecare,372.92, 20-Oct-2011
349,Revenue,CCHD,Day Care - North,Private & Voluntary Day Care,Care 1st Homecare,768.32, 20-Oct-2011
350,Revenue,CCHD,Elderly MH Home Care,Other Small Contracts,Care 1st Homecare,254.72, 20-Oct-2011
351,Revenue,CCHD,Elderly MH non-res purchasing,Private & Voluntary Day Care,Care 1st Homecare,58.14, 20-Oct-2011
352,Revenue,CCHD,PWLD Home Care - Under 65 - PS,Private & Voluntary Home Care,Care 1st Homecare,31.84, 20-Oct-2011
353,Revenue,CCHD,PWLD Home Care - Under 65 - KH,Private & Voluntary Home Care,Care 1st Homecare,167.16, 20-Oct-2011
354,Revenue,CCHD,Home Care Purch South,Other Small Contracts,Care 1st Homecare,4358.1, 20-Oct-2011
355,Revenue,CCHD,Home Care Purch North,Other Small Contracts,Care 1st Homecare,5420.76, 20-Oct-2011
356,Revenue,CCHD,Day Care - South,Private & Voluntary Day Care,Care 1st Homecare,397.92, 20-Oct-2011
357,Revenue,CCHD,Day Care - North,Private & Voluntary Day Care,Care 1st Homecare,520.38, 20-Oct-2011
358,Revenue,CCHD,Elderly MH Home Care,Other Small Contracts,Care 1st Homecare,238.8, 20-Oct-2011
359,Revenue,CCHD,Elderly MH non-res purchasing,Private & Voluntary Day Care,Care 1st Homecare,58.14, 20-Oct-2011
360,Revenue,CCHD,PWLD Home Care - Under 65 - PS,Private & Voluntary Home Care,Care 1st Homecare,31.84, 20-Oct-2011
361,Revenue,CCHD,PWLD Home Care - Under 65 - KH,Private & Voluntary Home Care,Care 1st Homecare,167.16, 20-Oct-2011
362,Revenue,CCHD,Home Care Purch South,Other Small Contracts,Care 1st Homecare,4266.56, 20-Oct-2011
363,Revenue,CCHD,Home Care Purch North,Other Small Contracts,Care 1st Homecare,5353.1, 20-Oct-2011
364,Revenue,CCHD,Day Care - South,Private & Voluntary Day Care,Care 1st Homecare,435.6, 20-Oct-2011
365,Revenue,CCHD,Day Care - North,Private & Voluntary Day Care,Care 1st Homecare,364.04, 20-Oct-2011
366,Revenue,CCHD,Elderly MH Home Care,Other Small Contracts,Care 1st Homecare,191.04, 20-Oct-2011
367,Revenue,CCHD,PWLD Home Care - Under 65 - PS,Private & Voluntary Home Care,Care 1st Homecare,31.84, 20-Oct-2011
368,Revenue,CCHD,PWLD Home Care - Under 65 - KH,Private & Voluntary Home Care,Care 1st Homecare,159.2, 20-Oct-2011
369,Revenue,CCHD,Home Care Purch South,Other Small Contracts,Care 1st Homecare,4927.86, 20-Oct-2011
370,Revenue,CCHD,Home Care Purch North,Other Small Contracts,Care 1st Homecare,3924.28, 20-Oct-2011
371,Revenue,CCHD,Day Care - South,Private & Voluntary Day Care,Care 1st Homecare,469.8, 20-Oct-2011
372,Revenue,CCHD,Day Care - North,Private & Voluntary Day Care,Care 1st Homecare,431.7, 20-Oct-2011
373,Revenue,CCHD,Elderly MH Home Care,Other Small Contracts,Care 1st Homecare,226.86, 20-Oct-2011
374,Revenue,CCHD,Elderly MH non-res purchasing,Private & Voluntary Day Care,Care 1st Homecare,51.3, 20-Oct-2011
375,Revenue,CCHD,PWLD Home Care - Under 65 - PS,Private & Voluntary Home Care,Care 1st Homecare,31.84, 20-Oct-2011
376,Revenue,CCHD,PWLD Home Care - Under 65 - KH,Private & Voluntary Home Care,Care 1st Homecare,127.36, 20-Oct-2011
377,Revenue,CCHD,Supported Living - KD,Private & Voluntary Home Care,Care Horizons Limited,1745.14, 20-Oct-2011
378,Revenue,CCHD,Purchase of Non-Res Care - KD,Private & Voluntary Day Care,Care Horizons Limited,1494.21, 21-Oct-2011
379,Revenue,CCHD,Supported Living - KD,Private & Voluntary Home Care,Care Horizons Limited,5234.74, 13-Oct-2011
380,Revenue,CCHD,Day Care - South,Private & Voluntary Day Care,Care Horizons Limited,704.2, 13-Oct-2011
381,Revenue,CCHD,Supported Living - KD,Private & Voluntary Home Care,Care Horizons Limited,5304.37, 21-Oct-2011
382,Revenue,CCHD,Purchase of Non-Res Care - KD,Private & Voluntary Day Care,Care Horizons Limited,1596.02, 21-Oct-2011
383,Revenue,CCHD,Purchase of Non-Res Care - KD,Private & Voluntary Day Care,Care Horizons Limited,1242.12, 21-Oct-2011
384,Revenue,CCHD,Purchase of Non-Res Care - KD,Private & Voluntary Day Care,Care Horizons Limited,1148.19, 21-Oct-2011
385,Revenue,CCHD,Day Care - North,Private & Voluntary Day Care,Care Horizons Limited,666.07, 31-Oct-2011
386,Revenue,CCHD,Supported Living - KH,Private & Voluntary Home Care,Care Horizons Limited,1815.28, 25-Oct-2011
387,Revenue,CCHD,Contracts & Commissioning Team,Other Small Contracts,Care UK Homecare,16000, 07-Oct-2011
388,Revenue,CCHD,Contracts & Commissioning Team,Other Small Contracts,Care UK Homecare,16000, 14-Oct-2011
389,Revenue,CCHD,Contracts & Commissioning Team,Other Small Contracts,Care UK Homecare,16000, 21-Oct-2011
390,Revenue,CCHD,Contracts & Commissioning Team,Other Small Contracts,Care UK Homecare,16000, 28-Oct-2011
391,Revenue,CCHD,Contracts & Commissioning Team,Other Small Contracts,Carewatch (Bristol),2200, 07-Oct-2011
392,Revenue,CCHD,Contracts & Commissioning Team,Other Small Contracts,Carewatch (Bristol),2200, 14-Oct-2011
393,Revenue,CCHD,Contracts & Commissioning Team,Other Small Contracts,Carewatch (Bristol),2200, 21-Oct-2011
394,Revenue,CCHD,Contracts & Commissioning Team,Other Small Contracts,Carewatch (Bristol),2200, 28-Oct-2011
395,Revenue,CCHD,Purchase of Non-Res Care - KD,Private & Voluntary Day Care,Carewatch (Bristol),1051.49, 18-Oct-2011
396,Revenue,CCHD,Supported Living - KD,Private & Voluntary Home Care,Carewatch (Bristol),688.8, 26-Oct-2011
397,Revenue,CCHD,Home Care Purch South,Other Small Contracts,Cash Friday at Lloyds TSB,209, 18-Oct-2011
398,Revenue,CCHD,Home Care Purch North,Other Small Contracts,Cash Friday at Lloyds TSB,2353.34, 18-Oct-2011
399,Revenue,CCHD,Day Care - South,Private & Voluntary Day Care,Cash Friday at Lloyds TSB,33.44, 18-Oct-2011
400,Revenue,CCHD,Day Care - North,Private & Voluntary Day Care,Cash Friday at Lloyds TSB,66.88, 18-Oct-2011
401,Revenue,CCHD,Home Care Purch South,Other Small Contracts,Cash Friday at Lloyds TSB,204.82, 18-Oct-2011
402,Revenue,CCHD,Home Care Purch North,Other Small Contracts,Cash Friday at Lloyds TSB,2294.82, 18-Oct-2011
403,Revenue,CCHD,Day Care - South,Private & Voluntary Day Care,Cash Friday at Lloyds TSB,33.44, 18-Oct-2011
404,Revenue,CCHD,Day Care - North,Private & Voluntary Day Care,Cash Friday at Lloyds TSB,100.32, 18-Oct-2011
405,Revenue,CCHD,Home Care Purch South,Other Small Contracts,Cash Friday at Lloyds TSB,188.1, 18-Oct-2011
406,Revenue,CCHD,Home Care Purch North,Other Small Contracts,Cash Friday at Lloyds TSB,2227.94, 18-Oct-2011
407,Revenue,CCHD,Day Care - South,Private & Voluntary Day Care,Cash Friday at Lloyds TSB,33.44, 18-Oct-2011
408,Revenue,CCHD,Day Care - North,Private & Voluntary Day Care,Cash Friday at Lloyds TSB,96.14, 18-Oct-2011
409,Revenue,CCHD,Detained,Nursing Homes,Castlebeck Care (Teesdale) Limited,15695.79, 19-Oct-2011
410,Revenue,CCHD,Frenchay Hospital Purchasing,Nursing Homes,Cedar Care Homes Ltd,1051.8, 04-Oct-2011
411,Revenue,CCHD,Frenchay Hospital Purchasing,Residential Homes,Centenary Care Homes Ltd,2765.25, 04-Oct-2011
412,Revenue,CCHD,Elderly Purchasing - South,Residential Homes,Cepen Lodge Care Home,2120, 04-Oct-2011
413,Revenue,CCHD,Elderly Purchasing - South,Residential Homes,Cepen Lodge Care Home,2120, 04-Oct-2011
414,Revenue,CCHD,Frenchay Hospital Purchasing,Residential Homes,Chatsworth House,1389, 04-Oct-2011
415,Revenue,CCHD,Elderly Mental Health,Residential Homes,Chatsworth House,1280.24, 04-Oct-2011
416,Revenue,CCHD,Southmead Hospital Purchasing,Residential Homes,Chatsworth House,1008.6, 04-Oct-2011
417,Revenue,CCHD,S28A - Under 65,Residential Homes,Chescombe Lodge,8360.04, 04-Oct-2011
418,Revenue,CCHD,Under 65s PWLD - PS,Residential Homes,Chosen Court,7040.44, 04-Oct-2011
419,Revenue,CCHD,Under 65s PWLD - KD,Residential Homes,Church House,7668.09, 04-Oct-2011
420,Revenue,CCHD,Under 65s PWLD - KH,Nursing Homes,Churchill House,9504.88, 04-Oct-2011
421,Revenue,CCHD,Under 65s PWLD - PS,Residential Homes,Churchill House,12402.6, 04-Oct-2011
422,Revenue,CCHD,Supported Living - PS,Private & Voluntary Home Care,Cintre Community,514.91, 12-Oct-2011
423,Revenue,CCHD,Purchase of Non-Res Care - KH,Private & Voluntary Day Care,Cintre Community,512.75, 21-Oct-2011
424,Revenue,CCHD,Community Support ACM - South,Preventative Assistance,Cleeve Lodge,955.5, 11-Oct-2011
425,Revenue,CCHD,Elderly Purchasing - North,Residential Homes,Cleeve Lodge,1596.44, 04-Oct-2011
426,Revenue,CCHD,Southmead Hospital Purchasing,Residential Homes,Cleeve Lodge,574.42, 04-Oct-2011
427,Revenue,CCHD,Southmead Hospital Purchasing,Residential Homes,Cleeve Lodge,1065.6, 04-Oct-2011
428,Revenue,CCHD,Southmead Hospital Purchasing,Residential Homes,Cleeve Lodge,1406.2, 04-Oct-2011
429,Revenue,CCHD,Elderly Purchasing - North,Residential Homes,Cleeve Lodge,1639.24, 04-Oct-2011
430,Revenue,CCHD,Elderly Purchasing - North,Residential Homes,Cleeve Lodge,1497.16, 04-Oct-2011
431,Revenue,CCHD,Frenchay Hospital Purchasing,Residential Homes,Cleeve Lodge,1831.76, 04-Oct-2011
432,Revenue,CCHD,Elderly Purchasing - South,Residential Homes,Cleeve Lodge,1290.08, 04-Oct-2011
433,Revenue,CCHD,Elderly Purchasing - North,Residential Homes,Cleeve Lodge,1474.32, 04-Oct-2011
434,Revenue,CCHD,Elderly Purchasing - North,Residential Homes,Cleeve Lodge,1647.6, 04-Oct-2011
435,Revenue,CCHD,Elderly Purchasing - South,Residential Homes,Cleeve Lodge,1439.52, 04-Oct-2011
436,Revenue,CCHD,Elderly Purchasing - South,Residential Homes,Cleeve Lodge,6521.43, 04-Oct-2011
437,Revenue,CCHD,Elderly Purchasing - North,Residential Homes,Cleeve Lodge,1752.2, 04-Oct-2011
438,Revenue,CCHD,Southmead Hospital Purchasing,Residential Homes,Cleeve Lodge,1419.76, 04-Oct-2011
439,Revenue,CCHD,Southmead Hospital Purchasing,Residential Homes,Clifftop Care Home,1175.72, 04-Oct-2011
440,Revenue,CCHD,Information Systems - Software,Software Support & Maintenance,Coldharbour Systems Limited,2742.5, 13-Oct-2011
441,Revenue,CCHD,Frenchay Hospital Purchasing,Residential Homes,Collingwood Residential Home,1035.92, 04-Oct-2011
442,Revenue,CCHD,Elderly Purchasing - South,Residential Homes,Collingwood Residential Home,1461, 04-Oct-2011
443,Revenue,CCHD,Elderly Purchasing - South,Residential Homes,Collingwood Residential Home,1421, 04-Oct-2011
444,Revenue,CCHD,Elderly Purchasing - South,Residential Homes,Collingwood Residential Home,1066.44, 04-Oct-2011
445,Revenue,CCHD,Elderly Purchasing - South,Residential Homes,Collingwood Residential Home,1297.84, 04-Oct-2011
446,Revenue,CCHD,Frenchay Hospital Purchasing,Residential Homes,Collingwood Residential Home,1229, 04-Oct-2011
447,Revenue,CCHD,Frenchay Hospital Purchasing,Residential Homes,Collingwood Residential Home,1214.6, 04-Oct-2011
448,Revenue,CCHD,Elderly Mental Health,Residential Homes,Collingwood Residential Home,1286.88, 04-Oct-2011
449,Revenue,CCHD,Elderly Purchasing - South,Residential Homes,Collingwood Residential Home,1231, 04-Oct-2011
450,Revenue,CCHD,Elderly Purchasing - North,Residential Homes,Collingwood Residential Home,1110, 04-Oct-2011
451,Revenue,CCHD,Elderly Purchasing - South,Residential Homes,Collingwood Residential Home,1176.32, 04-Oct-2011
452,Revenue,CCHD,Elderly Purchasing - South,Residential Homes,Collingwood Residential Home,1363.88, 04-Oct-2011
453,Revenue,CCHD,S28A - Under 65,Residential Homes,Compass Care,9441.64, 04-Oct-2011
454,Revenue,CCHD,Bed and Breakfast,Bed & Breakfast,Connolly & Callaghan Limited,546, 14-Oct-2011
455,Revenue,CCHD,Bed and Breakfast,Bed & Breakfast,Connolly & Callaghan Limited,546, 04-Oct-2011
456,Revenue,CCHD,Bed and Breakfast,Bed & Breakfast,Connolly & Callaghan Limited,476, 04-Oct-2011
457,Revenue,CCHD,Bed and Breakfast,Bed & Breakfast,Connolly & Callaghan Limited,456, 06-Oct-2011
458,Revenue,CCHD,Bed and Breakfast,Bed & Breakfast,Connolly & Callaghan Limited,511, 04-Oct-2011
459,Revenue,CCHD,Bed and Breakfast,Bed & Breakfast,Connolly & Callaghan Limited,651, 04-Oct-2011
460,Revenue,CCHD,Bed and Breakfast,Bed & Breakfast,Connolly & Callaghan Limited,581, 04-Oct-2011
461,Revenue,CCHD,Bed and Breakfast,Bed & Breakfast,Connolly & Callaghan Limited,511, 07-Oct-2011
462,Revenue,CCHD,Bed and Breakfast,Bed & Breakfast,Connolly & Callaghan Limited,546, 07-Oct-2011
463,Revenue,CCHD,Bed and Breakfast,Bed & Breakfast,Connolly & Callaghan Limited,476, 07-Oct-2011
464,Revenue,CCHD,Bed and Breakfast,Bed & Breakfast,Connolly & Callaghan Limited,651, 07-Oct-2011
465,Revenue,CCHD,Bed and Breakfast,Bed & Breakfast,Connolly & Callaghan Limited,581, 07-Oct-2011
466,Revenue,CCHD,Bed and Breakfast,Bed & Breakfast,Connolly & Callaghan Limited,511, 11-Oct-2011
467,Revenue,CCHD,Bed and Breakfast,Bed & Breakfast,Connolly & Callaghan Limited,546, 11-Oct-2011
468,Revenue,CCHD,Bed and Breakfast,Bed & Breakfast,Connolly & Callaghan Limited,476, 11-Oct-2011
469,Revenue,CCHD,Bed and Breakfast,Bed & Breakfast,Connolly & Callaghan Limited,546, 11-Oct-2011
470,Revenue,CCHD,Bed and Breakfast,Bed & Breakfast,Connolly & Callaghan Limited,438, 13-Oct-2011
471,Revenue,CCHD,Bed and Breakfast,Bed & Breakfast,Connolly & Callaghan Limited,651, 11-Oct-2011
472,Revenue,CCHD,Bed and Breakfast,Bed & Breakfast,Connolly & Callaghan Limited,581, 11-Oct-2011
473,Revenue,CCHD,Bed and Breakfast,Bed & Breakfast,Connolly & Callaghan Limited,546, 13-Oct-2011
474,Revenue,CCHD,Bed and Breakfast,Bed & Breakfast,Connolly & Callaghan Limited,476, 13-Oct-2011
475,Revenue,CCHD,Bed and Breakfast,Bed & Breakfast,Connolly & Callaghan Limited,546, 13-Oct-2011
476,Revenue,CCHD,Bed and Breakfast,Bed & Breakfast,Connolly & Callaghan Limited,511, 13-Oct-2011
477,Revenue,CCHD,Bed and Breakfast,Bed & Breakfast,Connolly & Callaghan Limited,651, 13-Oct-2011
478,Revenue,CCHD,Bed and Breakfast,Bed & Breakfast,Connolly & Callaghan Limited,581, 13-Oct-2011
479,Revenue,CCHD,Bed and Breakfast,Bed & Breakfast,Connolly & Callaghan Limited,546, 14-Oct-2011
480,Revenue,CCHD,Bed and Breakfast,Bed & Breakfast,Connolly & Callaghan Limited,476, 14-Oct-2011
481,Revenue,CCHD,Bed and Breakfast,Bed & Breakfast,Connolly & Callaghan Limited,468, 14-Oct-2011
482,Revenue,CCHD,Bed and Breakfast,Bed & Breakfast,Connolly & Callaghan Limited,511, 14-Oct-2011
483,Revenue,CCHD,Bed and Breakfast,Bed & Breakfast,Connolly & Callaghan Limited,581, 14-Oct-2011
484,Revenue,CCHD,Bed and Breakfast,Bed & Breakfast,Connolly & Callaghan Limited,476, 21-Oct-2011
485,Revenue,CCHD,Bed and Breakfast,Bed & Breakfast,Connolly & Callaghan Limited,511, 21-Oct-2011
486,Revenue,CCHD,Bed and Breakfast,Bed & Breakfast,Connolly & Callaghan Limited,441, 21-Oct-2011
487,Revenue,CCHD,Bed and Breakfast,Bed & Breakfast,Connolly & Callaghan Limited,441, 21-Oct-2011
488,Revenue,CCHD,Bed and Breakfast,Bed & Breakfast,Connolly & Callaghan Limited,581, 21-Oct-2011
489,Revenue,CCHD,Under 65s PWLD - KD,Residential Homes,Consensus Support Services Ltd,8938, 19-Oct-2011
490,Revenue,CCHD,Research & Conferences,Consultation Expenses,CPEA Ltd,5582.23, 10-Oct-2011
491,Revenue,CCHD,Detained,Nursing Homes,Craegmoor Tyn y Coed Priory,13573.66, 13-Oct-2011
492,Revenue,CCHD,S28A - Under 65,Residential Homes,Cream Ii Ltd,7725.68, 04-Oct-2011
493,Revenue,CCHD,S28A - Under 65,Residential Homes,Creedy Court,8934.84, 04-Oct-2011
494,Revenue,CCHD,S28A - Over 65,Residential Homes,Creedy Court,7434.12, 04-Oct-2011
495,Revenue,CCHD,Brokerage and Information Service,Grants to Voluntary Bodies,D H I,9738.71, 27-Oct-2011
496,Revenue,CCHD,Under 65s PWLD - PS,Residential Homes,Daneswood,10588.2, 04-Oct-2011
497,Revenue,CCHD,Under 65s PWLD - KD,Residential Homes,Daneswood,8756, 04-Oct-2011
498,Revenue,CCHD,S28a Day Care,Private & Voluntary Day Care,DCF Premier Workshops Trust,1538.86, 20-Oct-2011
499,Revenue,CCHD,Day Care - South,Private & Voluntary Day Care,Deafblind UK,974.48, 13-Oct-2011
500,Revenue,CCHD,Day Care - North,Private & Voluntary Day Care,Deafblind UK,960.96, 17-Oct-2011
501,Revenue,CCHD,Day Care - South,Private & Voluntary Day Care,Deafblind UK,1985, 13-Oct-2011
502,Revenue,CCHD,Day Care - South,Private & Voluntary Day Care,Deafblind UK,1036.92, 13-Oct-2011
503,Revenue,CCHD,Day Care - South,Private & Voluntary Day Care,Dhek Bhal,564.03, 13-Oct-2011
504,Revenue,CCHD,Day Care - South,Private & Voluntary Day Care,Dhek Bhal,981.83, 13-Oct-2011
505,Revenue,CCHD,Day Care - South,Private & Voluntary Day Care,Dhek Bhal,896.14, 28-Oct-2011
506,Revenue,CCHD,Learning Difficulties Development Fund,Printing & Stationery,Digital Print Specialists,3534, 14-Oct-2011
507,Revenue,CCHD,Under 65s PWLD - KH,Residential Homes,Dimensions(Uk) Ltd,4696, 04-Oct-2011
508,Revenue,CCHD,Under 65s PWLD - PS,Residential Homes,Dimensions(Uk) Ltd,1708.92, 04-Oct-2011
509,Revenue,CCHD,Home Care Purch South,Other Small Contracts,DoCare Ltd,1664.7, 14-Oct-2011
510,Revenue,CCHD,Home Care Purch North,Other Small Contracts,DoCare Ltd,3813, 14-Oct-2011
511,Revenue,CCHD,Day Care - South,Private & Voluntary Day Care,DoCare Ltd,279, 14-Oct-2011
512,Revenue,CCHD,Day Care - North,Private & Voluntary Day Care,DoCare Ltd,297.6, 14-Oct-2011
513,Revenue,CCHD,Elderly MH Home Care,Other Small Contracts,DoCare Ltd,97.65, 14-Oct-2011
514,Revenue,CCHD,Elderly MH non-res purchasing,Private & Voluntary Day Care,DoCare Ltd,111.6, 14-Oct-2011
515,Revenue,CCHD,Elderly Purchasing - North,Residential Homes,Drakes Court,2979.56, 04-Oct-2011
516,Revenue,CCHD,Elderly PWLD - PS,Residential Homes,Drakes Court,2527.88, 04-Oct-2011
517,Revenue,CCHD,S28A - Over 65,Residential Homes,Drakes Court,3074.48, 04-Oct-2011
518,Revenue,CCHD,S28A - Over 65,Residential Homes,Drakes Court,3024.76, 04-Oct-2011
519,Revenue,CCHD,S28A - Over 65,Residential Homes,Drakes Court,1985.2, 04-Oct-2011
520,Revenue,CCHD,Elderly PWLD - PS,Residential Homes,Drakes Court,3638.16, 04-Oct-2011
521,Revenue,CCHD,Elderly Purchasing - South,Nursing Homes,Dunkirk Memorial House,1163.84, 04-Oct-2011
522,Revenue,CCHD,MH Purchasing - Younger,Residential Homes,Dunraven House,1791.6, 04-Oct-2011
523,Revenue,CCHD,Bed and Breakfast,Bed & Breakfast,E J Bartlett,546, 06-Oct-2011
524,Revenue,CCHD,Bed and Breakfast,Bed & Breakfast,E J Bartlett,455, 04-Oct-2011
525,Revenue,CCHD,Bed and Breakfast,Bed & Breakfast,E J Bartlett,546, 04-Oct-2011
526,Revenue,CCHD,Bed and Breakfast,Bed & Breakfast,E J Bartlett,546, 04-Oct-2011
527,Revenue,CCHD,Bed and Breakfast,Bed & Breakfast,E J Bartlett,455, 04-Oct-2011
528,Revenue,CCHD,Bed and Breakfast,Bed & Breakfast,E J Bartlett,455, 11-Oct-2011
529,Revenue,CCHD,Bed and Breakfast,Bed & Breakfast,E J Bartlett,546, 11-Oct-2011
530,Revenue,CCHD,Bed and Breakfast,Bed & Breakfast,E J Bartlett,546, 11-Oct-2011
531,Revenue,CCHD,Bed and Breakfast,Bed & Breakfast,E J Bartlett,858, 13-Oct-2011
532,Revenue,CCHD,Bed and Breakfast,Bed & Breakfast,E J Bartlett,455, 14-Oct-2011
533,Revenue,CCHD,Bed and Breakfast,Bed & Breakfast,E J Bartlett,546, 14-Oct-2011
534,Revenue,CCHD,Bed and Breakfast,Bed & Breakfast,E J Bartlett,546, 14-Oct-2011
535,Revenue,CCHD,Bed and Breakfast,Bed & Breakfast,E J Bartlett,546, 14-Oct-2011
536,Revenue,CCHD,Bed and Breakfast,Bed & Breakfast,E J Bartlett,455, 21-Oct-2011
537,Revenue,CCHD,Bed and Breakfast,Bed & Breakfast,E J Bartlett,546, 21-Oct-2011
538,Revenue,CCHD,Bed and Breakfast,Bed & Breakfast,E J Bartlett,546, 21-Oct-2011
539,Revenue,CCHD,Bed and Breakfast,Bed & Breakfast,E J Bartlett,546, 21-Oct-2011
540,Revenue,CCHD,Under 65s PWLD - KH,Residential Homes,East Court,2136.36, 04-Oct-2011
541,Revenue,CCHD,Charlton,Electricity,EDF Energy 1 Limited,1098.32, 21-Oct-2011
542,Revenue,CCHD,Kerr House,Electricity,EDF Energy 1 Limited,837.83, 21-Oct-2011
543,Revenue,CCHD,Wapley Court,Electricity,EDF Energy 1 Limited,650.72, 21-Oct-2011
544,Revenue,CCHD,Woodleaze,Electricity,EDF Energy 1 Limited,959.02, 21-Oct-2011
545,Revenue,CCHD,Alexandra Way,Electricity,EDF Energy 1 Limited,1153.69, 21-Oct-2011
546,Revenue,CCHD,Newton House,Electricity,EDF Energy 1 Limited,943.75, 21-Oct-2011
547,Revenue,CCHD,Section 117 Placements,Residential Homes,Edgecumbe Lodge,1879.56, 04-Oct-2011
548,Revenue,CCHD,Frenchay Hospital Purchasing,Residential Homes,Edgecumbe Lodge,1170, 04-Oct-2011
549,Revenue,CCHD,Elderly Purchasing - South,Residential Homes,Edgecumbe Lodge,1216.68, 04-Oct-2011
550,Revenue,CCHD,Frenchay Hospital Purchasing,Residential Homes,Edgecumbe Lodge,1100.32, 04-Oct-2011
551,Revenue,CCHD,Frenchay Hospital Purchasing,Residential Homes,Edgecumbe Lodge,903.83, 04-Oct-2011
552,Revenue,CCHD,Frenchay Hospital Purchasing,Residential Homes,Edgecumbe Lodge,1062.8, 04-Oct-2011
553,Revenue,CCHD,Elderly Mental Health,Residential Homes,Edgecumbe Lodge,1146.36, 04-Oct-2011
554,Revenue,CCHD,Elderly Mental Health,Residential Homes,Edgecumbe Lodge,1350.6, 04-Oct-2011
555,Revenue,CCHD,Frenchay Hospital Purchasing,Residential Homes,Edgemont House Ltd,1399.95, 04-Oct-2011
556,Revenue,CCHD,Frenchay Hospital Purchasing,Residential Homes,Edgemont House Ltd,1187.84, 04-Oct-2011
557,Revenue,CCHD,Elderly PWLD - PS,Residential Homes,Edgemont House Ltd,1299.16, 04-Oct-2011
558,Revenue,CCHD,Frenchay Hospital Purchasing,Residential Homes,Edgemont House Ltd,1240.12, 04-Oct-2011
559,Revenue,CCHD,Elderly Purchasing - South,Residential Homes,Edgemont House Ltd,1122.4, 04-Oct-2011
560,Revenue,CCHD,Elderly Purchasing - South,Residential Homes,Edgemont House Ltd,1262.6, 04-Oct-2011
561,Revenue,CCHD,Elderly Purchasing - South,Residential Homes,Edgemont House Ltd,967.64, 04-Oct-2011
562,Revenue,CCHD,Elderly Purchasing - South,Nursing Homes,Edgemont View Nursing Home,1405, 04-Oct-2011
563,Revenue,CCHD,Frenchay Hospital Purchasing,Nursing Homes,Edgemont View Nursing Home,1335.8, 04-Oct-2011
564,Revenue,CCHD,Elderly Purchasing - North,Nursing Homes,Edgemont View Nursing Home,1440.84, 04-Oct-2011
565,Revenue,CCHD,Elderly Purchasing - South,Nursing Homes,Edgemont View Nursing Home,1247.8, 04-Oct-2011
566,Revenue,CCHD,Elderly Purchasing - South,Nursing Homes,Edgemont View Nursing Home,1586.2, 04-Oct-2011
567,Revenue,CCHD,Frenchay Hospital Purchasing,Nursing Homes,Edgemont View Nursing Home,636.04, 04-Oct-2011
568,Revenue,CCHD,Frenchay Hospital Purchasing,Nursing Homes,Edgemont View Nursing Home,1253.16, 04-Oct-2011
569,Revenue,CCHD,Under 65s PWLD - KH,Residential Homes,Education & Services for People with Autism,10615.08, 18-Oct-2011
570,Revenue,CCHD,Supporting People Programme,Grants to Voluntary Bodies,Elim Housing Association Ltd,4434.56, 24-Oct-2011
571,Revenue,CCHD,Elderly Purchasing - South,Residential Homes,Elmbridge Residential Home Ltd,1294.4, 04-Oct-2011
572,Revenue,CCHD,Frenchay Hospital Purchasing,Nursing Homes,Elmwood Nursing Home,2162.96, 04-Oct-2011
573,Revenue,CCHD,Younger MH non-res purchasing,Private & Voluntary Day Care,Enham,638.72, 26-Oct-2011
574,Revenue,CCHD,Elderly Mental Health,Residential Homes,Exmouth House,1305.6, 04-Oct-2011
575,Revenue,CCHD,Southmead Hospital Purchasing,Residential Homes,Fairview Court,1661.48, 04-Oct-2011
576,Revenue,CCHD,South Glos Users in South Glos Homes,Nursing Homes,Fairview Court,2655.39, 04-Oct-2011
577,Revenue,CCHD,Elderly Mental Health,Nursing Homes,Fairview Court,983.52, 04-Oct-2011
578,Revenue,CCHD,South Glos Users in South Glos Homes,Nursing Homes,Fairview Court,869.6, 04-Oct-2011
579,Revenue,CCHD,Elderly Mental Health,Residential Homes,Fairview Court,1389, 04-Oct-2011
580,Revenue,CCHD,Frenchay Hospital Purchasing,Residential Homes,Fairview Court,1507.64, 04-Oct-2011
581,Revenue,CCHD,Elderly Mental Health,Residential Homes,Fairview Court,1611.36, 04-Oct-2011
582,Revenue,CCHD,Frenchay Hospital Purchasing,Nursing Homes,Fairview Court,878.32, 04-Oct-2011
583,Revenue,CCHD,Elderly Purchasing - South,Residential Homes,Fairview Court,2093, 04-Oct-2011
584,Revenue,CCHD,Southmead Hospital Purchasing,Nursing Homes,Fairview Court Care Home,969.87, 04-Oct-2011
585,Revenue,CCHD,South Glos Users in South Glos Homes,Nursing Homes,Fairview Court Care Home,2795.14, 04-Oct-2011
586,Revenue,CCHD,Purchasing Phys Dis - North,Nursing Homes,Fairview Court Care Home,1886.4, 04-Oct-2011
587,Revenue,CCHD,Elderly Mental Health,Nursing Homes,Fairview Court Care Home,3099.45, 04-Oct-2011
588,Revenue,CCHD,Section 117 Placements,Nursing Homes,Fairview Court Care Home,2427, 04-Oct-2011
589,Revenue,CCHD,Elderly Purchasing - South,Residential Homes,Fairview House,637.28, 04-Oct-2011
590,Revenue,CCHD,Frenchay Hospital Purchasing,Residential Homes,Fairview House,873.4, 04-Oct-2011
591,Revenue,CCHD,Section 117 Placements,Residential Homes,Fairview House,1840, 04-Oct-2011
592,Revenue,CCHD,Southmead Hospital Purchasing,Residential Homes,Fairview House,2194.65, 04-Oct-2011
593,Revenue,CCHD,South Glos Users in South Glos Homes,Nursing Homes,Fairview House,916.19, 04-Oct-2011
594,Revenue,CCHD,Southmead Hospital Purchasing,Residential Homes,Fairview House,1101.04, 04-Oct-2011
595,Revenue,CCHD,Elderly Mental Health,Residential Homes,Fairview House,543.4, 04-Oct-2011
596,Revenue,CCHD,Elderly Mental Health,Residential Homes,Fairview House,1084.72, 04-Oct-2011
597,Revenue,CCHD,Frenchay Hospital Purchasing,Residential Homes,Fairview House,1229, 04-Oct-2011
598,Revenue,CCHD,Southmead Hospital Purchasing,Residential Homes,Fairview House,588.92, 04-Oct-2011
599,Revenue,CCHD,Elderly Mental Health,Residential Homes,Fairview House,1049.28, 04-Oct-2011
600,Revenue,CCHD,Elderly Mental Health,Residential Homes,Fairview House,1163.88, 04-Oct-2011
601,Revenue,CCHD,Frenchay Hospital Purchasing,Residential Homes,Fairview House,1269.32, 04-Oct-2011
602,Revenue,CCHD,Elderly Mental Health,Residential Homes,Fairview House,1061.72, 04-Oct-2011
603,Revenue,CCHD,Elderly Purchasing - North,Residential Homes,Faith House,892.2, 04-Oct-2011
604,Revenue,CCHD,Frenchay Hospital Purchasing,Residential Homes,Faith House,1284.48, 04-Oct-2011
605,Revenue,CCHD,Elderly Purchasing - North,Residential Homes,Faith House,1904.23, 04-Oct-2011
606,Revenue,CCHD,Elderly Purchasing - North,Residential Homes,Faith House,1110.8, 04-Oct-2011
607,Revenue,CCHD,Under 65s PWLD - KD,Residential Homes,Fernbank,8350.56, 04-Oct-2011
608,Revenue,CCHD,Southmead Hospital Purchasing,Residential Homes,Four Seasons Health Care,1136.2, 04-Oct-2011
609,Revenue,CCHD,Frenchay Hospital Purchasing,Residential Homes,Four Seasons Health Care,907.04, 04-Oct-2011
610,Revenue,CCHD,Southmead Hospital Purchasing,Residential Homes,Four Seasons Health Care,526.72, 04-Oct-2011
611,Revenue,CCHD,Frenchay Hospital Purchasing,Nursing Homes,Four Seasons Health Care,1349, 04-Oct-2011
612,Revenue,CCHD,Elderly Purchasing - South,Nursing Homes,Four Seasons Health Care,835.52, 04-Oct-2011
613,Revenue,CCHD,Southmead Hospital Purchasing,Nursing Homes,Four Seasons Health Care,1349, 04-Oct-2011
614,Revenue,CCHD,Elderly Purchasing - South,Residential Homes,Four Seasons Health Care,4032.89, 04-Oct-2011
615,Revenue,CCHD,Elderly Purchasing - South,Nursing Homes,Four Seasons Health Care,1345.8, 04-Oct-2011
616,Revenue,CCHD,Cash for Change Discharges,Nursing Homes,Four Seasons Health Care,1349, 04-Oct-2011
617,Revenue,CCHD,Elderly Purchasing - South,Nursing Homes,Four Seasons Health Care,1349, 04-Oct-2011
618,Revenue,CCHD,Elderly Purchasing - South,Nursing Homes,Four Seasons Health Care,1245.4, 04-Oct-2011
619,Revenue,CCHD,Southmead Hospital Purchasing,Residential Homes,Four Seasons Health Care,580.48, 04-Oct-2011
620,Revenue,CCHD,Frenchay Hospital Purchasing,Nursing Homes,Four Seasons Health Care,1349, 04-Oct-2011
621,Revenue,CCHD,Elderly Purchasing - South,Nursing Homes,Four Seasons Health Care,1046.64, 04-Oct-2011
622,Revenue,CCHD,Southmead Hospital Purchasing,Nursing Homes,Four Seasons Health Care,1253.28, 04-Oct-2011
623,Revenue,CCHD,Elderly Purchasing - South,Nursing Homes,Four Seasons Health Care,1349, 04-Oct-2011
624,Revenue,CCHD,Elderly Purchasing - South,Nursing Homes,Four Seasons Health Care,1290.4, 04-Oct-2011
625,Revenue,CCHD,Elderly Mental Health,Nursing Homes,Four Seasons Health Care,1678.55, 04-Oct-2011
626,Revenue,CCHD,Elderly Mental Health,Nursing Homes,Four Seasons Health Care,1342.84, 04-Oct-2011
627,Revenue,CCHD,Elderly Purchasing - South,Residential Homes,Four Seasons Health Care,948.64, 04-Oct-2011
628,Revenue,CCHD,Elderly Purchasing - North,Nursing Homes,Four Seasons Health Care,1313, 04-Oct-2011
629,Revenue,CCHD,Frenchay Hospital Purchasing,Nursing Homes,Four Seasons Health Care,1052.2, 04-Oct-2011
630,Revenue,CCHD,Elderly Mental Health,Residential Homes,Four Seasons Health Care,1056.64, 04-Oct-2011
631,Revenue,CCHD,Frenchay Hospital Purchasing,Residential Homes,Four Seasons Health Care,1063.88, 04-Oct-2011
632,Revenue,CCHD,Elderly Purchasing - South,Nursing Homes,Four Seasons Health Care,1349, 04-Oct-2011
633,Revenue,CCHD,Elderly Purchasing - South,Nursing Homes,Four Seasons Health Care,1291.44, 04-Oct-2011
634,Revenue,CCHD,Frenchay Hospital Purchasing,Residential Homes,Four Seasons Health Care,1009.53, 04-Oct-2011
635,Revenue,CCHD,Elderly Mental Health,Nursing Homes,Four Seasons Health Care,1302.2, 04-Oct-2011
636,Revenue,CCHD,Elderly Purchasing - South,Nursing Homes,Four Seasons Health Care,1341.32, 04-Oct-2011
637,Revenue,CCHD,Frenchay Hospital Purchasing,Nursing Homes,Four Seasons Health Care,1297, 04-Oct-2011
638,Revenue,CCHD,Elderly Mental Health,Nursing Homes,Four Seasons Health Care,1199.32, 04-Oct-2011
639,Revenue,CCHD,Southmead Hospital Purchasing,Nursing Homes,Four Seasons Health Care,1007.24, 04-Oct-2011
640,Revenue,CCHD,Elderly Purchasing - North,Nursing Homes,Four Seasons Health Care,1000, 04-Oct-2011
641,Revenue,CCHD,Frenchay Hospital Purchasing,Nursing Homes,Four Seasons Health Care,1517, 04-Oct-2011
642,Revenue,CCHD,Frenchay Hospital Purchasing,Nursing Homes,Four Seasons Health Care,1283.16, 04-Oct-2011
643,Revenue,CCHD,Southmead Hospital Purchasing,Nursing Homes,Four Seasons Health Care,1507.68, 04-Oct-2011
644,Revenue,CCHD,Southmead Hospital Purchasing,Residential Homes,Four Seasons Health Care,1232, 04-Oct-2011
645,Revenue,CCHD,Elderly Mental Health,Nursing Homes,Four Seasons Health Care,1134.44, 04-Oct-2011
646,Revenue,CCHD,Elderly Purchasing - North,Residential Homes,Four Seasons Health Care,1143.08, 04-Oct-2011
647,Revenue,CCHD,Elderly Mental Health,Nursing Homes,Four Seasons Health Care,1342.6, 04-Oct-2011
648,Revenue,CCHD,Elderly Purchasing - South,Nursing Homes,Four Seasons Health Care,1206.96, 04-Oct-2011
649,Revenue,CCHD,Elderly Mental Health,Nursing Homes,Four Seasons Health Care,1313, 04-Oct-2011
650,Revenue,CCHD,Frenchay Hospital Purchasing,Nursing Homes,Four Seasons Health Care,1268.08, 04-Oct-2011
651,Revenue,CCHD,Elderly Purchasing - South,Nursing Homes,Four Seasons Health Care,1349, 04-Oct-2011
652,Revenue,CCHD,Elderly Purchasing - South,Nursing Homes,Four Seasons Health Care,1459.32, 04-Oct-2011
653,Revenue,CCHD,Southmead Hospital Purchasing,Nursing Homes,Four Seasons Health Care,1349, 04-Oct-2011
654,Revenue,CCHD,Elderly Purchasing - South,Nursing Homes,Four Seasons Health Care,1349, 04-Oct-2011
655,Revenue,CCHD,Southmead Hospital Purchasing,Nursing Homes,Four Seasons Health Care,726, 04-Oct-2011
656,Revenue,CCHD,Elderly Mental Health,Nursing Homes,Four Seasons Health Care,1431.72, 04-Oct-2011
657,Revenue,CCHD,Elderly Purchasing - North,Nursing Homes,Four Seasons Health Care,1248.52, 04-Oct-2011
658,Revenue,CCHD,Elderly Purchasing - North,Nursing Homes,Four Seasons Health Care,1103.48, 04-Oct-2011
659,Revenue,CCHD,Southmead Hospital Purchasing,Nursing Homes,Four Seasons Health Care,1336.4, 04-Oct-2011
660,Revenue,CCHD,Elderly Purchasing - North,Nursing Homes,Four Seasons Health Care,683.4, 04-Oct-2011
661,Revenue,CCHD,Frenchay Hospital Purchasing,Nursing Homes,Four Seasons Health Care,1284.56, 04-Oct-2011
662,Revenue,CCHD,Elderly Mental Health,Nursing Homes,Four Seasons Health Care,1517, 04-Oct-2011
663,Revenue,CCHD,Elderly Purchasing - North,Residential Homes,Four Seasons Health Care,729.44, 04-Oct-2011
664,Revenue,CCHD,Elderly Purchasing - North,Nursing Homes,Four Seasons Health Care,719.68, 04-Oct-2011
665,Revenue,CCHD,South Glos Users in South Glos Homes,Nursing Homes,Four Seasons Health Care,2655.39, 04-Oct-2011
666,Revenue,CCHD,Elderly Mental Health,Nursing Homes,Four Seasons Health Care,1416, 04-Oct-2011
667,Revenue,CCHD,Frenchay Hospital Purchasing,Nursing Homes,Four Seasons Health Care,1323.8, 04-Oct-2011
668,Revenue,CCHD,Elderly Purchasing - North,Nursing Homes,Four Seasons Health Care,1517, 04-Oct-2011
669,Revenue,CCHD,Elderly Purchasing - North,Nursing Homes,Four Seasons Health Care,1349, 04-Oct-2011
670,Revenue,CCHD,Elderly Purchasing - South,Residential Homes,Four Seasons Health Care,1229, 04-Oct-2011
671,Revenue,CCHD,Elderly Purchasing - North,Nursing Homes,Four Seasons Health Care,8121.76, 04-Oct-2011
672,Revenue,CCHD,Elderly Purchasing - North,Nursing Homes,Four Seasons Health Care,1412.48, 04-Oct-2011
673,Revenue,CCHD,Southmead Hospital Purchasing,Residential Homes,Four Seasons Health Care,729.36, 04-Oct-2011
674,Revenue,CCHD,Elderly Mental Health,Nursing Homes,Four Seasons Health Care,1402.52, 04-Oct-2011
675,Revenue,CCHD,Southmead Hospital Purchasing,Nursing Homes,Four Seasons Health Care,1981.09, 04-Oct-2011
676,Revenue,CCHD,Southmead Hospital Purchasing,Nursing Homes,Four Seasons Health Care,1422.32, 04-Oct-2011
677,Revenue,CCHD,South Glos Users in South Glos Homes,Nursing Homes,Four Seasons Health Care,745.37, 04-Oct-2011
678,Revenue,CCHD,Frenchay Hospital Purchasing,Nursing Homes,Four Seasons Health Care,1199.6, 04-Oct-2011
679,Revenue,CCHD,Southmead Hospital Purchasing,Nursing Homes,Four Seasons Health Care,3034, 04-Oct-2011
680,Revenue,CCHD,Southmead Hospital Purchasing,Nursing Homes,Four Seasons Health Care,1517, 04-Oct-2011
681,Revenue,CCHD,Elderly Purchasing - North,Nursing Homes,Four Seasons Health Care,1458.32, 04-Oct-2011
682,Revenue,CCHD,Frenchay Hospital Purchasing,Nursing Homes,Four Seasons Health Care,1161.72, 04-Oct-2011
683,Revenue,CCHD,Elderly Mental Health,Residential Homes,Four Seasons Health Care,1202.24, 04-Oct-2011
684,Revenue,CCHD,Southmead Hospital Purchasing,Nursing Homes,Four Seasons Health Care,1349, 04-Oct-2011
685,Revenue,CCHD,Elderly Mental Health,Nursing Homes,Four Seasons Health Care,1349, 04-Oct-2011
686,Revenue,CCHD,Elderly Mental Health,Residential Homes,Four Seasons Health Care,1344.16, 04-Oct-2011
687,Revenue,CCHD,Elderly Purchasing - North,Nursing Homes,Four Seasons Health Care,1341.32, 04-Oct-2011
688,Revenue,CCHD,Elderly Mental Health,Nursing Homes,Four Seasons Health Care,1034.84, 04-Oct-2011
689,Revenue,CCHD,Frenchay Hospital Purchasing,Nursing Homes,Four Seasons Health Care,1349, 04-Oct-2011
690,Revenue,CCHD,Elderly Mental Health,Residential Homes,Four Seasons Health Care,1139.16, 04-Oct-2011
691,Revenue,CCHD,Southmead Hospital Purchasing,Nursing Homes,Four Seasons Health Care,833.4, 04-Oct-2011
692,Revenue,CCHD,South Glos Users in South Glos Homes,Nursing Homes,Four Seasons Health Care,1024.89, 04-Oct-2011
693,Revenue,CCHD,South Glos Users in South Glos Homes,Nursing Homes,Four Seasons Health Care,1614.97, 04-Oct-2011
694,Revenue,CCHD,Frenchay Hospital Purchasing,Nursing Homes,Four Seasons Health Care,1349, 04-Oct-2011
695,Revenue,CCHD,Frenchay Hospital Purchasing,Nursing Homes,Four Seasons Health Care,1304.44, 04-Oct-2011
696,Revenue,CCHD,Elderly Purchasing - South,Nursing Homes,Four Seasons Health Care,1251.72, 04-Oct-2011
697,Revenue,CCHD,Elderly Mental Health,Nursing Homes,Four Seasons Health Care,1224.72, 04-Oct-2011
698,Revenue,CCHD,Frenchay Hospital Purchasing,Nursing Homes,Four Seasons Health Care,1277, 04-Oct-2011
699,Revenue,CCHD,Frenchay Hospital Purchasing,Nursing Homes,Four Seasons Health Care,803.08, 04-Oct-2011
700,Revenue,CCHD,Frenchay Hospital Purchasing,Nursing Homes,Four Seasons Health Care,1349, 04-Oct-2011
701,Revenue,CCHD,Frenchay Hospital Purchasing,Nursing Homes,Four Seasons Health Care,1137, 04-Oct-2011
702,Revenue,CCHD,Elderly Purchasing - North,Nursing Homes,Four Seasons Health Care,939.82, 04-Oct-2011
703,Revenue,CCHD,Elderly Purchasing - North,Nursing Homes,Four Seasons Health Care,690.38, 04-Oct-2011
704,Revenue,CCHD,Frenchay Hospital Purchasing,Nursing Homes,Four Seasons Health Care,1349, 04-Oct-2011
705,Revenue,CCHD,Frenchay Hospital Purchasing,Nursing Homes,Four Seasons Health Care,1349, 04-Oct-2011
706,Revenue,CCHD,Frenchay Hospital Purchasing,Nursing Homes,Four Seasons Health Care,1349, 04-Oct-2011
707,Revenue,CCHD,Frenchay Hospital Purchasing,Nursing Homes,Four Seasons Health Care,1365, 04-Oct-2011
708,Revenue,CCHD,Elderly Purchasing - South,Nursing Homes,Four Seasons Health Care,1057.92, 04-Oct-2011
709,Revenue,CCHD,Southmead Hospital Purchasing,Nursing Homes,Four Seasons Health Care,1349, 04-Oct-2011
710,Revenue,CCHD,Elderly Purchasing - North,Nursing Homes,Four Seasons Health Care,857.96, 04-Oct-2011
711,Revenue,CCHD,Southmead Hospital Purchasing,Residential Homes,Four Seasons Health Care,1103.44, 04-Oct-2011
712,Revenue,CCHD,Southmead Hospital Purchasing,Nursing Homes,Four Seasons Health Care,7034.06, 04-Oct-2011
713,Revenue,CCHD,Southmead Hospital Purchasing,Nursing Homes,Four Seasons Health Care,1349, 04-Oct-2011
714,Revenue,CCHD,South Glos Users in South Glos Homes,Nursing Homes,Four Seasons Health Care,1133.59, 04-Oct-2011
715,Revenue,CCHD,Purchasing Phys Dis - North,Nursing Homes,Four Seasons Health Care,2264.4, 04-Oct-2011
716,Revenue,CCHD,Purchasing Phys Dis - North,Nursing Homes,Four Seasons Health Care,1349, 04-Oct-2011
717,Revenue,CCHD,Southmead Hospital Purchasing,Nursing Homes,Four Seasons Health Care,1317.56, 04-Oct-2011
718,Revenue,CCHD,Purchasing Phys Dis - North,Nursing Homes,Four Seasons Health Care,1355.08, 04-Oct-2011
719,Revenue,CCHD,Elderly Purchasing - South,Nursing Homes,Four Seasons Health Care,1225.28, 04-Oct-2011
720,Revenue,CCHD,Southmead Hospital Purchasing,Nursing Homes,Four Seasons Health Care,1275.28, 04-Oct-2011
721,Revenue,CCHD,Elderly Mental Health,Residential Homes,Four Seasons Health Care,1375.96, 04-Oct-2011
722,Revenue,CCHD,Elderly Mental Health,Residential Homes,Four Seasons Health Care,1280.12, 04-Oct-2011
723,Revenue,CCHD,Frenchay Hospital Purchasing,Residential Homes,Four Seasons Health Care,1009.53, 04-Oct-2011
724,Revenue,CCHD,Southmead Hospital Purchasing,Residential Homes,Four Seasons Health Care,1151.56, 04-Oct-2011
725,Revenue,CCHD,Frenchay Hospital Purchasing,Nursing Homes,Four Seasons Health Care,1011.75, 04-Oct-2011
726,Revenue,CCHD,Elderly PWLD - PS,Residential Homes,Four Seasons Health Care,1229, 04-Oct-2011
727,Revenue,CCHD,Frenchay Hospital Purchasing,Nursing Homes,Four Seasons Health Care,1349, 04-Oct-2011
728,Revenue,CCHD,Elderly Purchasing - South,Nursing Homes,Four Seasons Health Care,1265.52, 04-Oct-2011
729,Revenue,CCHD,Elderly Purchasing - South,Nursing Homes,Four Seasons Health Care,1335.64, 04-Oct-2011
730,Revenue,CCHD,Southmead Hospital Purchasing,Nursing Homes,Four Seasons Health Care,2553.47, 04-Oct-2011
731,Revenue,CCHD,Southmead Hospital Purchasing,Nursing Homes,Four Seasons Health Care,1349, 04-Oct-2011
732,Revenue,CCHD,Elderly Purchasing - South,Residential Homes,Four Seasons Health Care,859.68, 04-Oct-2011
733,Revenue,CCHD,Frenchay Hospital Purchasing,Nursing Homes,Four Seasons Health Care,1341.12, 04-Oct-2011
734,Revenue,CCHD,Southmead Hospital Purchasing,Residential Homes,Four Seasons Health Care,1367.48, 04-Oct-2011
735,Revenue,CCHD,Frenchay Hospital Purchasing,Nursing Homes,Four Seasons Health Care,774.32, 04-Oct-2011
736,Revenue,CCHD,Elderly Purchasing - South,Residential Homes,Four Seasons Health Care,1102.04, 04-Oct-2011
737,Revenue,CCHD,Elderly Purchasing - South,Nursing Homes,Four Seasons Health Care,960.32, 04-Oct-2011
738,Revenue,CCHD,Frenchay Hospital Purchasing,Residential Homes,Four Seasons Health Care,1227.8, 04-Oct-2011
739,Revenue,CCHD,Frenchay Hospital Purchasing,Residential Homes,Four Seasons Health Care,1195.84, 04-Oct-2011
740,Revenue,CCHD,Section 117 Placements,Residential Homes,Four Seasons Health Care,1688, 04-Oct-2011
741,Revenue,CCHD,Frenchay Hospital Purchasing,Residential Homes,Four Seasons Health Care,1092.96, 04-Oct-2011
742,Revenue,CCHD,Elderly Mental Health,Residential Homes,Four Seasons Health Care,861.4, 04-Oct-2011
743,Revenue,CCHD,Frenchay Hospital Purchasing,Residential Homes,Four Seasons Health Care,1237.4, 04-Oct-2011
744,Revenue,CCHD,Elderly Purchasing - South,Residential Homes,Four Seasons Health Care,562.76, 04-Oct-2011
745,Revenue,CCHD,Frenchay Hospital Purchasing,Nursing Homes,Four Seasons Health Care,1361, 04-Oct-2011
746,Revenue,CCHD,Frenchay Hospital Purchasing,Nursing Homes,Four Seasons Health Care,1345.8, 04-Oct-2011
747,Revenue,CCHD,Elderly Mental Health,Residential Homes,Four Seasons Health Care,954.64, 04-Oct-2011
748,Revenue,CCHD,Southmead Hospital Purchasing,Nursing Homes,Four Seasons Health Care,739, 04-Oct-2011
749,Revenue,CCHD,Elderly Purchasing - North,Nursing Homes,Four Seasons Health Care,1285.16, 04-Oct-2011
750,Revenue,CCHD,Frenchay Hospital Purchasing,Nursing Homes,Four Seasons Health Care,774.32, 04-Oct-2011
751,Revenue,CCHD,Elderly Purchasing - South,Residential Homes,Four Seasons Health Care,1162.04, 04-Oct-2011
752,Revenue,CCHD,Freeways,Residential Homes,Freeways Trust Limited,53352.86, 18-Oct-2011
753,Revenue,CCHD,Purchase of Non-Res Care - KD,Private & Voluntary Day Care,Freeways Trust Limited,620.88, 21-Oct-2011
754,Revenue,CCHD,Supported Living - PS,Private & Voluntary Home Care,Freeways Trust Limited,1600.5, 04-Oct-2011
755,Revenue,CCHD,Supported Living - PS,Private & Voluntary Home Care,Freeways Trust Limited,1853.6, 18-Oct-2011
756,Revenue,CCHD,Purchase of Non-Res Care - KD,Private & Voluntary Day Care,Freeways Trust Limited,620.88, 21-Oct-2011
757,Revenue,CCHD,Under 65s PWLD - KD,Residential Homes,Freeways Trust Ltd,2757, 04-Oct-2011
758,Revenue,CCHD,S28A - Under 65,Residential Homes,Freeways Trust Ltd,2838.8, 04-Oct-2011
759,Revenue,CCHD,Under 65s PWLD - KD,Residential Homes,Freeways Trust Ltd,2206.88, 04-Oct-2011
760,Revenue,CCHD,Under 65s PWLD - KD,Residential Homes,Freeways Trust Ltd,2217.28, 04-Oct-2011
761,Revenue,CCHD,Under 65s PWLD - KD,Residential Homes,Freeways Trust Ltd,2633.48, 04-Oct-2011
762,Revenue,CCHD,Under 65s PWLD - KH,Residential Homes,Freeways Trust Ltd,3216.52, 04-Oct-2011
763,Revenue,CCHD,Elderly PWLD - KD,Residential Homes,Freeways Trust Ltd,2192.48, 04-Oct-2011
764,Revenue,CCHD,Under 65s PWLD - KH,Residential Homes,Freeways Trust Ltd,2335.12, 04-Oct-2011
765,Revenue,CCHD,Under 65s PWLD - KH,Residential Homes,Freeways Trust Ltd,2633.48, 04-Oct-2011
766,Revenue,CCHD,Section 117 Placements MH Younger,Residential Homes,Freeways Trust Ltd,3238, 04-Oct-2011
767,Revenue,CCHD,Frenchay Hospital Purchasing,Nursing Homes,Frenchay Park Nursing Home,1198, 04-Oct-2011
768,Revenue,CCHD,Woodleaze,Prop.Serv. General Repairs,Geoff Lewis Flooring Limited,2100, 19-Oct-2011
769,Revenue,CCHD,Woodleaze,Prop.Serv. General Repairs,Geoff Lewis Flooring Limited,2400, 21-Oct-2011
770,Revenue,CCHD,Woodleaze,Prop.Serv. General Repairs,Geoff Lewis Flooring Limited,2400, 28-Oct-2011
771,Revenue,CCHD,Training - Adult Services,Training Expenses,Gizware Systems Limited,500, 20-Oct-2011
772,Revenue,CCHD,Under 65s PWLD - PS,Residential Homes,Glasallt Fawr,8884.4, 04-Oct-2011
773,Revenue,CCHD,Elderly Purchasing - North,Nursing Homes,Glebe House Nursing Home,1366.64, 04-Oct-2011
774,Revenue,CCHD,Elderly Purchasing - South,Residential Homes,Glebe House Nursing Home,2400, 04-Oct-2011
775,Revenue,CCHD,Elderly Purchasing - South,Residential Homes,Glebe House Nursing Home,1754.8, 04-Oct-2011
776,Revenue,CCHD,Elderly Purchasing - South,Nursing Homes,Glebe House Nursing Home,2365.2, 04-Oct-2011
777,Revenue,CCHD,Elderly Purchasing - North,Nursing Homes,Glebe House Nursing Home,1285, 04-Oct-2011
778,Revenue,CCHD,Elderly Purchasing - North,Nursing Homes,Glebe House Nursing Home,1285, 04-Oct-2011
779,Revenue,CCHD,Southmead Hospital Purchasing,Nursing Homes,Glebe House Nursing Home,1644, 04-Oct-2011
780,Revenue,CCHD,Elderly Purchasing - North,Nursing Homes,Glebe House Nursing Home,769.4, 04-Oct-2011
781,Revenue,CCHD,Purchasing Phys Dis - South,Nursing Homes,Glenside Centre For Brain Injury,6955.52, 04-Oct-2011
782,Revenue,CCHD,Kingswood District Office,Office Supplies & Equipment,Glug Glug Glug,540, 21-Oct-2011
783,Revenue,CCHD,Under 65s PWLD - KH,Residential Homes,Gordena Care Home,2040.52, 04-Oct-2011
784,Revenue,CCHD,Elderly PWLD - KH,Residential Homes,Gordena Care Home,4624.36, 04-Oct-2011
785,Revenue,CCHD,Elderly PWLD - KH,Residential Homes,Gordena Care Home,2866.12, 04-Oct-2011
786,Revenue,CCHD,Under 65s PWLD - KH,Residential Homes,Gordena Care Home,2036.68, 04-Oct-2011
787,Revenue,CCHD,Elderly Purchasing - North,Residential Homes,Greensleeves,1291.92, 04-Oct-2011
788,Revenue,CCHD,Under 65s PWLD - KD,Residential Homes,Greyhound Care Home,3557.96, 04-Oct-2011
789,Revenue,CCHD,Elderly Purchasing - South,Residential Homes,Gwendoline House,1465, 04-Oct-2011
790,Revenue,CCHD,Elderly Purchasing - South,Residential Homes,Gwendoline House,1146.28, 04-Oct-2011
791,Revenue,CCHD,Elderly Purchasing - South,Residential Homes,Gwendoline House,1202.32, 04-Oct-2011
792,Revenue,CCHD,Elderly Mental Health,Residential Homes,Gwendoline House,1219.6, 04-Oct-2011
793,Revenue,CCHD,Elderly Purchasing - South,Residential Homes,Gwendoline House,1413.96, 04-Oct-2011
794,Revenue,CCHD,Elderly Purchasing - South,Residential Homes,Gwendoline House,1111.56, 04-Oct-2011
795,Revenue,CCHD,Elderly Purchasing - South,Residential Homes,Gwendoline House,987.72, 04-Oct-2011
796,Revenue,CCHD,Elderly Purchasing - South,Residential Homes,Harefield Hall,1471.92, 04-Oct-2011
797,Revenue,CCHD,Elderly Purchasing - South,Residential Homes,Harefield Hall,1256.88, 04-Oct-2011
798,Revenue,CCHD,Elderly Mental Health,Residential Homes,Harefield Hall,1109.4, 04-Oct-2011
799,Revenue,CCHD,Supported Living - KH,Private & Voluntary Home Care,HFT,3660.6, 21-Oct-2011
800,Revenue,CCHD,Supported Living - KH,Private & Voluntary Home Care,HFT,3660.6, 24-Oct-2011
801,Revenue,CCHD,Under 65s PWLD - KD,Residential Homes,Holmleigh Care Homes Ltd,3908.68, 04-Oct-2011
802,Revenue,CCHD,Under 65s PWLD - KH,Residential Homes,Holmleigh Care Homes Ltd,4909.68, 04-Oct-2011
803,Revenue,CCHD,Under 65s PWLD - KD,Residential Homes,Home Farm Trust Ltd  5-6 Brook Office Pa,2749.36, 04-Oct-2011
804,Revenue,CCHD,Under 65s PWLD - KD,Residential Homes,Home Farm Trust Ltd  5-6 Brook Office Pa,2209.88, 04-Oct-2011
805,Revenue,CCHD,Under 65s PWLD - PS,Residential Homes,Home Farm Trust Ltd  5-6 Brook Office Pa,2398.8, 04-Oct-2011
806,Revenue,CCHD,Under 65s PWLD - PS,Residential Homes,Home Farm Trust Ltd  5-6 Brook Office Pa,3098.8, 04-Oct-2011
807,Revenue,CCHD,Under 65s PWLD - KD,Residential Homes,Home Farm Trust Ltd  5-6 Brook Office Pa,3319.88, 04-Oct-2011
808,Revenue,CCHD,Under 65s PWLD - PS,Residential Homes,Home Farm Trust Ltd  5-6 Brook Office Pa,4428.64, 04-Oct-2011
809,Revenue,CCHD,Under 65s PWLD - KD,Residential Homes,Home From Home Care Ltd,8770.4, 04-Oct-2011
810,Revenue,CCHD,Elderly Purchasing - North,Nursing Homes,Horfield Care Limited,5084.27, 14-Oct-2011
811,Revenue,CCHD,Frenchay Hospital Purchasing,Nursing Homes,Horfield Care Limited,5957.71, 14-Oct-2011
812,Revenue,CCHD,Southmead Hospital Purchasing,Nursing Homes,Horfield Care Limited,2035.23, 14-Oct-2011
813,Revenue,CCHD,Supporting People Programme,Grants to Voluntary Bodies,Housing 21,828, 06-Oct-2011
814,Revenue,CCHD,Home Care Purch North,Private & Voluntary Home Care,Housing 21,35220.9, 10-Oct-2011
815,Revenue,CCHD,Elderly Purchasing - South,Residential Homes,Jah-Jireh Charity Homes,1241, 04-Oct-2011
816,Revenue,CCHD,Tenancy Start Up Scheme,Other Supplies & Services,Individual,572.06, 25-Oct-2011
817,Revenue,CCHD,Tenancy Start Up Scheme,Other Supplies & Services,K A Properties t/a Martin and Co,990, 14-Oct-2011
818,Revenue,CCHD,Yate District Office,Printing & Stationery,K N Office Supplies,1477.84, 06-Oct-2011
819,Revenue,CCHD,Under 65s PWLD - KD,Residential Homes,Kelly House,3482.2, 04-Oct-2011
820,Revenue,CCHD,S28A - Under 65,Residential Homes,Kelly House,3366.04, 04-Oct-2011
821,Revenue,CCHD,Elderly Mental Health,Residential Homes,Kenver House Residential Home,1496.44, 04-Oct-2011
822,Revenue,CCHD,Section 117 Placements,Residential Homes,Kenver House Residential Home,1848, 04-Oct-2011
823,Revenue,CCHD,Elderly Mental Health,Residential Homes,Kenver House Residential Home,1358.84, 04-Oct-2011
824,Revenue,CCHD,Elderly Mental Health,Residential Homes,Kenver House Residential Home,899.52, 04-Oct-2011
825,Revenue,CCHD,Frenchay Hospital Purchasing,Residential Homes,Kenver House Residential Home,1621, 04-Oct-2011
826,Revenue,CCHD,Frenchay Hospital Purchasing,Residential Homes,Kenver House Residential Home,1447.32, 04-Oct-2011
827,Revenue,CCHD,Southmead Hospital Purchasing,Residential Homes,Kenver House Residential Home,1510.32, 04-Oct-2011
828,Revenue,CCHD,Frenchay Hospital Purchasing,Residential Homes,Kenver House Residential Home,1621, 04-Oct-2011
829,Revenue,CCHD,Frenchay Hospital Purchasing,Residential Homes,Kenver House Residential Home,1595.28, 04-Oct-2011
830,Revenue,CCHD,Frenchay Hospital Purchasing,Residential Homes,Kenver House Residential Home,1105.4, 04-Oct-2011
831,Revenue,CCHD,Frenchay Hospital Purchasing,Residential Homes,Kenver House Residential Home,1046.32, 04-Oct-2011
832,Revenue,CCHD,Elderly Mental Health,Residential Homes,Kenver House Residential Home,1178.52, 04-Oct-2011
833,Revenue,CCHD,Elderly Mental Health,Residential Homes,Kenver House Residential Home,1210.44, 04-Oct-2011
834,Revenue,CCHD,Frenchay Hospital Purchasing,Residential Homes,Kenver House Residential Home,1409.04, 04-Oct-2011
835,Revenue,CCHD,Elderly Purchasing - South,Residential Homes,Kenver House Residential Home,1228.24, 04-Oct-2011
836,Revenue,CCHD,Elderly Mental Health,Residential Homes,Kenver House Residential Home,1174.16, 04-Oct-2011
837,Revenue,CCHD,Elderly Mental Health,Residential Homes,Kenver House Residential Home,1387.64, 04-Oct-2011
838,Revenue,CCHD,Elderly Purchasing - South,Residential Homes,Kenver House Residential Home,1382.24, 04-Oct-2011
839,Revenue,CCHD,Frenchay Hospital Purchasing,Residential Homes,Kenver House Residential Home,1550.32, 04-Oct-2011
840,Revenue,CCHD,Frenchay Hospital Purchasing,Residential Homes,Kenver House Residential Home,1621, 04-Oct-2011
841,Revenue,CCHD,Elderly Purchasing - South,Residential Homes,Kenver House Residential Home,1565.12, 04-Oct-2011
842,Revenue,CCHD,Elderly Mental Health,Residential Homes,Kenver House Residential Home,1447.92, 04-Oct-2011
843,Revenue,CCHD,Elderly Mental Health,Residential Homes,Kenver House Residential Home,1284.48, 04-Oct-2011
844,Revenue,CCHD,Elderly Mental Health,Residential Homes,Kenver House Residential Home,1686.64, 04-Oct-2011
845,Revenue,CCHD,Elderly Mental Health,Residential Homes,Kenver House Residential Home,1389, 04-Oct-2011
846,Revenue,CCHD,Supporting People Programme,Grants to Voluntary Bodies,Keyring Living Support Networks,2577.6, 06-Oct-2011
847,Revenue,CCHD,Frenchay Hospital Purchasing,Residential Homes,Kingswood Lodge Care Centre,1135.84, 04-Oct-2011
848,Revenue,CCHD,Elderly Purchasing - North,Nursing Homes,Kingswood Lodge Care Centre,4625.17, 04-Oct-2011
849,Revenue,CCHD,Supporting People Programme,Grants to Voluntary Bodies,Kingswood Young Homeless Project,2502.72, 11-Oct-2011
850,Revenue,CCHD,Supporting People Programme,Grants to Voluntary Bodies,Kingswood Young Homeless Project,5133.12, 11-Oct-2011
851,Revenue,CCHD,Under 65s PWLD - KH,Residential Homes,Kisimul Group,11078.72, 04-Oct-2011
852,Revenue,CCHD,Supporting People Programme,Grants to Voluntary Bodies,Knightstone Housing Association Limited,516.64, 10-Oct-2011
853,Revenue,CCHD,Supporting People Programme,Grants to Voluntary Bodies,Knightstone Housing Association Limited,1387.68, 10-Oct-2011
854,Revenue,CCHD,Supporting People Programme,Grants to Voluntary Bodies,Knightstone Housing Association Limited,1968, 10-Oct-2011
855,Revenue,CCHD,Supporting People Programme,Grants to Voluntary Bodies,Knightstone Housing Association Limited,2193.84, 10-Oct-2011
856,Revenue,CCHD,Supporting People Programme,Grants to Voluntary Bodies,Knightstone Housing Association Limited,2194.4, 10-Oct-2011
857,Revenue,CCHD,Supporting People Programme,Grants to Voluntary Bodies,Knightstone Housing Association Limited,6717.92, 10-Oct-2011
858,Revenue,CCHD,Supporting People Programme,Grants to Voluntary Bodies,Knightstone Housing Association Limited,19485.84, 10-Oct-2011
859,Revenue,CCHD,Contracts & Commissioning Team,Other Small Contracts,Kumari Care Limited,6000, 07-Oct-2011
860,Revenue,CCHD,Contracts & Commissioning Team,Other Small Contracts,Kumari Care Limited,6000, 14-Oct-2011
861,Revenue,CCHD,Contracts & Commissioning Team,Other Small Contracts,Kumari Care Limited,6000, 21-Oct-2011
862,Revenue,CCHD,Contracts & Commissioning Team,Other Small Contracts,Kumari Care Limited,6000, 28-Oct-2011
863,Revenue,CCHD,Home Care Purch North,Other Small Contracts,Kumari Care Limited,809.87, 03-Oct-2011
864,Revenue,CCHD,Home Care Purch North,Other Small Contracts,Kumari Care Limited,890.85, 03-Oct-2011
865,Revenue,CCHD,Home Care Purch North,Other Small Contracts,Kumari Care Limited,809.87, 13-Oct-2011
866,Revenue,CCHD,Home Care Purch North,Other Small Contracts,Kumari Care Limited,809.87, 13-Oct-2011
867,Revenue,CCHD,Home Care Purch North,Other Small Contracts,Kumari Care Limited,809.87, 31-Oct-2011
868,Revenue,CCHD,Home Care Purch North,Other Small Contracts,Kumari Care Limited,809.87, 31-Oct-2011
869,Revenue,CCHD,Purchasing Phys Dis - North,Nursing Homes,Leonard Cheshire  National Account Centr,2588.28, 04-Oct-2011
870,Revenue,CCHD,Purchasing Phys Dis - North,Residential Homes,Leonard Cheshire  National Account Centr,2303.36, 04-Oct-2011
871,Revenue,CCHD,Under 65s PWLD - KH,Residential Homes,Leonard Cheshire  National Account Centr,2894.92, 04-Oct-2011
872,Revenue,CCHD,Purchasing Phys Dis - North,Nursing Homes,Leonard Cheshire  National Account Centr,2693.2, 04-Oct-2011
873,Revenue,CCHD,Elderly Purchasing - North,Residential Homes,Leonard Cheshire  National Account Centr,10069.05, 04-Oct-2011
874,Revenue,CCHD,Purchasing Phys Dis - North,Residential Homes,Leonard Cheshire  National Account Centr,506.79, 04-Oct-2011
875,Revenue,CCHD,Under 65s PWLD - KD,Residential Homes,Leonard Cheshire  National Account Centr,5732.24, 04-Oct-2011
876,Revenue,CCHD,Under 65s PWLD - KD,Residential Homes,Leonard Cheshire  National Account Centr,5730.72, 04-Oct-2011
877,Revenue,CCHD,Elderly Purchasing - South,Residential Homes,Leonard Cheshire  National Account Centr,4336.16, 04-Oct-2011
878,Revenue,CCHD,Purchasing Phys Dis - North,Nursing Homes,Leonard Cheshire  National Account Centr,2777.24, 04-Oct-2011
879,Revenue,CCHD,Purchasing Phys Dis - North,Nursing Homes,Leonard Cheshire  National Account Centr,3143.8, 04-Oct-2011
880,Revenue,CCHD,Purchasing Phys Dis - North,Residential Homes,Leonard Cheshire  National Account Centr,2837.08, 04-Oct-2011
881,Revenue,CCHD,Elderly Purchasing - North,Nursing Homes,Leonard Cheshire  National Account Centr,3946.56, 04-Oct-2011
882,Revenue,CCHD,Elderly Purchasing - North,Nursing Homes,Leonard Cheshire  National Account Centr,1973.28, 04-Oct-2011
883,Revenue,CCHD,Purchasing Phys Dis - South,Nursing Homes,Leonard Cheshire  National Account Centr,3140.4, 04-Oct-2011
884,Revenue,CCHD,Purchasing Phys Dis - South,Nursing Homes,Leonard Cheshire  National Account Centr,5956.56, 04-Oct-2011
885,Revenue,CCHD,Purchasing Phys Dis - North,Nursing Homes,Leonard Cheshire  National Account Centr,5378.48, 04-Oct-2011
886,Revenue,CCHD,Elderly Purchasing - South,Nursing Homes,Leonard Cheshire  National Account Centr,2878.32, 04-Oct-2011
887,Revenue,CCHD,Southmead Hospital Purchasing,Nursing Homes,Leonard Cheshire  National Account Centr,2940.48, 04-Oct-2011
888,Revenue,CCHD,South Glos Users in all other LA Homes,Nursing Homes,Leonard Cheshire  National Account Centr,598.4, 04-Oct-2011
889,Revenue,CCHD,Purchasing Phys Dis - North,Nursing Homes,Leonard Cheshire  National Account Centr,3235.6, 04-Oct-2011
890,Revenue,CCHD,Frenchay Hospital Purchasing,Residential Homes,Leonard Cheshire  National Account Centr,3687.8, 04-Oct-2011
891,Revenue,CCHD,Elderly Purchasing - North,Nursing Homes,Leonard Cheshire  National Account Centr,19801.05, 04-Oct-2011
892,Revenue,CCHD,S28A - Over 65,Residential Homes,Leonard Cheshire  National Account Centr,2841.44, 04-Oct-2011
893,Revenue,CCHD,Supported Living - KH,Private & Voluntary Home Care,Lifeways Community Care (Gloucester) Ltd,10990, 12-Oct-2011
894,Revenue,CCHD,Supported Living - KH,Private & Voluntary Home Care,Lifeways Community Care (Gloucester) Ltd,8792, 12-Oct-2011
895,Revenue,CCHD,Supported Living - KH,Private & Voluntary Home Care,Lifeways Community Care (Gloucester) Ltd,8792, 24-Oct-2011
896,Revenue,CCHD,Under 65s PWLD - KD,Residential Homes,Littlecroft Residential Homes  Longcroft,6427.88, 04-Oct-2011
897,Revenue,CCHD,Supported Living - KH,Private & Voluntary Home Care,Lloyds TSB Commercial Finance Limited,5389.46, 21-Oct-2011
898,Revenue,CCHD,Home Care Purch South,Other Small Contracts,Lloyds TSB Commercial Finance Limited,1382.63, 14-Oct-2011
899,Revenue,CCHD,Home Care Purch North,Other Small Contracts,Lloyds TSB Commercial Finance Limited,6778.55, 14-Oct-2011
900,Revenue,CCHD,Day Care - South,Private & Voluntary Day Care,Lloyds TSB Commercial Finance Limited,114.9, 14-Oct-2011
901,Revenue,CCHD,Day Care - North,Private & Voluntary Day Care,Lloyds TSB Commercial Finance Limited,654.93, 14-Oct-2011
902,Revenue,CCHD,Elderly MH Home Care,Other Small Contracts,Lloyds TSB Commercial Finance Limited,540.03, 14-Oct-2011
903,Revenue,CCHD,Elderly MH non-res purchasing,Private & Voluntary Day Care,Lloyds TSB Commercial Finance Limited,103.41, 14-Oct-2011
904,Revenue,CCHD,Supported Living - PS,Private & Voluntary Home Care,Lloyds TSB Commercial Finance Limited,3715.53, 26-Oct-2011
905,Revenue,CCHD,Supported Living - KD,Private & Voluntary Home Care,Lloyds TSB Commercial Finance Limited,3586.33, 17-Oct-2011
906,Revenue,CCHD,Supported Living - PS,Private & Voluntary Home Care,Lloyds TSB Commercial Finance Limited,5860.01, 18-Oct-2011
907,Revenue,CCHD,Supported Living - KD,Private & Voluntary Home Care,Lloyds TSB Commercial Finance Limited,3578.4, 14-Oct-2011
908,Revenue,CCHD,Supported Living - PS,Private & Voluntary Home Care,Lloyds TSB Commercial Finance Limited,3959.25, 26-Oct-2011
909,Revenue,CCHD,Supported Living - PS,Private & Voluntary Home Care,Lloyds TSB Commercial Finance Limited,3571.85, 26-Oct-2011
910,Revenue,CCHD,Supported Living - PS,Private & Voluntary Home Care,Lloyds TSB Commercial Finance Limited,3490.3, 26-Oct-2011
911,Revenue,CCHD,Purchase of Non-Res Care - KH,Private & Voluntary Day Care,Lloyds TSB Commercial Finance Limited,2434.8, 21-Oct-2011
912,Revenue,CCHD,Supported Living - KD,Private & Voluntary Home Care,Lloyds TSB Commercial Finance Limited,3317.42, 17-Oct-2011
913,Revenue,CCHD,Supported Living - KH,Private & Voluntary Home Care,Lloyds TSB Commercial Finance Limited,580.9, 21-Oct-2011
914,Revenue,CCHD,Under 65s PWLD - KH,Residential Homes,Longton Court,9361.2, 04-Oct-2011
915,Revenue,CCHD,Southmead Hospital Purchasing,Nursing Homes,Majestic 3 Limited,1018.52, 04-Oct-2011
916,Revenue,CCHD,Elderly Purchasing - North,Residential Homes,Manton Hall Residential Home,4382.28, 04-Oct-2011
917,Revenue,CCHD,Supporting People Programme,Grants to Voluntary Bodies,Maples Community Housing Limited,2401.2, 11-Oct-2011
918,Revenue,CCHD,Tenancy Start Up Scheme,Other Supplies & Services,Individual,625, 28-Oct-2011
919,Revenue,CCHD,Under 65s PWLD - PS,Residential Homes,Marsden Healthcare Limited,865.12, 28-Oct-2011
920,Revenue,CCHD,Elderly PWLD - KH,Residential Homes,Marsden Healthcare Limited,3134.56, 28-Oct-2011
921,Revenue,CCHD,Elderly PWLD - KH,Residential Homes,Marsden Healthcare Limited,1481.4, 28-Oct-2011
922,Revenue,CCHD,Elderly Mental Health,Nursing Homes,Meadow Care Home,1452.96, 04-Oct-2011
923,Revenue,CCHD,Home Care Purch South,Other Small Contracts,Mears Care,883.6, 25-Oct-2011
924,Revenue,CCHD,Home Care Purch North,Other Small Contracts,Mears Care,9691.4, 25-Oct-2011
925,Revenue,CCHD,Day Care - South,Private & Voluntary Day Care,Mears Care,206.8, 25-Oct-2011
926,Revenue,CCHD,Day Care - North,Private & Voluntary Day Care,Mears Care,361.9, 25-Oct-2011
927,Revenue,CCHD,Under 65s -MH  Home Care Purch,Other Small Contracts,Mears Care,9.4, 25-Oct-2011
928,Revenue,CCHD,Elderly MH Home Care,Other Small Contracts,Mears Care,846, 25-Oct-2011
929,Revenue,CCHD,Elderly MH non-res purchasing,Private & Voluntary Day Care,Mears Care,112.8, 25-Oct-2011
930,Revenue,CCHD,Home Care - Elderly LD - KH,Private & Voluntary Home Care,Mears Care,56.4, 25-Oct-2011
931,Revenue,CCHD,Downend Day Centre,Cleaning & Domestic Supplies,Medaco,657, 05-Oct-2011
932,Revenue,CCHD,NRS Contract,Daily Living Equipment,Medequip Assistive Technology Ltd,36241.03, 24-Oct-2011
933,Revenue,CCHD,NRS Contract,Daily Living Equipment,Medequip Assistive Technology Ltd,47122.99, 24-Oct-2011
934,Revenue,CCHD,NRS Contract,Other Supplies & Services,Medequip Assistive Technology Ltd,4677.47, 24-Oct-2011
935,Revenue,CCHD,Contracts & Commissioning Team,Other Small Contracts,Medico Nursing & Homecare Ltd,13500, 07-Oct-2011
936,Revenue,CCHD,Contracts & Commissioning Team,Other Small Contracts,Medico Nursing & Homecare Ltd,13500, 14-Oct-2011
937,Revenue,CCHD,Contracts & Commissioning Team,Other Small Contracts,Medico Nursing & Homecare Ltd,13500, 21-Oct-2011
938,Revenue,CCHD,Contracts & Commissioning Team,Other Small Contracts,Medico Nursing & Homecare Ltd,13500, 28-Oct-2011
939,Revenue,CCHD,Home Care Purch North,Other Small Contracts,Medico Nursing & Homecare Ltd,1927.73, 03-Oct-2011
940,Revenue,CCHD,Home Care Purch North,Other Small Contracts,Medico Nursing & Homecare Ltd,1927.73, 07-Oct-2011
941,Revenue,CCHD,Home Care Purch North,Other Small Contracts,Medico Nursing & Homecare Ltd,1927.73, 14-Oct-2011
942,Revenue,CCHD,Home Care Purch North,Other Small Contracts,Medico Nursing & Homecare Ltd,1927.73, 21-Oct-2011
943,Revenue,CCHD,Home Care Purch North,Other Small Contracts,Medico Nursing & Homecare Ltd,1927.73, 28-Oct-2011
944,Revenue,CCHD,Under 65s PWLD - KH,Residential Homes,Mencap,2173.8, 04-Oct-2011
945,Revenue,CCHD,Supporting People Programme,Grants to Voluntary Bodies,Merlin Housing Society,920.55, 10-Oct-2011
946,Revenue,CCHD,Supporting People Programme,Grants to Voluntary Bodies,Merlin Housing Society,2172.8, 10-Oct-2011
947,Revenue,CCHD,Supporting People Programme,Grants to Voluntary Bodies,Merlin Housing Society,2186.3, 10-Oct-2011
948,Revenue,CCHD,Supporting People Programme,Grants to Voluntary Bodies,Merlin Housing Society,2416.44, 10-Oct-2011
949,Revenue,CCHD,Supporting People Programme,Grants to Voluntary Bodies,Merlin Housing Society,13808.8, 10-Oct-2011
950,Revenue,CCHD,Supporting People Programme,Grants to Voluntary Bodies,Merlin Housing Society,41424.66, 10-Oct-2011
951,Revenue,CCHD,Charlton,Vandalism,Merlin Housing Society,250, 05-Oct-2011
952,Revenue,CCHD,Contracts & Commissioning Team,Other Small Contracts,Milestones Outreach Dementia Services,1350, 07-Oct-2011
953,Revenue,CCHD,Contracts & Commissioning Team,Other Small Contracts,Milestones Outreach Dementia Services,1350, 14-Oct-2011
954,Revenue,CCHD,Contracts & Commissioning Team,Other Small Contracts,Milestones Outreach Dementia Services,1350, 21-Oct-2011
955,Revenue,CCHD,Contracts & Commissioning Team,Other Small Contracts,Milestones Outreach Dementia Services,1350, 28-Oct-2011
956,Revenue,CCHD,Purchase of Non-Res Care - KH,Private & Voluntary Day Care,Milestones Trust,888.07, 17-Oct-2011
957,Revenue,CCHD,Supported Living - KD,Private & Voluntary Home Care,Milestones Trust,4547.38, 12-Oct-2011
958,Revenue,CCHD,Elderly MH non-res purchasing,Private & Voluntary Day Care,Milestones Trust,720, 12-Oct-2011
959,Revenue,CCHD,Purchase of Non-Res Care - PS,Private & Voluntary Day Care,Milestones Trust,566.36, 24-Oct-2011
960,Revenue,CCHD,Purchase of Non-Res Care - KH,Private & Voluntary Day Care,Milestones Trust,647.49, 19-Oct-2011
961,Revenue,CCHD,Purchase of Non-Res Care - PS,Private & Voluntary Day Care,Milestones Trust,1605.46, 07-Oct-2011
962,Revenue,CCHD,Purchase of Non-Res Care - PS,Private & Voluntary Day Care,Milestones Trust,1563.68, 26-Oct-2011
963,Revenue,CCHD,Supported Living - PS,Private & Voluntary Home Care,Milestones Trust,519.88, 24-Oct-2011
964,Revenue,CCHD,Purchase of Non-Res Care - PS,Private & Voluntary Day Care,Milestones Trust,1748.68, 24-Oct-2011
965,Revenue,CCHD,Purchase of Non-Res Care - KH,Private & Voluntary Day Care,Milestones Trust,1660.86, 19-Oct-2011
966,Revenue,CCHD,Purchase of Non-Res Care - KH,Private & Voluntary Day Care,Milestones Trust,1693.53, 19-Oct-2011
967,Revenue,CCHD,Purchase of Non-Res Care - KH,Private & Voluntary Day Care,Milestones Trust,966.67, 19-Oct-2011
968,Revenue,CCHD,Purchase of Non-Res Care - PS,Private & Voluntary Day Care,Milestones Trust,1578.54, 24-Oct-2011
969,Revenue,CCHD,Purchase of Non-Res Care - KH,Private & Voluntary Day Care,Milestones Trust,1619.19, 19-Oct-2011
970,Revenue,CCHD,Purchase of Non-Res Care - KH,Private & Voluntary Day Care,Milestones Trust,1601.24, 19-Oct-2011
971,Revenue,CCHD,Purchase of Non-Res Care - KD,Private & Voluntary Day Care,Milestones Trust,2020.26, 13-Oct-2011
972,Revenue,CCHD,Supported Living - KH,Private & Voluntary Home Care,Milestones Trust,1045.98, 19-Oct-2011
973,Revenue,CCHD,Elderly MH non-res purchasing,Private & Voluntary Day Care,Milestones Trust,522.93, 07-Oct-2011
974,Revenue,CCHD,Elderly MH non-res purchasing,Private & Voluntary Day Care,Milestones Trust,755.43, 07-Oct-2011
975,Revenue,CCHD,Supported Living (S28a),Private & Voluntary Home Care,Milestones Trust,5179.2, 04-Oct-2011
976,Revenue,CCHD,Supported Living (S28a),Private & Voluntary Home Care,Milestones Trust,5179.2, 04-Oct-2011
977,Revenue,CCHD,Supported Living (S28a),Private & Voluntary Home Care,Milestones Trust,4577.9, 04-Oct-2011
978,Revenue,CCHD,Supported Living (S28a),Private & Voluntary Home Care,Milestones Trust,4577.9, 04-Oct-2011
979,Revenue,CCHD,Supported Living - PS,Private & Voluntary Home Care,Milestones Trust,525.95, 07-Oct-2011
980,Revenue,CCHD,Supported Living (S28a),Private & Voluntary Home Care,Milestones Trust,9138.08, 04-Oct-2011
981,Revenue,CCHD,Supported Living (S28a),Private & Voluntary Home Care,Milestones Trust,13051.22, 04-Oct-2011
982,Revenue,CCHD,Supported Living - PS,Private & Voluntary Home Care,Milestones Trust,940.34, 11-Oct-2011
983,Revenue,CCHD,Supported Living - PS,Private & Voluntary Home Care,Milestones Trust,999, 24-Oct-2011
984,Revenue,CCHD,Supported Living - KH,Private & Voluntary Home Care,Milestones Trust,1555.35, 19-Oct-2011
985,Revenue,CCHD,Supported Living (S28a),Private & Voluntary Home Care,Milestones Trust,4563.47, 21-Oct-2011
986,Revenue,CCHD,Supported Living (S28a),Private & Voluntary Home Care,Milestones Trust,10939.4, 04-Oct-2011
987,Revenue,CCHD,Supported Living (S28a),Private & Voluntary Home Care,Milestones Trust,11668.8, 04-Oct-2011
988,Revenue,CCHD,Supported Living (S28a),Private & Voluntary Home Care,Milestones Trust,6514, 14-Oct-2011
989,Revenue,CCHD,Supported Living - KD,Private & Voluntary Home Care,Milestones Trust,5603.64, 21-Oct-2011
990,Revenue,CCHD,Supported Living (S28a),Private & Voluntary Home Care,Milestones Trust,3705.92, 14-Oct-2011
991,Revenue,CCHD,Supported Living (S28a),Private & Voluntary Home Care,Milestones Trust,3810.7, 14-Oct-2011
992,Revenue,CCHD,Supported Living - KH,Private & Voluntary Home Care,Milestones Trust,3553.07, 19-Oct-2011
993,Revenue,CCHD,Supported Living (S28a),Private & Voluntary Home Care,Milestones Trust,3800.85, 14-Oct-2011
994,Revenue,CCHD,Supported Living - PS,Private & Voluntary Home Care,Milestones Trust,1162.71, 24-Oct-2011
995,Revenue,CCHD,Supported Living - PS,Private & Voluntary Home Care,Milestones Trust,542.38, 26-Oct-2011
996,Revenue,CCHD,Supported Living - PS,Private & Voluntary Home Care,Milestones Trust,2414.72, 26-Oct-2011
997,Revenue,CCHD,Supported Living - PS,Private & Voluntary Home Care,Milestones Trust,897.12, 24-Oct-2011
998,Revenue,CCHD,Supported Living (S28a),Private & Voluntary Home Care,Milestones Trust,887.78, 14-Oct-2011
999,Revenue,CCHD,Elderly MH non-res purchasing,Private & Voluntary Day Care,Milestones Trust,612.88, 18-Oct-2011
1000,Revenue,CCHD,Elderly MH non-res purchasing,Private & Voluntary Day Care,Milestones Trust,595.29, 18-Oct-2011
1001,Revenue,CCHD,Elderly MH non-res purchasing,Private & Voluntary Day Care,Milestones Trust,1133.17, 18-Oct-2011
1002,Revenue,CCHD,Elderly MH non-res purchasing,Private & Voluntary Day Care,Milestones Trust,700.55, 18-Oct-2011
1003,Revenue,CCHD,Section 117 Placements MH Younger,Private & Voluntary Day Care,Milestones Trust,1280.12, 18-Oct-2011
1004,Revenue,CCHD,Elderly MH non-res purchasing,Private & Voluntary Day Care,Milestones Trust,924, 18-Oct-2011
1005,Revenue,CCHD,Section 117 Placements,Private & Voluntary Day Care,Milestones Trust,772.34, 18-Oct-2011
1006,Revenue,CCHD,Younger MH non-res purchasing,Private & Voluntary Day Care,Milestones Trust,759.77, 18-Oct-2011
1007,Revenue,CCHD,Section 117 Placements,Private & Voluntary Day Care,Milestones Trust,1105.34, 18-Oct-2011
1008,Revenue,CCHD,Stibbs and Fairburn,Private & Voluntary Respite Care,Milestones Trust,122736.57, 25-Oct-2011
1009,Revenue,CCHD,Elderly MH non-res purchasing,Private & Voluntary Day Care,Milestones Trust,594.56, 31-Oct-2011
1010,Revenue,CCHD,Elderly MH non-res purchasing,Private & Voluntary Day Care,Milestones Trust,755.43, 31-Oct-2011
1011,Revenue,CCHD,Under 65s PWLD - PS,Residential Homes,Miller Farm,3305, 04-Oct-2011
1012,Revenue,CCHD,Section 117 Placements,Nursing Homes,Mimosa Healthcare Holdings Ltd,1888, 04-Oct-2011
1013,Revenue,CCHD,S28A - Over 65,Nursing Homes,Mortimer House Nursing Home,3227.8, 28-Oct-2011
1014,Revenue,CCHD,Elderly PWLD - PS,Nursing Homes,Mortimer House Nursing Home,12368.35, 28-Oct-2011
1015,Revenue,CCHD,Elderly PWLD - PS,Nursing Homes,Mortimer House Nursing Home,2910.2, 28-Oct-2011
1016,Revenue,CCHD,S28A - Over 65,Nursing Homes,Mortimer House Nursing Home,3233, 28-Oct-2011
1017,Revenue,CCHD,Southmead Hospital Purchasing,Residential Homes,Mostyn Lodge Residential Home,1253, 04-Oct-2011
1018,Revenue,CCHD,Section 117 Placements,Residential Homes,Mostyn Lodge Residential Home,1848, 04-Oct-2011
1019,Revenue,CCHD,Tenancy Start Up Scheme,Other Supplies & Services,Individual,1247, 17-Oct-2011
1020,Revenue,CCHD,Under 65s PWLD - KH,Residential Homes,Mr J Davis & Mrs S Davis,1840, 11-Oct-2011
1021,Revenue,CCHD,Social Lettings Agency,Other Supplies & Services,Individual,625, 11-Oct-2011
1022,Revenue,CCHD,Social Lettings Agency,Other Supplies & Services,Individual,509.02, 04-Oct-2011
1023,Revenue,CCHD,Supported Living - PS,Private & Voluntary Home Care,Mrs B Kimber,8414.26, 04-Oct-2011
1024,Revenue,CCHD,Supported Living - PS,Private & Voluntary Home Care,Mrs B Kimber,11259.1, 04-Oct-2011
1025,Revenue,CCHD,Day Care - North,Private & Voluntary Day Care,Mrs B Kimber,668.05, 03-Oct-2011
1026,Revenue,CCHD,Day Care - North,Private & Voluntary Day Care,Mrs B Kimber,1239.7, 03-Oct-2011
1027,Revenue,CCHD,Day Care - South,Private & Voluntary Day Care,Mrs B Kimber,926.64, 06-Oct-2011
1028,Revenue,CCHD,Day Care - South,Private & Voluntary Day Care,Mrs B Kimber,726.8, 28-Oct-2011
1029,Revenue,CCHD,Day Care - South,Private & Voluntary Day Care,Mrs B Kimber,832.2, 06-Oct-2011
1030,Revenue,CCHD,Elderly MH non-res purchasing,Private & Voluntary Day Care,Mrs B Kimber,763.14, 12-Oct-2011
1031,Revenue,CCHD,Elderly MH non-res purchasing,Private & Voluntary Day Care,Mrs B Kimber,536.02, 12-Oct-2011
1032,Revenue,CCHD,Elderly MH non-res purchasing,Private & Voluntary Day Care,Mrs B Kimber,690.46, 12-Oct-2011
1033,Revenue,CCHD,Purchase of Non-Res Care - KH,Private & Voluntary Day Care,Mrs B Kimber,1137.76, 14-Oct-2011
1034,Revenue,CCHD,Supported Living - PS,Private & Voluntary Home Care,Mrs B Kimber,8158.6, 24-Oct-2011
1035,Revenue,CCHD,Supported Living - PS,Private & Voluntary Home Care,Mrs B Kimber,10937.88, 24-Oct-2011
1036,Revenue,CCHD,Day Care - North,Private & Voluntary Day Care,Mrs B Kimber,593.25, 31-Oct-2011
1037,Revenue,CCHD,Day Care - North,Private & Voluntary Day Care,Mrs B Kimber,1465.1, 31-Oct-2011
1038,Revenue,CCHD,Supported Living - KD,Private & Voluntary Home Care,Mrs B Kimber,1152.48, 28-Oct-2011
1039,Revenue,CCHD,Day Care - South,Private & Voluntary Day Care,Mrs B Kimber,744.6, 28-Oct-2011
1040,Revenue,CCHD,Elderly MH non-res purchasing,Private & Voluntary Day Care,Mrs B Kimber,654.12, 25-Oct-2011
1041,Revenue,CCHD,Elderly MH non-res purchasing,Private & Voluntary Day Care,Mrs B Kimber,632.8, 25-Oct-2011
1042,Revenue,CCHD,Elderly MH non-res purchasing,Private & Voluntary Day Care,Mrs B Kimber,508.76, 25-Oct-2011
1043,Revenue,CCHD,Contracts & Commissioning Team,Other Small Contracts,Mrs B Kimber,7500, 07-Oct-2011
1044,Revenue,CCHD,Contracts & Commissioning Team,Other Small Contracts,Mrs B Kimber,7500, 14-Oct-2011
1045,Revenue,CCHD,Contracts & Commissioning Team,Other Small Contracts,Mrs B Kimber,7500, 21-Oct-2011
1046,Revenue,CCHD,Contracts & Commissioning Team,Other Small Contracts,Mrs B Kimber,7500, 28-Oct-2011
1047,Revenue,CCHD,Younger MH non-res purchasing,Private & Voluntary Home Care,Mrs Felicity Cooksley,1676, 24-Oct-2011
1048,Revenue,CCHD,Purchase of Non-Res Care - KD,Private & Voluntary Day Care,Mrs W Thompson,1460, 20-Oct-2011
1049,Revenue,CCHD,Purchase of Non-Res Care - KD,Private & Voluntary Day Care,Mrs W Thompson,554, 20-Oct-2011
1050,Revenue,CCHD,Alexandra Way,Cleaning & Domestic Supplies,Muzzell Healthcare,431.65, 04-Oct-2011
1051,Revenue,CCHD,Younger MH non-res purchasing,Private & Voluntary Day Care,NAS Services Limited,1470.3, 14-Oct-2011
1052,Revenue,CCHD,Younger MH non-res purchasing,Private & Voluntary Day Care,NAS Services Limited,527.8, 14-Oct-2011
1053,Revenue,CCHD,Community Support ACM - South,Preventative Assistance,National Star College FDY Limited,5539.31, 21-Oct-2011
1054,Revenue,CCHD,Purchase of Non-Res Care - KD,Private & Voluntary Day Care,Natureworks Training Community Interest,1048.82, 18-Oct-2011
1055,Revenue,CCHD,Contracts & Commissioning Team,Other Small Contracts,Network Health & Social Care,2200, 07-Oct-2011
1056,Revenue,CCHD,Contracts & Commissioning Team,Other Small Contracts,Network Health & Social Care,2200, 14-Oct-2011
1057,Revenue,CCHD,Contracts & Commissioning Team,Other Small Contracts,Network Health & Social Care,2200, 21-Oct-2011
1058,Revenue,CCHD,Contracts & Commissioning Team,Other Small Contracts,Network Health & Social Care,2200, 28-Oct-2011
1059,Revenue,CCHD,Elderly Purchasing - North,Residential Homes,Newton House,1700.96, 04-Oct-2011
1060,Revenue,CCHD,Information Systems - Software,Software Support & Maintenance,Northgate Information Solutions UK Limited,922.68, 28-Oct-2011
1061,Revenue,CCHD,Under 65s PWLD - PS,Residential Homes,Norwood   Broadway House,4784.72, 04-Oct-2011
1062,Revenue,CCHD,Home Care Purch South,Other Small Contracts,Nursing Solutions Limited,935.55, 25-Oct-2011
1063,Revenue,CCHD,Elderly MH Home Care,Other Small Contracts,Nursing Solutions Limited,356.4, 25-Oct-2011
1064,Revenue,CCHD,Elderly MH non-res purchasing,Private & Voluntary Day Care,Nursing Solutions Limited,210.6, 25-Oct-2011
1065,Revenue,CCHD,Home Care Purch South,Other Small Contracts,Nursing Solutions Limited,858.6, 25-Oct-2011
1066,Revenue,CCHD,Elderly MH Home Care,Other Small Contracts,Nursing Solutions Limited,356.4, 25-Oct-2011
1067,Revenue,CCHD,Elderly MH non-res purchasing,Private & Voluntary Day Care,Nursing Solutions Limited,210.6, 25-Oct-2011
1068,Revenue,CCHD,Home Care Purch South,Other Small Contracts,Nursing Solutions Limited,785.7, 25-Oct-2011
1069,Revenue,CCHD,Elderly MH Home Care,Other Small Contracts,Nursing Solutions Limited,356.4, 25-Oct-2011
1070,Revenue,CCHD,Elderly MH non-res purchasing,Private & Voluntary Day Care,Nursing Solutions Limited,202.5, 25-Oct-2011
1071,Revenue,CCHD,Woodleaze,Refuse Collection Charges,OCS Group UK Ltd,468.48, 26-Oct-2011
1072,Revenue,CCHD,Home Care Purch South,Other Small Contracts,On the Up,306.18, 18-Oct-2011
1073,Revenue,CCHD,Day Care - South,Private & Voluntary Day Care,On the Up,68.04, 18-Oct-2011
1074,Revenue,CCHD,Elderly MH non-res purchasing,Private & Voluntary Day Care,On the Up,155.52, 18-Oct-2011
1075,Revenue,CCHD,Home Care Purch South,Other Small Contracts,On the Up,398.52, 18-Oct-2011
1076,Revenue,CCHD,Day Care - South,Private & Voluntary Day Care,On the Up,72.9, 18-Oct-2011
1077,Revenue,CCHD,Elderly MH non-res purchasing,Private & Voluntary Day Care,On the Up,155.52, 18-Oct-2011
1078,Revenue,CCHD,Home Care Purch South,Other Small Contracts,On the Up,320.76, 18-Oct-2011
1079,Revenue,CCHD,Day Care - South,Private & Voluntary Day Care,On the Up,68.04, 18-Oct-2011
1080,Revenue,CCHD,Elderly MH non-res purchasing,Private & Voluntary Day Care,On the Up,150.66, 18-Oct-2011
1081,Revenue,CCHD,Home Care Purch South,Other Small Contracts,On the Up,393.66, 18-Oct-2011
1082,Revenue,CCHD,Day Care - South,Private & Voluntary Day Care,On the Up,68.04, 18-Oct-2011
1083,Revenue,CCHD,Elderly MH non-res purchasing,Private & Voluntary Day Care,On the Up,150.66, 18-Oct-2011
1084,Revenue,CCHD,Home Care Purch South,Other Small Contracts,On the Up,359.64, 18-Oct-2011
1085,Revenue,CCHD,Day Care - South,Private & Voluntary Day Care,On the Up,68.04, 18-Oct-2011
1086,Revenue,CCHD,Elderly MH non-res purchasing,Private & Voluntary Day Care,On the Up,160.38, 18-Oct-2011
1087,Revenue,CCHD,Housing Advice,Grants to Voluntary Bodies,Orchard & Shipman PLC,13333.25, 28-Oct-2011
1088,Revenue,CCHD,S28A - Under 65,Residential Homes,Orchard End Limited,7466.16, 04-Oct-2011
1089,Revenue,CCHD,Under 65s PWLD - PS,Residential Homes,Osprey Court,7741.52, 04-Oct-2011
1090,Revenue,CCHD,S28A - Under 65,Residential Homes,Osprey Court,4323.36, 04-Oct-2011
1091,Revenue,CCHD,S28A - Under 65,Residential Homes,Osprey Court,6566.88, 04-Oct-2011
1092,Revenue,CCHD,Minor Adaptations Service,Operational Equipment,Pan Tools Ltd,1180.3, 18-Oct-2011
1093,Revenue,CCHD,Swift Dump Code,Residential Homes,Park Farm House,5502.68, 18-Oct-2011
1094,Revenue,CCHD,Elderly PWLD - KH,Residential Homes,Park Hall,9570.96, 04-Oct-2011
1095,Revenue,CCHD,Under 65s PWLD - KH,Residential Homes,Park Hall,4037.52, 04-Oct-2011
1096,Revenue,CCHD,Under 65s PWLD - KH,Residential Homes,Park Hall,9650.16, 04-Oct-2011
1097,Revenue,CCHD,Under 65s PWLD - KH,Residential Homes,Park Hall,12336.4, 04-Oct-2011
1098,Revenue,CCHD,Under 65s PWLD - PS,Residential Homes,Park Hall,5420.4, 04-Oct-2011
1099,Revenue,CCHD,Elderly PWLD - KH,Residential Homes,Park Hall,2470.16, 04-Oct-2011
1100,Revenue,CCHD,Under 65s PWLD - KD,Residential Homes,Park Hall,2720.8, 04-Oct-2011
1101,Revenue,CCHD,S28A - Under 65,Residential Homes,Park Hall,9013.6, 04-Oct-2011
1102,Revenue,CCHD,S28A - Under 65,Residential Homes,Park Hall,5477.72, 04-Oct-2011
1103,Revenue,CCHD,S28A - Over 65,Residential Homes,Park Hall,5163.72, 04-Oct-2011
1104,Revenue,CCHD,Under 65s PWLD - KH,Residential Homes,Park Hall,6276.68, 04-Oct-2011
1105,Revenue,CCHD,Under 65s PWLD - KD,Residential Homes,Park Hall,2149.28, 04-Oct-2011
1106,Revenue,CCHD,Under 65s PWLD - KH,Residential Homes,Park Hall,9603.92, 04-Oct-2011
1107,Revenue,CCHD,S28A - Under 65,Residential Homes,Park Hall,3955.6, 04-Oct-2011
1108,Revenue,CCHD,Elderly Purchasing - South,Residential Homes,Park Street Home,2012.48, 04-Oct-2011
1109,Revenue,CCHD,Under 65s PWLD - KH,Residential Homes,Penleigh House Care Home,4389.32, 04-Oct-2011
1110,Revenue,CCHD,Elderly PWLD - KD,Residential Homes,Penleigh House Care Home,4162.72, 04-Oct-2011
1111,Revenue,CCHD,Under 65s PWLD - KD,Residential Homes,Penleigh House Care Home,4326.72, 04-Oct-2011
1112,Revenue,CCHD,S28A - Under 65,Residential Homes,Penleigh House Care Home,5288.92, 04-Oct-2011
1113,Revenue,CCHD,Section 117 Placements,Nursing Homes,Pennwood Lodge Nursing Home,1911.96, 04-Oct-2011
1114,Revenue,CCHD,Elderly Purchasing - North,Nursing Homes,Pennwood Lodge Nursing Home,1463.32, 04-Oct-2011
1115,Revenue,CCHD,Elderly Mental Health,Nursing Homes,Pennwood Lodge Nursing Home,1453, 04-Oct-2011
1116,Revenue,CCHD,Elderly Mental Health,Nursing Homes,Pennwood Lodge Nursing Home,1210.68, 04-Oct-2011
1117,Revenue,CCHD,Elderly Mental Health,Nursing Homes,Pennwood Lodge Nursing Home,1453, 04-Oct-2011
1118,Revenue,CCHD,Elderly Mental Health,Nursing Homes,Pennwood Lodge Nursing Home,1166.48, 04-Oct-2011
1119,Revenue,CCHD,Elderly Mental Health,Nursing Homes,Pennwood Lodge Nursing Home,874.28, 04-Oct-2011
1120,Revenue,CCHD,Southmead Hospital Purchasing,Residential Homes,Petersfield Ad Care Home,2721.36, 04-Oct-2011
1121,Revenue,CCHD,Occupational Therapy Team,Agency Staff (Operational)/PCT Pay,Piers Meadows Recruitment Limited,1146.25, 28-Oct-2011
1122,Revenue,CCHD,Bed and Breakfast,Bed & Breakfast,Pleasant Bed & Breakfast Limited,588, 04-Oct-2011
1123,Revenue,CCHD,Bed and Breakfast,Bed & Breakfast,Pleasant Bed & Breakfast Limited,562, 07-Oct-2011
1124,Revenue,CCHD,Bed and Breakfast,Bed & Breakfast,Pleasant Bed & Breakfast Limited,588, 14-Oct-2011
1125,Revenue,CCHD,Bed and Breakfast,Bed & Breakfast,Pleasant Bed & Breakfast Limited,588, 14-Oct-2011
1126,Revenue,CCHD,Home Care Purch North,Other Small Contracts,Premier Homecare Limited,826.44, 03-Oct-2011
1127,Revenue,CCHD,Day Care - North,Private & Voluntary Day Care,Premier Homecare Limited,31.04, 03-Oct-2011
1128,Revenue,CCHD,Elderly MH Home Care,Other Small Contracts,Premier Homecare Limited,287.12, 03-Oct-2011
1129,Revenue,CCHD,Elderly MH non-res purchasing,Private & Voluntary Day Care,Premier Homecare Limited,186.24, 03-Oct-2011
1130,Revenue,CCHD,Home Care Purch North,Other Small Contracts,Premier Homecare Limited,931.2, 07-Oct-2011
1131,Revenue,CCHD,Day Care - North,Private & Voluntary Day Care,Premier Homecare Limited,31.04, 07-Oct-2011
1132,Revenue,CCHD,Elderly MH Home Care,Other Small Contracts,Premier Homecare Limited,248.32, 07-Oct-2011
1133,Revenue,CCHD,Elderly MH non-res purchasing,Private & Voluntary Day Care,Premier Homecare Limited,186.24, 07-Oct-2011
1134,Revenue,CCHD,Home Care Purch North,Other Small Contracts,Premier Homecare Limited,6381.36, 07-Oct-2011
1135,Revenue,CCHD,Day Care - North,Private & Voluntary Day Care,Premier Homecare Limited,598.4, 07-Oct-2011
1136,Revenue,CCHD,Elderly MH Home Care,Other Small Contracts,Premier Homecare Limited,179.52, 07-Oct-2011
1137,Revenue,CCHD,Elderly MH non-res purchasing,Private & Voluntary Day Care,Premier Homecare Limited,250.24, 07-Oct-2011
1138,Revenue,CCHD,Home Care Purch North,Other Small Contracts,Premier Homecare Limited,919.56, 07-Oct-2011
1139,Revenue,CCHD,Day Care - North,Private & Voluntary Day Care,Premier Homecare Limited,31.04, 07-Oct-2011
1140,Revenue,CCHD,Elderly MH Home Care,Other Small Contracts,Premier Homecare Limited,248.32, 07-Oct-2011
1141,Revenue,CCHD,Elderly MH non-res purchasing,Private & Voluntary Day Care,Premier Homecare Limited,186.24, 07-Oct-2011
1142,Revenue,CCHD,Home Care Purch North,Other Small Contracts,Premier Homecare Limited,6182.16, 07-Oct-2011
1143,Revenue,CCHD,Day Care - North,Private & Voluntary Day Care,Premier Homecare Limited,587.52, 07-Oct-2011
1144,Revenue,CCHD,Elderly MH Home Care,Other Small Contracts,Premier Homecare Limited,136, 07-Oct-2011
1145,Revenue,CCHD,Elderly MH non-res purchasing,Private & Voluntary Day Care,Premier Homecare Limited,250.24, 07-Oct-2011
1146,Revenue,CCHD,Home Care Purch North,Other Small Contracts,Premier Homecare Limited,888.52, 21-Oct-2011
1147,Revenue,CCHD,Day Care - North,Private & Voluntary Day Care,Premier Homecare Limited,31.04, 21-Oct-2011
1148,Revenue,CCHD,Elderly MH Home Care,Other Small Contracts,Premier Homecare Limited,248.32, 21-Oct-2011
1149,Revenue,CCHD,Elderly MH non-res purchasing,Private & Voluntary Day Care,Premier Homecare Limited,186.24, 21-Oct-2011
1150,Revenue,CCHD,Contracts & Commissioning Team,Other Small Contracts,Prestige Nursing,4200, 07-Oct-2011
1151,Revenue,CCHD,Contracts & Commissioning Team,Other Small Contracts,Prestige Nursing,4200, 14-Oct-2011
1152,Revenue,CCHD,Contracts & Commissioning Team,Other Small Contracts,Prestige Nursing,4200, 21-Oct-2011
1153,Revenue,CCHD,Contracts & Commissioning Team,Other Small Contracts,Prestige Nursing,4200, 28-Oct-2011
1154,Revenue,CCHD,Vinney Green Premises - CCD,Equipment Maintenance,Professional Hygiene Ltd,493.6, 13-Oct-2011
1155,Revenue,CCHD,Kingswood District Office,Postages,Purchase Power,513, 20-Oct-2011
1156,Revenue,CCHD,Elderly Purchasing - South,Residential Homes,Quality Care Homes Ltd,614.5, 04-Oct-2011
1157,Revenue,CCHD,Elderly Purchasing - South,Residential Homes,Quality Care Homes Ltd,1238.96, 04-Oct-2011
1158,Revenue,CCHD,Elderly Purchasing - South,Residential Homes,Quality Care Homes Ltd,1229, 04-Oct-2011
1159,Revenue,CCHD,Elderly Purchasing - South,Residential Homes,Quality Care Homes Ltd,1396, 04-Oct-2011
1160,Revenue,CCHD,Elderly Purchasing - South,Residential Homes,Quality Care Homes Ltd,1128.96, 04-Oct-2011
1161,Revenue,CCHD,Elderly Purchasing - South,Residential Homes,Quality Care Homes Ltd,1692.97, 04-Oct-2011
1162,Revenue,CCHD,Elderly Purchasing - South,Residential Homes,Quality Care Homes Ltd,1185.08, 04-Oct-2011
1163,Revenue,CCHD,Elderly Purchasing - South,Residential Homes,Quality Care Homes Ltd,1242.8, 04-Oct-2011
1164,Revenue,CCHD,Southmead Hospital Purchasing,Residential Homes,Quality Care Homes Ltd,1199.04, 04-Oct-2011
1165,Revenue,CCHD,Southmead Hospital Purchasing,Residential Homes,Quality Care Homes Ltd,1232.16, 04-Oct-2011
1166,Revenue,CCHD,Elderly Purchasing - South,Residential Homes,Quality Care Homes Ltd,976.72, 04-Oct-2011
1167,Revenue,CCHD,Southmead Hospital Purchasing,Residential Homes,Quality Care Homes Ltd,739.8, 04-Oct-2011
1168,Revenue,CCHD,Frenchay Hospital Purchasing,Residential Homes,Quality Care Homes Ltd,1843.5, 04-Oct-2011
1169,Revenue,CCHD,Frenchay Hospital Purchasing,Residential Homes,Quality Care Homes Ltd,1229, 04-Oct-2011
1170,Revenue,CCHD,Elderly Mental Health,Nursing Homes,Ravenswood,1266.8, 04-Oct-2011
1171,Revenue,CCHD,Section 117 Placements,Nursing Homes,Redholme Memory Care Limited,1912, 04-Oct-2011
1172,Revenue,CCHD,South Glos Users in South Glos Homes,Nursing Homes,Regent House,1599.44, 04-Oct-2011
1173,Revenue,CCHD,Elderly Purchasing - South,Nursing Homes,Regent House,1620.8, 04-Oct-2011
1174,Revenue,CCHD,Elderly Purchasing - South,Nursing Homes,Regent House,800.24, 04-Oct-2011
1175,Revenue,CCHD,South Glos Users in South Glos Homes,Nursing Homes,Regent House,760.9, 04-Oct-2011
1176,Revenue,CCHD,Elderly Purchasing - South,Nursing Homes,Regent House,1620.8, 04-Oct-2011
1177,Revenue,CCHD,Elderly Purchasing - South,Nursing Homes,Regent House,621.2, 04-Oct-2011
1178,Revenue,CCHD,Southmead Hospital Purchasing,Nursing Homes,Regent House,1367, 04-Oct-2011
1179,Revenue,CCHD,Elderly Purchasing - South,Nursing Homes,Regent House,2465.2, 04-Oct-2011
1180,Revenue,CCHD,Elderly Purchasing - South,Nursing Homes,Regent House,1760.86, 04-Oct-2011
1181,Revenue,CCHD,Elderly Purchasing - South,Nursing Homes,Regent House,1102.6, 04-Oct-2011
1182,Revenue,CCHD,Elderly Mental Health,Nursing Homes,Regent House,22813.14, 04-Oct-2011
1183,Revenue,CCHD,Elderly Mental Health,Nursing Homes,Regent House,4036.34, 04-Oct-2011
1184,Revenue,CCHD,Elderly Mental Health,Nursing Homes,Regent House,1444.2, 04-Oct-2011
1185,Revenue,CCHD,Elderly Mental Health,Nursing Homes,Regent House,1053.04, 04-Oct-2011
1186,Revenue,CCHD,Elderly Mental Health,Nursing Homes,Regent House,1282.72, 04-Oct-2011
1187,Revenue,CCHD,Elderly PWLD - PS,Residential Homes,Renaissance,2156.6, 04-Oct-2011
1188,Revenue,CCHD,Under 65s PWLD - PS,Residential Homes,Ridgeway House,3373.32, 04-Oct-2011
1189,Revenue,CCHD,Elderly Purchasing - South,Nursing Homes,Riversway Nursing Home,1146.88, 04-Oct-2011
1190,Revenue,CCHD,Southmead Hospital Purchasing,Nursing Homes,Riversway Nursing Home,1334.52, 04-Oct-2011
1191,Revenue,CCHD,Southmead Hospital Purchasing,Nursing Homes,Riversway Nursing Home,1690.2, 04-Oct-2011
1192,Revenue,CCHD,Elderly PWLD - PS,Residential Homes,Rockleaze,2134.16, 04-Oct-2011
1193,Revenue,CCHD,Elderly PWLD - PS,Residential Homes,Rockleaze,1386.56, 04-Oct-2011
1194,Revenue,CCHD,S28A - Over 65,Residential Homes,Rockleaze,2015.52, 04-Oct-2011
1195,Revenue,CCHD,Under 65s PWLD - PS,Residential Homes,Rockleaze,2335.08, 04-Oct-2011
1196,Revenue,CCHD,Elderly PWLD - PS,Residential Homes,Rockleaze,1386.56, 04-Oct-2011
1197,Revenue,CCHD,Under 65s PWLD - KD,Residential Homes,Rolle Quay House,794.46, 04-Oct-2011
1198,Revenue,CCHD,Under 65s PWLD - PS,Residential Homes,Rosewood Lodge & Brook House,15676.32, 04-Oct-2011
1199,Revenue,CCHD,Elderly Mental Health,Residential Homes,Ross Healthcare,1265.36, 04-Oct-2011
1200,Revenue,CCHD,Frenchay Hospital Purchasing,Residential Homes,Roundham Court,2458, 04-Oct-2011
1201,Revenue,CCHD,Blackhorse RAC,Operational Staff Pay,Royal Mencap Society,1309, 27-Oct-2011
1202,Revenue,CCHD,LD - Kingswood PCT,Agency Staff (Operational)/PCT Pay,Ryeford Cleaning Services Limited,520, 24-Oct-2011
1203,Revenue,CCHD,Under 65s PWLD - PS,Residential Homes,Salters Hill Barn,1964.08, 04-Oct-2011
1204,Revenue,CCHD,Woodleaze,"Provisions (Food, etc)",School Milk Services Limited,805.74, 28-Oct-2011
1205,Revenue,CCHD,Charlton,"Provisions (Food, etc)",School Milk Services Limited,686.24, 28-Oct-2011
1206,Revenue,CCHD,Under 65s PWLD - KH,Residential Homes,Scope   Accounts Dept,4926.6, 04-Oct-2011
1207,Revenue,CCHD,Under 65s PWLD - KH,Residential Homes,Scope   Accounts Dept,3016.28, 04-Oct-2011
1208,Revenue,CCHD,Section 117 Placements,Residential Homes,Sedbury Park Care Centre,1518.8, 04-Oct-2011
1209,Revenue,CCHD,Section 117 Placements,Residential Homes,Sedbury Park Care Centre,1248.79, 04-Oct-2011
1210,Revenue,CCHD,Frenchay Hospital Purchasing,Residential Homes,Sedbury Park Care Centre,3037.6, 04-Oct-2011
1211,Revenue,CCHD,Frenchay Hospital Purchasing,Nursing Homes,Sedbury Park Care Centre,2494.24, 04-Oct-2011
1212,Revenue,CCHD,Supported Living - PS,Private & Voluntary Home Care,Selborne Care Ltd,4885, 04-Oct-2011
1213,Revenue,CCHD,Supported Living - PS,Private & Voluntary Home Care,Selborne Care Ltd,1128.96, 14-Oct-2011
1214,Revenue,CCHD,Purchase of Non-Res Care - KD,Private & Voluntary Day Care,Selborne Care Ltd,1343.68, 14-Oct-2011
1215,Revenue,CCHD,Supported Living - PS,Private & Voluntary Home Care,Selborne Care Ltd,4878.6, 14-Oct-2011
1216,Revenue,CCHD,Supported Living - PS,Private & Voluntary Home Care,Selborne Care Ltd,4997.44, 19-Oct-2011
1217,Revenue,CCHD,Purchase of Non-Res Care - KD,Private & Voluntary Day Care,Selborne Care Ltd,878.08, 14-Oct-2011
1218,Revenue,CCHD,Supported Living - KD,Private & Voluntary Home Care,Selborne Care Ltd,1115.6, 19-Oct-2011
1219,Revenue,CCHD,Purchase of Non-Res Care - KD,Private & Voluntary Day Care,Selborne Care Ltd,816.64, 14-Oct-2011
1220,Revenue,CCHD,Supported Living - KH,Private & Voluntary Home Care,Selborne Care Ltd,501.76, 19-Oct-2011
1221,Revenue,CCHD,Supported Living - PS,Private & Voluntary Home Care,Selborne Care Ltd,4557, 17-Oct-2011
1222,Revenue,CCHD,Purchase of Non-Res Care - KD,Private & Voluntary Day Care,Selborne Care Ltd,768.32, 14-Oct-2011
1223,Revenue,CCHD,Supported Living - KH,Private & Voluntary Home Care,Selborne Care Ltd,540.44, 19-Oct-2011
1224,Revenue,CCHD,Supported Living - PS,Private & Voluntary Home Care,Selborne Care Ltd,1808.08, 14-Oct-2011
1225,Revenue,CCHD,Purchase of Non-Res Care - KD,Private & Voluntary Day Care,Selborne Care Ltd,856.56, 14-Oct-2011
1226,Revenue,CCHD,Purchase of Non-Res Care - KH,Private & Voluntary Day Care,Servoca Nursing & Care,1293.75, 05-Oct-2011
1227,Revenue,CCHD,Purchase of Non-Res Care - KH,Private & Voluntary Day Care,Servoca Nursing & Care,1580.44, 20-Oct-2011
1228,Revenue,CCHD,Purchase of Non-Res Care - KH,Private & Voluntary Day Care,Servoca Nursing & Care,1709.33, 20-Oct-2011
1229,Revenue,CCHD,Purchase of Non-Res Care - KH,Private & Voluntary Day Care,Servoca Nursing & Care,1025.99, 21-Oct-2011
1230,Revenue,CCHD,Purchase of Non-Res Care - KH,Private & Voluntary Day Care,Servoca Nursing & Care,1622.38, 21-Oct-2011
1231,Revenue,CCHD,Adult Learning Difficulties - Kingswood,Other Employee Expenses,Seven Social Care Limited,825, 25-Oct-2011
1232,Revenue,CCHD,Adult Learning Difficulties - Kingswood,Other Employee Expenses,Seven Social Care Limited,825, 04-Oct-2011
1233,Revenue,CCHD,Adult Learning Difficulties - Kingswood,Other Employee Expenses,Seven Social Care Limited,770, 12-Oct-2011
1234,Revenue,CCHD,Southmead Hospital Purchasing,Nursing Homes,Shaw Healthcare Ltd,1453, 04-Oct-2011
1235,Revenue,CCHD,Elderly Mental Health,Nursing Homes,Shaw Healthcare Ltd,1231.84, 04-Oct-2011
1236,Revenue,CCHD,S28A - Under 65,Residential Homes,Shaw Healthcare Ltd,10446.72, 04-Oct-2011
1237,Revenue,CCHD,S28A - Under 65,Residential Homes,Shaw Healthcare Ltd,10282.72, 04-Oct-2011
1238,Revenue,CCHD,S28A - Under 65,Residential Homes,Shaw Healthcare Ltd,10446.72, 04-Oct-2011
1239,Revenue,CCHD,S117 Placements PCT,Residential Homes,Shaw Healthcare Ltd,15925.32, 04-Oct-2011
1240,Revenue,CCHD,Under 65s PWLD - PS,Nursing Homes,Shaw Healthcare Ltd,9886.84, 04-Oct-2011
1241,Revenue,CCHD,Under 65s PWLD - KD,Residential Homes,Shaw Healthcare Ltd,9120.92, 04-Oct-2011
1242,Revenue,CCHD,S28A - Under 65,Residential Homes,Shaw Healthcare Ltd,10944.96, 04-Oct-2011
1243,Revenue,CCHD,S28A - Under 65,Residential Homes,Shaw Healthcare Ltd,11746.04, 04-Oct-2011
1244,Revenue,CCHD,S28A - Under 65,Residential Homes,Shaw Healthcare Ltd,5048.8, 04-Oct-2011
1245,Revenue,CCHD,S28A - Over 65,Residential Homes,Shaw Healthcare Ltd,4858.4, 04-Oct-2011
1246,Revenue,CCHD,Under 65s PWLD - PS,Nursing Homes,Shaw Healthcare Ltd,9886.84, 04-Oct-2011
1247,Revenue,CCHD,S28A - Over 65,Residential Homes,Shaw Healthcare Ltd,4850.4, 04-Oct-2011
1248,Revenue,CCHD,S28A - Over 65,Residential Homes,Shaw Healthcare Ltd,4858.4, 04-Oct-2011
1249,Revenue,CCHD,S28A - Over 65,Residential Homes,Shaw Healthcare Ltd,4866.4, 04-Oct-2011
1250,Revenue,CCHD,S28A - Under 65,Residential Homes,Shaw Healthcare Ltd,9120.92, 04-Oct-2011
1251,Revenue,CCHD,S28A - Over 65,Residential Homes,Shaw Healthcare Ltd,8956.92, 04-Oct-2011
1252,Revenue,CCHD,Day Care - North,Private & Voluntary Day Care,Silva Care Limited,770.82, 07-Oct-2011
1253,Revenue,CCHD,Supported Living - KH,Private & Voluntary Home Care,Silva Care Limited,4415.44, 13-Oct-2011
1254,Revenue,CCHD,Elderly Purchasing - North,Residential Homes,Simeon Care For The Elderly,1426.64, 04-Oct-2011
1255,Revenue,CCHD,Kerr House,Refuse Collection Charges,SITA UK LTD,419.97, 06-Oct-2011
1256,Revenue,CCHD,Newton House,Refuse Collection Charges,SITA UK LTD,583.14, 20-Oct-2011
1257,Revenue,CCHD,Downend Day Centre,Refuse Collection Charges,SITA UK LTD,793.08, 20-Oct-2011
1258,Revenue,CCHD,Under 65s PWLD - KD,Residential Homes,Small House Homes Limited,17308.68, 04-Oct-2011
1259,Revenue,CCHD,Day Care - South,Private & Voluntary Day Care,Smile Independent Living Support Limited,626.6, 03-Oct-2011
1260,Revenue,CCHD,Purchase of Non-Res Care - PS,Private & Voluntary Day Care,Smile Independent Living Support Limited,573.8, 18-Oct-2011
1261,Revenue,CCHD,Elderly MH non-res purchasing,Private & Voluntary Day Care,Smile Independent Living Support Limited,501, 20-Oct-2011
1262,Revenue,CCHD,Purchase of Non-Res Care - KD,Private & Voluntary Day Care,Smile Independent Living Support Limited,1068.8, 14-Oct-2011
1263,Revenue,CCHD,Purchase of Non-Res Care - KD,Private & Voluntary Day Care,Smile Independent Living Support Limited,539, 14-Oct-2011
1264,Revenue,CCHD,Supported Living - KD,Private & Voluntary Home Care,Smile Independent Living Support Limited,999.98, 14-Oct-2011
1265,Revenue,CCHD,Supported Living - KD,Private & Voluntary Home Care,Smile Independent Living Support Limited,1859.6, 14-Oct-2011
1266,Revenue,CCHD,Purchase of Non-Res Care - KD,Private & Voluntary Day Care,Smile Independent Living Support Limited,608.7, 14-Oct-2011
1267,Revenue,CCHD,Purchase of Non-Res Care - KD,Private & Voluntary Day Care,Smile Independent Living Support Limited,984.65, 14-Oct-2011
1268,Revenue,CCHD,Purchase of Non-Res Care - KD,Private & Voluntary Day Care,Smile Independent Living Support Limited,865.77, 14-Oct-2011
1269,Revenue,CCHD,Purchase of Non-Res Care - KD,Private & Voluntary Day Care,Smile Independent Living Support Limited,1656, 14-Oct-2011
1270,Revenue,CCHD,Supported Living - KD,Private & Voluntary Home Care,Smile Independent Living Support Limited,618.45, 14-Oct-2011
1271,Revenue,CCHD,Purchase of Non-Res Care - KD,Private & Voluntary Day Care,Smile Independent Living Support Limited,619.98, 14-Oct-2011
1272,Revenue,CCHD,Purchase of Non-Res Care - KD,Private & Voluntary Day Care,Smile Independent Living Support Limited,2526.29, 14-Oct-2011
1273,Revenue,CCHD,Supported Living - PS,Private & Voluntary Home Care,Smile Independent Living Support Limited,569.4, 17-Oct-2011
1274,Revenue,CCHD,Purchase of Non-Res Care - KD,Private & Voluntary Day Care,Smile Indpendent Living Support Ltd,907.67, 13-Oct-2011
1275,Revenue,CCHD,Supported Living - KD,Private & Voluntary Home Care,Smile Indpendent Living Support Ltd,4195.2, 13-Oct-2011
1276,Revenue,CCHD,Supported Living - KD,Private & Voluntary Home Care,Smile Indpendent Living Support Ltd,3869.65, 13-Oct-2011
1277,Revenue,CCHD,Delayed Transfers of Care Gran,Other Supplies & Services,South Gloucestershire Primary Care Trust,26500, 06-Oct-2011
1278,Revenue,CCHD,Rehab Services (PROMOTE),Other Supplies & Services,South Gloucestershire Primary Care Trust,417400, 06-Oct-2011
1279,Revenue,CCHD,Delayed Transfers of Care Gran,Other Supplies & Services,South Gloucestershire Primary Care Trust,35000, 06-Oct-2011
1280,Revenue,CCHD,Adult LD - Thornbury PCT,Other Supplies & Services,South Gloucestershire Primary Care Trust,3239.09, 13-Oct-2011
1281,Revenue,CCHD,Adult LD - Thornbury PCT,Other Supplies & Services,South Gloucestershire Primary Care Trust,2172.68, 27-Oct-2011
1282,Revenue,CCHD,Under 65s PWLD - KH,Residential Homes,South Wales Care Ltd,25490.4, 18-Oct-2011
1283,Revenue,CCHD,Southmead Hospital Purchasing,Nursing Homes,Southern Cross Healthcare,1586.2, 04-Oct-2011
1284,Revenue,CCHD,Elderly Purchasing - South,Nursing Homes,Southern Cross Healthcare,1287.96, 04-Oct-2011
1285,Revenue,CCHD,Southmead Hospital Purchasing,Residential Homes,Southern Cross Healthcare,1389, 04-Oct-2011
1286,Revenue,CCHD,Minor Adaptations Service,Maintenance by Contractor,Southern Electric Contracting Limited,101.18, 19-Oct-2011
1287,Revenue,CCHD,Minor Adaptations Service,Maintenance by Contractor,Southern Electric Contracting Limited,1070.56, 19-Oct-2011
1288,Revenue,CCHD,Under 65s PWLD - PS,Residential Homes,Spectrum,28281.59, 07-Oct-2011
1289,Revenue,CCHD,Under 65s PWLD - KH,Residential Homes,St Brigas,2014.4, 04-Oct-2011
1290,Revenue,CCHD,Under 65s PWLD - PS,Residential Homes,St Brigas,2907.24, 04-Oct-2011
1291,Revenue,CCHD,Under 65s PWLD - KH,Residential Homes,St Brigas,1963.52, 04-Oct-2011
1292,Revenue,CCHD,Elderly Purchasing - South,Nursing Homes,St George Nursing Home,642.5, 04-Oct-2011
1293,Revenue,CCHD,Elderly Mental Health,Nursing Homes,St George Nursing Home,1948.53, 04-Oct-2011
1294,Revenue,CCHD,Elderly Mental Health,Nursing Homes,St George Nursing Home,512.77, 04-Oct-2011
1295,Revenue,CCHD,Elderly Purchasing - South,Nursing Homes,St George Nursing Home,757.64, 04-Oct-2011
1296,Revenue,CCHD,Frenchay Hospital Purchasing,Nursing Homes,St George Nursing Home,1285, 04-Oct-2011
1297,Revenue,CCHD,Frenchay Hospital Purchasing,Nursing Homes,St George Nursing Home,1285, 04-Oct-2011
1298,Revenue,CCHD,Elderly Purchasing - South,Nursing Homes,St George Nursing Home,1293, 04-Oct-2011
1299,Revenue,CCHD,Elderly Mental Health,Nursing Homes,St George Nursing Home,1285, 04-Oct-2011
1300,Revenue,CCHD,Southmead Hospital Purchasing,Nursing Homes,St George Nursing Home,1293, 04-Oct-2011
1301,Revenue,CCHD,Southmead Hospital Purchasing,Nursing Homes,St Monicas Trust,764.72, 04-Oct-2011
1302,Revenue,CCHD,Frenchay Hospital Purchasing,Residential Homes,St Monicas Trust,1232.16, 04-Oct-2011
1303,Revenue,CCHD,Elderly Purchasing - South,Nursing Homes,St Roses School,3819.73, 28-Oct-2011
1304,Revenue,CCHD,Under 65s PWLD - PS,Residential Homes,Stepping Stones Re-Sett. Unit,8464.68, 04-Oct-2011
1305,Revenue,CCHD,Elderly Mental Health,Residential Homes,Stuart House,1809.24, 04-Oct-2011
1306,Revenue,CCHD,Southmead Hospital Purchasing,Residential Homes,Stuart House,1398.46, 04-Oct-2011
1307,Revenue,CCHD,Day Care - South,Private & Voluntary Day Care,Supported Independence Ltd,1638, 17-Oct-2011
1308,Revenue,CCHD,Supported Living - PS,Private & Voluntary Home Care,Supported Independence Ltd,702, 14-Oct-2011
1309,Revenue,CCHD,Supported Living - PS,Private & Voluntary Home Care,Supported Independence Ltd,858, 14-Oct-2011
1310,Revenue,CCHD,Supported Living - KD,Private & Voluntary Home Care,Supported Independence Ltd,936, 14-Oct-2011
1311,Revenue,CCHD,Day Care - North,Private & Voluntary Day Care,Supported Independence Ltd,507, 14-Oct-2011
1312,Revenue,CCHD,Supported Living - KD,Private & Voluntary Home Care,Supported Independence Ltd,945.75, 14-Oct-2011
1313,Revenue,CCHD,Younger MH non-res purchasing,Private & Voluntary Day Care,Supported Independence Ltd,2536.18, 14-Oct-2011
1314,Revenue,CCHD,Younger MH non-res purchasing,Private & Voluntary Day Care,Supported Independence Ltd,546, 14-Oct-2011
1315,Revenue,CCHD,Section 117 Placements MH Younger,Private & Voluntary Day Care,Supported Independence Ltd,897, 14-Oct-2011
1316,Revenue,CCHD,Younger MH non-res purchasing,Private & Voluntary Day Care,Supported Independence Ltd,1072.5, 14-Oct-2011
1317,Revenue,CCHD,Younger MH non-res purchasing,Private & Voluntary Day Care,Supported Independence Ltd,2561.39, 14-Oct-2011
1318,Revenue,CCHD,Supported Living - KD,Private & Voluntary Home Care,Supported Independence Ltd,2067, 14-Oct-2011
1319,Revenue,CCHD,Supported Living - PS,Private & Voluntary Home Care,Supported Independence Ltd,1404, 19-Oct-2011
1320,Revenue,CCHD,Supporting People Programme,Grants to Voluntary Bodies,Supported Independence Ltd,2678.48, 06-Oct-2011
1321,Revenue,CCHD,Supporting People Programme,Grants to Voluntary Bodies,Supported Independence Ltd,5538.4, 06-Oct-2011
1322,Revenue,CCHD,Supporting People Programme,Grants to Voluntary Bodies,Supported Independent Living Schemes,4465.92, 24-Oct-2011
1323,Revenue,CCHD,Supporting People Programme,Grants to Voluntary Bodies,Supported Independent Living Schemes,5388.32, 24-Oct-2011
1324,Revenue,CCHD,Supported Living - PS,Private & Voluntary Home Care,Supported Independent Living Schemes,642.96, 07-Oct-2011
1325,Revenue,CCHD,Frenchay Hospital Purchasing,Residential Homes,T/A Stonebow House Residential Home,1218.16, 04-Oct-2011
1326,Revenue,CCHD,Elderly Purchasing - South,Residential Homes,The Beeches,614.5, 04-Oct-2011
1327,Revenue,CCHD,Frenchay Hospital Purchasing,Residential Homes,The Beeches,944.24, 04-Oct-2011
1328,Revenue,CCHD,Elderly Purchasing - South,Residential Homes,The Beeches,1098.68, 04-Oct-2011
1329,Revenue,CCHD,Younger MH non-res purchasing,Private & Voluntary Day Care,The Brandon Trust,1306.62, 20-Oct-2011
1330,Revenue,CCHD,Younger MH non-res purchasing,Private & Voluntary Day Care,The Brandon Trust,1182.18, 20-Oct-2011
1331,Revenue,CCHD,Younger MH non-res purchasing,Private & Voluntary Day Care,The Brandon Trust,933.3, 20-Oct-2011
1332,Revenue,CCHD,Brandon Day Care,Private & Voluntary Day Care,The Brandon Trust,19177.06, 18-Oct-2011
1333,Revenue,CCHD,Purchase of Non-Res Care - KH,Private & Voluntary Day Care,The Brandon Trust,804.63, 17-Oct-2011
1334,Revenue,CCHD,Day Care - North,Private & Voluntary Day Care,The Brandon Trust,902, 07-Oct-2011
1335,Revenue,CCHD,Purchase of Non-Res Care - PS,Private & Voluntary Day Care,The Brandon Trust,789.25, 04-Oct-2011
1336,Revenue,CCHD,Purchase of Non-Res Care - KD,Private & Voluntary Day Care,The Brandon Trust,5453, 03-Oct-2011
1337,Revenue,CCHD,Purchase of Non-Res Care - KD,Private & Voluntary Day Care,The Brandon Trust,1506.75, 04-Oct-2011
1338,Revenue,CCHD,Purchase of Non-Res Care - KD,Private & Voluntary Day Care,The Brandon Trust,1845, 03-Oct-2011
1339,Revenue,CCHD,Purchase of Non-Res Care - KH,Private & Voluntary Day Care,The Brandon Trust,6898.25, 19-Oct-2011
1340,Revenue,CCHD,Purchase of Non-Res Care - KH,Private & Voluntary Day Care,The Brandon Trust,4028.25, 19-Oct-2011
1341,Revenue,CCHD,Purchase of Non-Res Care - KD,Private & Voluntary Day Care,The Brandon Trust,871.08, 03-Oct-2011
1342,Revenue,CCHD,Purchase of Non-Res Care - KH,Private & Voluntary Day Care,The Brandon Trust,622.2, 19-Oct-2011
1343,Revenue,CCHD,Younger MH non-res purchasing,Private & Voluntary Day Care,The Brandon Trust,622.2, 06-Oct-2011
1344,Revenue,CCHD,Purchase of Non-Res Care - KH,Private & Voluntary Day Care,The Brandon Trust,559.98, 17-Oct-2011
1345,Revenue,CCHD,Purchase of Non-Res Care - KD,Private & Voluntary Day Care,The Brandon Trust,559.98, 03-Oct-2011
1346,Revenue,CCHD,Purchase of Non-Res Care - PS,Private & Voluntary Day Care,The Brandon Trust,1702.86, 04-Oct-2011
1347,Revenue,CCHD,Purchase of Non-Res Care - KH,Private & Voluntary Day Care,The Brandon Trust,1119.96, 19-Oct-2011
1348,Revenue,CCHD,Supported Living - KD,Private & Voluntary Home Care,The Brandon Trust,8856.25, 27-Oct-2011
1349,Revenue,CCHD,Brandon Day Care,Private & Voluntary Day Care,The Brandon Trust,19177.06, 25-Oct-2011
1350,Revenue,CCHD,Younger MH non-res purchasing,Private & Voluntary Day Care,The Brandon Trust,1306.62, 26-Oct-2011
1351,Revenue,CCHD,Under 65s PWLD - PS,Nursing Homes,The Brandon Trust  Olympus House,5641, 04-Oct-2011
1352,Revenue,CCHD,S28A - Over 65,Residential Homes,The Brandon Trust  Olympus House,3537.96, 04-Oct-2011
1353,Revenue,CCHD,Under 65s PWLD - PS,Residential Homes,The Brandon Trust  Olympus House,11149.88, 04-Oct-2011
1354,Revenue,CCHD,Under 65s PWLD - KD,Residential Homes,The Brandon Trust  Olympus House,3227.8, 04-Oct-2011
1355,Revenue,CCHD,Under 65s PWLD - KD,Residential Homes,The Brandon Trust  Olympus House,5108.24, 04-Oct-2011
1356,Revenue,CCHD,Elderly PWLD - PS,Residential Homes,The Brandon Trust  Olympus House,3338.16, 04-Oct-2011
1357,Revenue,CCHD,S28A - Over 65,Residential Homes,The Brandon Trust  Olympus House,3781.68, 04-Oct-2011
1358,Revenue,CCHD,S28A - Over 65,Residential Homes,The Brandon Trust  Olympus House,3788.72, 04-Oct-2011
1359,Revenue,CCHD,Under 65s PWLD - PS,Nursing Homes,The Brandon Trust  Olympus House,5054.2, 04-Oct-2011
1360,Revenue,CCHD,S28A - Under 65,Residential Homes,The Brandon Trust  Olympus House,5944.52, 04-Oct-2011
1361,Revenue,CCHD,S28A - Under 65,Residential Homes,The Brandon Trust  Olympus House,4815.96, 04-Oct-2011
1362,Revenue,CCHD,S28A - Under 65,Residential Homes,The Brandon Trust  Olympus House,5944.52, 04-Oct-2011
1363,Revenue,CCHD,S28A - Under 65,Residential Homes,The Brandon Trust  Olympus House,5780.52, 04-Oct-2011
1364,Revenue,CCHD,S28A - Over 65,Nursing Homes,The Brandon Trust  Olympus House,5368.28, 04-Oct-2011
1365,Revenue,CCHD,S28A - Over 65,Nursing Homes,The Brandon Trust  Olympus House,5720.76, 04-Oct-2011
1366,Revenue,CCHD,S28A - Under 65,Residential Homes,The Brandon Trust  Olympus House,5189.52, 04-Oct-2011
1367,Revenue,CCHD,S28A - Under 65,Residential Homes,The Brandon Trust  Olympus House,5262.04, 04-Oct-2011
1368,Revenue,CCHD,S28A - Over 65,Residential Homes,The Brandon Trust  Olympus House,7104.36, 04-Oct-2011
1369,Revenue,CCHD,S28A - Under 65,Residential Homes,The Brandon Trust  Olympus House,5944.52, 04-Oct-2011
1370,Revenue,CCHD,S28A - Under 65,Residential Homes,The Brandon Trust  Olympus House,5944.48, 04-Oct-2011
1371,Revenue,CCHD,S28A - Under 65,Residential Homes,The Brandon Trust  Olympus House,4603.08, 04-Oct-2011
1372,Revenue,CCHD,S28A - Under 65,Residential Homes,The Brandon Trust  Olympus House,5262.08, 04-Oct-2011
1373,Revenue,CCHD,S28A - Over 65,Residential Homes,The Brandon Trust  Olympus House,4662.84, 04-Oct-2011
1374,Revenue,CCHD,S28A - Over 65,Residential Homes,The Brandon Trust  Olympus House,32770.95, 04-Oct-2011
1375,Revenue,CCHD,Elderly Mental Health,Nursing Homes,The Cidermill,954, 04-Oct-2011
1376,Revenue,CCHD,Elderly Mental Health,Residential Homes,The Cidermill,1389, 04-Oct-2011
1377,Revenue,CCHD,Elderly Mental Health,Nursing Homes,The Cidermill,1181.8, 04-Oct-2011
1378,Revenue,CCHD,Elderly Mental Health,Residential Homes,The Cidermill,1389, 04-Oct-2011
1379,Revenue,CCHD,Elderly Purchasing - South,Residential Homes,The Gables Residential Home,1285.04, 04-Oct-2011
1380,Revenue,CCHD,Frenchay Hospital Purchasing,Residential Homes,The Gables Residential Home,1229, 04-Oct-2011
1381,Revenue,CCHD,Elderly Purchasing - South,Residential Homes,The Gables Residential Home,1084.28, 04-Oct-2011
1382,Revenue,CCHD,Elderly Mental Health,Residential Homes,The Gables Residential Home,1172.52, 04-Oct-2011
1383,Revenue,CCHD,Section 117 Placements,Residential Homes,The Gables Residential Home,2156.84, 04-Oct-2011
1384,Revenue,CCHD,Elderly Mental Health,Residential Homes,The Grove,983.64, 04-Oct-2011
1385,Revenue,CCHD,Elderly Mental Health,Residential Homes,The Grove,1582.4, 04-Oct-2011
1386,Revenue,CCHD,Elderly Mental Health,Residential Homes,The Grove,1112.08, 04-Oct-2011
1387,Revenue,CCHD,Elderly Mental Health,Residential Homes,The Grove,580.64, 04-Oct-2011
1388,Revenue,CCHD,Section 117 Placements,Residential Homes,The Grove,2040, 04-Oct-2011
1389,Revenue,CCHD,Elderly Mental Health,Residential Homes,The Grove,1475.92, 04-Oct-2011
1390,Revenue,CCHD,Southmead Hospital Purchasing,Residential Homes,The Grove,1318.76, 04-Oct-2011
1391,Revenue,CCHD,Elderly Mental Health,Residential Homes,The Grove,1480.48, 04-Oct-2011
1392,Revenue,CCHD,Frenchay Hospital Purchasing,Residential Homes,The Grove,814.32, 04-Oct-2011
1393,Revenue,CCHD,Supporting People Programme,Grants to Voluntary Bodies,The Hatch Camphill Community,1168.28, 10-Oct-2011
1394,Revenue,CCHD,Supporting People Programme,Grants to Voluntary Bodies,The Hatch Camphill Community,1168.28, 10-Oct-2011
1395,Revenue,CCHD,Supporting People Programme,Grants to Voluntary Bodies,The Hatch Camphill Community,1168.28, 10-Oct-2011
1396,Revenue,CCHD,Supporting People Programme,Grants to Voluntary Bodies,The Hatch Camphill Community,1168.28, 10-Oct-2011
1397,Revenue,CCHD,Supporting People Programme,Grants to Voluntary Bodies,The Hatch Camphill Community,1168.28, 10-Oct-2011
1398,Revenue,CCHD,Supporting People Programme,Grants to Voluntary Bodies,The Hatch Camphill Community,1168.28, 10-Oct-2011
1399,Revenue,CCHD,Supporting People Programme,Grants to Voluntary Bodies,The Hatch Camphill Community,1168.28, 10-Oct-2011
1400,Revenue,CCHD,Supporting People Programme,Grants to Voluntary Bodies,The Hatch Camphill Community,1168.28, 10-Oct-2011
1401,Revenue,CCHD,Supporting People Programme,Grants to Voluntary Bodies,The Hatch Camphill Community,1168.28, 10-Oct-2011
1402,Revenue,CCHD,Frenchay Hospital Purchasing,Nursing Homes,The Heathers,1285, 04-Oct-2011
1403,Revenue,CCHD,Elderly Mental Health,Nursing Homes,The Heathers,1262.52, 04-Oct-2011
1404,Revenue,CCHD,Elderly Purchasing - South,Nursing Homes,The Heathers,1285, 04-Oct-2011
1405,Revenue,CCHD,Frenchay Hospital Purchasing,Nursing Homes,The Heathers,718.6, 04-Oct-2011
1406,Revenue,CCHD,Southmead Hospital Purchasing,Nursing Homes,The Heathers,1249.44, 04-Oct-2011
1407,Revenue,CCHD,Southmead Hospital Purchasing,Nursing Homes,The Heathers,996.6, 04-Oct-2011
1408,Revenue,CCHD,Frenchay Hospital Purchasing,Nursing Homes,The Heathers,1288.24, 04-Oct-2011
1409,Revenue,CCHD,Frenchay Hospital Purchasing,Nursing Homes,The Heathers,1215.84, 04-Oct-2011
1410,Revenue,CCHD,Southmead Hospital Purchasing,Nursing Homes,The Heathers,738.32, 04-Oct-2011
1411,Revenue,CCHD,Frenchay Hospital Purchasing,Nursing Homes,The Heathers,1285, 04-Oct-2011
1412,Revenue,CCHD,Elderly Purchasing - North,Nursing Homes,The Heathers,1140.72, 04-Oct-2011
1413,Revenue,CCHD,Elderly Purchasing - South,Residential Homes,The Manor Cottage,738.68, 04-Oct-2011
1414,Revenue,CCHD,Elderly Purchasing - South,Residential Homes,The Manor Cottage,723.24, 04-Oct-2011
1415,Revenue,CCHD,Elderly Purchasing - South,Residential Homes,The Manor Cottage,1421.44, 04-Oct-2011
1416,Revenue,CCHD,Elderly Purchasing - South,Residential Homes,The Manor Cottage,894.56, 04-Oct-2011
1417,Revenue,CCHD,Under 65s PWLD - KH,Residential Homes,The Manor House,2932, 04-Oct-2011
1418,Revenue,CCHD,Under 65s PWLD - KD,Residential Homes,The Manor House,780.2, 04-Oct-2011
1419,Revenue,CCHD,Under 65s PWLD - KD,Residential Homes,The Manor House,750.1, 04-Oct-2011
1420,Revenue,CCHD,Under 65s PWLD - KH,Residential Homes,The Manor House,53301.35, 04-Oct-2011
1421,Revenue,CCHD,Under 65s PWLD - KH,Residential Homes,The Manor House,4779.6, 04-Oct-2011
1422,Revenue,CCHD,Under 65s PWLD - KH,Residential Homes,The Manor House,1917.42, 04-Oct-2011
1423,Revenue,CCHD,Under 65s PWLD - KH,Residential Homes,The Manor House,39079.3, 04-Oct-2011
1424,Revenue,CCHD,Under 65s PWLD - KH,Residential Homes,The Manor House,3398.2, 04-Oct-2011
1425,Revenue,CCHD,Under 65s PWLD - KH,Residential Homes,The Manor House,29981.88, 04-Oct-2011
1426,Revenue,CCHD,Under 65s PWLD - KH,Residential Homes,The Manor House,2607.12, 04-Oct-2011
1427,Revenue,CCHD,Under 65s PWLD - KD,Residential Homes,The Manor House,10367.54, 04-Oct-2011
1428,Revenue,CCHD,Under 65s PWLD - KD,Residential Homes,The Manor House,2713, 04-Oct-2011
1429,Revenue,CCHD,Under 65s PWLD - PS,Residential Homes,The Manor House,17299.22, 04-Oct-2011
1430,Revenue,CCHD,Under 65s PWLD - PS,Residential Homes,The Manor House,3177.2, 04-Oct-2011
1431,Revenue,CCHD,Under 65s PWLD - KD,Residential Homes,The Manor House,15843.55, 04-Oct-2011
1432,Revenue,CCHD,Under 65s PWLD - KD,Residential Homes,The Manor House,2755.4, 04-Oct-2011
1433,Revenue,CCHD,Under 65s PWLD - KH,Residential Homes,The Manor House,14990.94, 04-Oct-2011
1434,Revenue,CCHD,Under 65s PWLD - KH,Residential Homes,The Manor House,2607.12, 04-Oct-2011
1435,Revenue,CCHD,Under 65s PWLD - KH,Residential Homes,The Manor House,17628.81, 04-Oct-2011
1436,Revenue,CCHD,Under 65s PWLD - KH,Residential Homes,The Manor House,3249.44, 04-Oct-2011
1437,Revenue,CCHD,Under 65s PWLD - KH,Residential Homes,The Manor House,33641.18, 04-Oct-2011
1438,Revenue,CCHD,Under 65s PWLD - KH,Residential Homes,The Manor House,5850.64, 04-Oct-2011
1439,Revenue,CCHD,S28A - Under 65,Residential Homes,The Manor House,27160.7, 04-Oct-2011
1440,Revenue,CCHD,S28A - Under 65,Residential Homes,The Manor House,4723.6, 04-Oct-2011
1441,Revenue,CCHD,Under 65s PWLD - KH,Residential Homes,The Manor House,14311.98, 04-Oct-2011
1442,Revenue,CCHD,Under 65s PWLD - KH,Residential Homes,The Manor House,2655.68, 04-Oct-2011
1443,Revenue,CCHD,Under 65s PWLD - KH,Residential Homes,The Manor House,17897.45, 04-Oct-2011
1444,Revenue,CCHD,Under 65s PWLD - KH,Residential Homes,The Manor House,3315.88, 04-Oct-2011
1445,Revenue,CCHD,Under 65s PWLD - KH,Residential Homes,The Manor House,16665.34, 04-Oct-2011
1446,Revenue,CCHD,Under 65s PWLD - KH,Residential Homes,The Manor House,2898.32, 04-Oct-2011
1447,Revenue,CCHD,Under 65s PWLD - KH,Residential Homes,The Manor House,18556.4, 04-Oct-2011
1448,Revenue,CCHD,Under 65s PWLD - KH,Residential Homes,The Manor House,3227.2, 04-Oct-2011
1449,Revenue,CCHD,Under 65s PWLD - KH,Residential Homes,The Manor House,13557.29, 04-Oct-2011
1450,Revenue,CCHD,Under 65s PWLD - KH,Residential Homes,The Manor House,10804.83, 04-Oct-2011
1451,Revenue,CCHD,Under 65s PWLD - KH,Residential Homes,The Manor House,4010.43, 04-Oct-2011
1452,Revenue,CCHD,Under 65s PWLD - KH,Residential Homes,The Manor House,4714.32, 04-Oct-2011
1453,Revenue,CCHD,Under 65s PWLD - KH,Residential Homes,The Manor House,1604.17, 04-Oct-2011
1454,Revenue,CCHD,Under 65s PWLD - PS,Residential Homes,The Manor House,16222.59, 04-Oct-2011
1455,Revenue,CCHD,Under 65s PWLD - PS,Residential Homes,The Manor House,3011.72, 04-Oct-2011
1456,Revenue,CCHD,Under 65s PWLD - PS,Residential Homes,The Manor House,15246.93, 04-Oct-2011
1457,Revenue,CCHD,Under 65s PWLD - PS,Residential Homes,The Manor House,2829.88, 04-Oct-2011
1458,Revenue,CCHD,Under 65s PWLD - KH,Residential Homes,The Manor House,12349.48, 04-Oct-2011
1459,Revenue,CCHD,Under 65s PWLD - KH,Residential Homes,The Manor House,7200.45, 04-Oct-2011
1460,Revenue,CCHD,Under 65s PWLD - KH,Residential Homes,The Manor House,4322.32, 04-Oct-2011
1461,Revenue,CCHD,Under 65s PWLD - KH,Residential Homes,The Manor House,24178.52, 04-Oct-2011
1462,Revenue,CCHD,Under 65s PWLD - KH,Residential Homes,The Manor House,4204.96, 04-Oct-2011
1463,Revenue,CCHD,Under 65s PWLD - KD,Residential Homes,The Manor House,16993.55, 04-Oct-2011
1464,Revenue,CCHD,Under 65s PWLD - KD,Residential Homes,The Manor House,3155.32, 04-Oct-2011
1465,Revenue,CCHD,Under 65s PWLD - KD,Residential Homes,The Manor House,1498.68, 04-Oct-2011
1466,Revenue,CCHD,Under 65s PWLD - KD,Residential Homes,The Manor House,1044.27, 04-Oct-2011
1467,Revenue,CCHD,Elderly PWLD - KH,Residential Homes,The Manor House,12937.73, 04-Oct-2011
1468,Revenue,CCHD,Elderly PWLD - KH,Residential Homes,The Manor House,2250.04, 04-Oct-2011
1469,Revenue,CCHD,Under 65s PWLD - KD,Residential Homes,The Manor House,743.3, 04-Oct-2011
1470,Revenue,CCHD,Under 65s PWLD - PS,Residential Homes,The Manor House,16913.05, 04-Oct-2011
1471,Revenue,CCHD,Under 65s PWLD - PS,Residential Homes,The Manor House,3140.28, 04-Oct-2011
1472,Revenue,CCHD,Under 65s PWLD - KH,Residential Homes,The Manor House,2033.04, 04-Oct-2011
1473,Revenue,CCHD,Under 65s PWLD - KH,Residential Homes,The Manor House,26946.8, 04-Oct-2011
1474,Revenue,CCHD,Under 65s PWLD - KH,Residential Homes,The Manor House,4686.4, 04-Oct-2011
1475,Revenue,CCHD,Under 65s PWLD - KH,Residential Homes,The Manor House,15270.16, 04-Oct-2011
1476,Revenue,CCHD,Under 65s PWLD - KH,Residential Homes,The Manor House,2655.68, 04-Oct-2011
1477,Revenue,CCHD,Elderly Mental Health,Residential Homes,The Old Vicarage Residential Home,1378.84, 04-Oct-2011
1478,Revenue,CCHD,Elderly Mental Health,Residential Homes,The Old Vicarage Residential Home,1518.8, 04-Oct-2011
1479,Revenue,CCHD,Under 65s PWLD - KD,Residential Homes,The Red House Residential Home,2008.36, 04-Oct-2011
1480,Revenue,CCHD,Under 65s PWLD - KD,Residential Homes,The Red House Residential Home,1920.8, 04-Oct-2011
1481,Revenue,CCHD,Elderly PWLD - KD,Residential Homes,The Red House Residential Home,1844.36, 04-Oct-2011
1482,Revenue,CCHD,Under 65s PWLD - KD,Residential Homes,The Red House Residential Home,2008.36, 04-Oct-2011
1483,Revenue,CCHD,Elderly PWLD - KD,Residential Homes,The Red House Residential Home,1844.36, 04-Oct-2011
1484,Revenue,CCHD,Home Care Purch North,Other Small Contracts,The Royal Bank of Scotland Commercial,950.78, 03-Oct-2011
1485,Revenue,CCHD,Contracts & Commissioning Team,Other Small Contracts,The Royal Bank of Scotland Commercial,5000, 07-Oct-2011
1486,Revenue,CCHD,Contracts & Commissioning Team,Other Small Contracts,The Royal Bank of Scotland Commercial,5000, 14-Oct-2011
1487,Revenue,CCHD,Contracts & Commissioning Team,Other Small Contracts,The Royal Bank of Scotland Commercial,5000, 21-Oct-2011
1488,Revenue,CCHD,Contracts & Commissioning Team,Other Small Contracts,The Royal Bank of Scotland Commercial,5000, 28-Oct-2011
1489,Revenue,CCHD,Home Care Purch North,Other Small Contracts,The Royal Bank of Scotland Commercial,1095, 21-Oct-2011
1490,Revenue,CCHD,Home Care Purch North,Other Small Contracts,The Royal Bank of Scotland Commercial,1095, 21-Oct-2011
1491,Revenue,CCHD,Home Care Purch North,Other Small Contracts,The Royal Bank of Scotland Commercial,1095, 31-Oct-2011
1492,Revenue,CCHD,Under 65s PWLD - PS,Residential Homes,The Stanstead Centre,3477.88, 04-Oct-2011
1493,Revenue,CCHD,Under 65s PWLD - KD,Residential Homes,The Thomas Moore Project,1730.32, 04-Oct-2011
1494,Revenue,CCHD,Elderly Mental Health,Residential Homes,The Worthies,1611.26, 04-Oct-2011
1495,Revenue,CCHD,Elderly Mental Health,Residential Homes,The Worthies,1383.2, 04-Oct-2011
1496,Revenue,CCHD,Elderly Mental Health,Residential Homes,The Worthies,1389, 04-Oct-2011
1497,Revenue,CCHD,Southmead Hospital Purchasing,Residential Homes,The Worthies,861.2, 04-Oct-2011
1498,Revenue,CCHD,Training - Adult Services,Books & Publications,Thomson Reuters,1497.3, 25-Oct-2011
1499,Revenue,CCHD,Elderly Purchasing - South,Nursing Homes,Thornhill House,1790.64, 04-Oct-2011
1500,Revenue,CCHD,Under 65s PWLD - KD,Residential Homes,Three Roses Home,1854.64, 04-Oct-2011
1501,Revenue,CCHD,Purchasing Phys Dis - North,Residential Homes,Tracs Group Ltd,6112.4, 04-Oct-2011
1502,Revenue,CCHD,Purchasing Phys Dis - North,Residential Homes,Tracs Group Ltd,4467.68, 04-Oct-2011
1503,Revenue,CCHD,Under 65s PWLD - PS,Residential Homes,Tracs Group Ltd,6414.36, 04-Oct-2011
1504,Revenue,CCHD,Elderly Purchasing - South,Residential Homes,Tracs Group Ltd,6835.76, 04-Oct-2011
1505,Revenue,CCHD,Training - Adult Services,Training Expenses,Tracy Packer,530, 13-Oct-2011
1506,Revenue,CCHD,Minor Adaptations Service,Daily Living Equipment,TVM Cheltenham Limited,1125, 13-Oct-2011
1507,Revenue,CCHD,Minor Adaptations Service,Daily Living Equipment,TVM Cheltenham Limited,709.25, 13-Oct-2011
1508,Revenue,CCHD,Minor Adaptations Service,Daily Living Equipment,TVM Cheltenham Limited,837.5, 13-Oct-2011
1509,Revenue,CCHD,Minor Adaptations Service,Maintenance by Contractor,TVM Cheltenham Limited,1260.57, 13-Oct-2011
1510,Revenue,CCHD,Minor Adaptations Service,Maintenance by Contractor,TVM Cheltenham Limited,772.32, 07-Oct-2011
1511,Revenue,CCHD,Minor Adaptations Service,Maintenance by Contractor,TVM Cheltenham Limited,660.15, 07-Oct-2011
1512,Revenue,CCHD,Minor Adaptations Service,Daily Living Equipment,TVM Cheltenham Limited,910.83, 17-Oct-2011
1513,Revenue,CCHD,Minor Adaptations Service,Daily Living Equipment,TVM Cheltenham Limited,910.83, 13-Oct-2011
1514,Revenue,CCHD,Minor Adaptations Service,Daily Living Equipment,TVM Cheltenham Limited,826, 24-Oct-2011
1515,Revenue,CCHD,Minor Adaptations Service,Daily Living Equipment,TVM Cheltenham Limited,1184, 24-Oct-2011
1516,Revenue,CCHD,Minor Adaptations Service,Daily Living Equipment,TVM Cheltenham Limited,843, 28-Oct-2011
1517,Revenue,CCHD,Minor Adaptations Service,Daily Living Equipment,TVM Cheltenham Limited,1542, 28-Oct-2011
1518,Revenue,CCHD,Minor Adaptations Service,Daily Living Equipment,TVM Cheltenham Limited,1612, 28-Oct-2011
1519,Revenue,CCHD,Under 65s PWLD - KD,Residential Homes,Ty Hafod Tudor,574.32, 04-Oct-2011
1520,Revenue,CCHD,PWLD S 117 Placements,Residential Homes,Unit 2 Office 6,7341.4, 04-Oct-2011
1521,Revenue,CCHD,Training - Adult Services,Training Expenses,University Of The West Of England,568, 20-Oct-2011
1522,Revenue,CCHD,Southmead Hospital Purchasing,Residential Homes,Vaughan Lee House,1162.2, 04-Oct-2011
1523,Revenue,CCHD,Housing Needs,Agency Staff (Admin/Support Staff) Pay,Venn Group Limited,669.33, 06-Oct-2011
1524,Revenue,CCHD,Homelessness Grant,Agency Staff (Admin/Support Staff) Pay,Venn Group Limited,669.33, 13-Oct-2011
1525,Revenue,CCHD,Homelessness Grant,Agency Staff (Admin/Support Staff) Pay,Venn Group Limited,669.33, 13-Oct-2011
1526,Revenue,CCHD,Elderly Mental Health,Residential Homes,Ventura Residential Care Home,1229, 04-Oct-2011
1527,Revenue,CCHD,Under 65s PWLD - PS,Residential Homes,Victoria Court,11023.36, 04-Oct-2011
1528,Revenue,CCHD,Elderly PWLD - KD,Residential Homes,Victoria Court,8535.32, 04-Oct-2011
1529,Revenue,CCHD,Under 65s PWLD - PS,Residential Homes,Visions,3542.56, 04-Oct-2011
1530,Revenue,CCHD,Fiveways Kingswood - Adult Car,Radio Pager/Mobile Phones,Vodafone Corporate Limited,7.88, 19-Oct-2011
1531,Revenue,CCHD,Adult Learning Difficulties - Kingswood,Radio Pager/Mobile Phones,Vodafone Corporate Limited,6.88, 19-Oct-2011
1532,Revenue,CCHD,LD - Kingswood PCT,Radio Pager/Mobile Phones,Vodafone Corporate Limited,6, 19-Oct-2011
1533,Revenue,CCHD,Adult LD - Thornbury,Radio Pager/Mobile Phones,Vodafone Corporate Limited,75.15, 19-Oct-2011
1534,Revenue,CCHD,Adult LD - Thornbury PCT,Radio Pager/Mobile Phones,Vodafone Corporate Limited,54.69, 19-Oct-2011
1535,Revenue,CCHD,Adult Learning Difficulties -,Radio Pager/Mobile Phones,Vodafone Corporate Limited,186.57, 19-Oct-2011
1536,Revenue,CCHD,Adult LD - Fiveways PCT,Radio Pager/Mobile Phones,Vodafone Corporate Limited,128.5, 19-Oct-2011
1537,Revenue,CCHD,Under 65s PWLD - PS,Residential Homes,Voyage Ltd,2931.44, 04-Oct-2011
1538,Revenue,CCHD,Under 65s PWLD - KD,Residential Homes,Voyage Ltd,6775.4, 04-Oct-2011
1539,Revenue,CCHD,Under 65s PWLD - KD,Residential Homes,Voyage Ltd,8041.56, 04-Oct-2011
1540,Revenue,CCHD,S28A - Under 65,Residential Homes,Voyage Ltd,5945, 04-Oct-2011
1541,Revenue,CCHD,Under 65s PWLD - PS,Residential Homes,Voyage Ltd,6295.08, 04-Oct-2011
1542,Revenue,CCHD,Under 65s PWLD - PS,Residential Homes,Voyage Ltd,5458.52, 04-Oct-2011
1543,Revenue,CCHD,Under 65s PWLD - PS,Residential Homes,Voyage Ltd,6072.92, 04-Oct-2011
1544,Revenue,CCHD,Under 65s PWLD - PS,Residential Homes,Voyage Ltd,6233, 04-Oct-2011
1545,Revenue,CCHD,Purchasing Phys Dis - South,Residential Homes,Voyage Ltd,5493.72, 04-Oct-2011
1546,Revenue,CCHD,Under 65s PWLD - KH,Residential Homes,Voyage Ltd,5578.56, 04-Oct-2011
1547,Revenue,CCHD,Under 65s PWLD - KH,Residential Homes,Voyage Ltd,5144.08, 04-Oct-2011
1548,Revenue,CCHD,Elderly Mental Health,Residential Homes,Wayside Residential Care Home,1389, 04-Oct-2011
1549,Revenue,CCHD,Elderly Mental Health,Residential Homes,Wayside Residential Care Home,1322.32, 04-Oct-2011
1550,Revenue,CCHD,Frenchay Hospital Purchasing,Residential Homes,Wayside Residential Care Home,1305.84, 04-Oct-2011
1551,Revenue,CCHD,Southmead Hospital Purchasing,Residential Homes,Wayside Residential Care Home,7661.6, 04-Oct-2011
1552,Revenue,CCHD,Southmead Hospital Purchasing,Residential Homes,Wayside Residential Care Home,1366.4, 04-Oct-2011
1553,Revenue,CCHD,Elderly Mental Health,Residential Homes,Wayside Residential Care Home,1175.4, 04-Oct-2011
1554,Revenue,CCHD,Southmead Hospital Purchasing,Residential Homes,Wayside Residential Care Home,1264.56, 04-Oct-2011
1555,Revenue,CCHD,Elderly Purchasing - South,Residential Homes,Wayside Residential Care Home,1203.52, 04-Oct-2011
1556,Revenue,CCHD,Alexandra Way,Furniture & Fittings Loose,Webber & Spencer Limited,480, 05-Oct-2011
1557,Revenue,CCHD,PWLD S 117 Placements,Residential Homes,West Court,7773.44, 04-Oct-2011
1558,Revenue,CCHD,Elderly Purchasing - North,Residential Homes,Westbury Nursing Home,1482.2, 04-Oct-2011
1559,Revenue,CCHD,Elderly Mental Health,Residential Homes,Westbury Nursing Home,1723.84, 04-Oct-2011
1560,Revenue,CCHD,Frenchay Hospital Purchasing,Residential Homes,Wickwar Nursing Home  Castle House,783, 04-Oct-2011
1561,Revenue,CCHD,Elderly Purchasing - North,Residential Homes,Wickwar Nursing Home  Castle House,1157.16, 04-Oct-2011
1562,Revenue,CCHD,Southmead Hospital Purchasing,Nursing Homes,Wickwar Nursing Home  Castle House,5349.97, 04-Oct-2011
1563,Revenue,CCHD,Southmead Hospital Purchasing,Nursing Homes,Wickwar Nursing Home  Castle House,1302.6, 04-Oct-2011
1564,Revenue,CCHD,Southmead Hospital Purchasing,Nursing Homes,Wickwar Nursing Home  Castle House,710.32, 04-Oct-2011
1565,Revenue,CCHD,Elderly Purchasing - North,Residential Homes,Wickwar Nursing Home  Castle House,1201.88, 04-Oct-2011
1566,Revenue,CCHD,Frenchay Hospital Purchasing,Nursing Homes,Wickwar Nursing Home  Castle House,969.24, 04-Oct-2011
1567,Revenue,CCHD,Elderly Purchasing - North,Residential Homes,Wickwar Nursing Home  Castle House,1339.48, 04-Oct-2011
1568,Revenue,CCHD,Frenchay Hospital Purchasing,Residential Homes,Wickwar Nursing Home  Castle House,1229, 04-Oct-2011
1569,Revenue,CCHD,Elderly Purchasing - North,Nursing Homes,Wickwar Nursing Home  Castle House,1285, 04-Oct-2011
1570,Revenue,CCHD,Elderly Purchasing - North,Nursing Homes,Wickwar Nursing Home  Castle House,1396, 04-Oct-2011
1571,Revenue,CCHD,Elderly Purchasing - North,Residential Homes,Wickwar Nursing Home  Castle House,1216.04, 04-Oct-2011
1572,Revenue,CCHD,Frenchay Hospital Purchasing,Nursing Homes,Wickwar Nursing Home  Castle House,1501.44, 04-Oct-2011
1573,Revenue,CCHD,Frenchay Hospital Purchasing,Nursing Homes,Wickwar Nursing Home  Castle House,1009.72, 04-Oct-2011
1574,Revenue,CCHD,Southmead Hospital Purchasing,Nursing Homes,Wickwar Nursing Home  Castle House,1070.52, 04-Oct-2011
1575,Revenue,CCHD,Elderly Purchasing - North,Residential Homes,Wickwar Nursing Home  Castle House,1363.76, 04-Oct-2011
1576,Revenue,CCHD,Frenchay Hospital Purchasing,Nursing Homes,Wickwar Nursing Home  Castle House,1285, 04-Oct-2011
1577,Revenue,CCHD,Elderly Purchasing - North,Nursing Homes,Wickwar Nursing Home  Castle House,1378.44, 04-Oct-2011
1578,Revenue,CCHD,Purchasing Phys Dis - North,Nursing Homes,Wickwar Nursing Home  Castle House,1101.84, 04-Oct-2011
1579,Revenue,CCHD,Frenchay Hospital Purchasing,Residential Homes,Willow Cottage,1055.12, 04-Oct-2011
1580,Revenue,CCHD,Southmead Hospital Purchasing,Residential Homes,Willow Cottage,1382.6, 04-Oct-2011
1581,Revenue,CCHD,Frenchay Hospital Purchasing,Residential Homes,Willow Cottage,1448.84, 04-Oct-2011
1582,Revenue,CCHD,Elderly Purchasing - North,Residential Homes,Willow Cottage,1354.68, 04-Oct-2011
1583,Revenue,CCHD,Southmead Hospital Purchasing,Residential Homes,Willow Cottage,1383.32, 04-Oct-2011
1584,Revenue,CCHD,Frenchay Hospital Purchasing,Nursing Homes,Willow Cottage,1016.8, 04-Oct-2011
1585,Revenue,CCHD,Frenchay Hospital Purchasing,Nursing Homes,Willow Cottage,969.96, 04-Oct-2011
1586,Revenue,CCHD,South Glos Users in South Glos Homes,Nursing Homes,Willow Cottage,931.71, 04-Oct-2011
1587,Revenue,CCHD,Elderly Purchasing - North,Nursing Homes,Willow Cottage,1945.44, 04-Oct-2011
1588,Revenue,CCHD,Frenchay Hospital Purchasing,Nursing Homes,Willow Cottage,1636.2, 04-Oct-2011
1589,Revenue,CCHD,Southmead Hospital Purchasing,Nursing Homes,Willow Cottage,1442.72, 04-Oct-2011
1590,Revenue,CCHD,Purchasing Phys Dis - North,Nursing Homes,Willow Cottage,1652.08, 04-Oct-2011
1591,Revenue,CCHD,Elderly Purchasing - North,Nursing Homes,Willow Cottage,1215.44, 04-Oct-2011
1592,Revenue,CCHD,South Glos Users in South Glos Homes,Nursing Homes,Willow Cottage,838.54, 04-Oct-2011
1593,Revenue,CCHD,Elderly Purchasing - South,Nursing Homes,Willow Cottage,1741, 04-Oct-2011
1594,Revenue,CCHD,Southmead Hospital Purchasing,Nursing Homes,Willow Cottage,1294.68, 04-Oct-2011
1595,Revenue,CCHD,Supporting People Programme,Grants to Voluntary Bodies,Willowbank Care Limited,1329.28, 18-Oct-2011
1596,Revenue,CCHD,Supporting People Programme,Grants to Voluntary Bodies,Willowbank Care Limited,1329.28, 18-Oct-2011
1597,Revenue,CCHD,Supported Living - KD,Private & Voluntary Home Care,Willowbank Care Limited,2400.8, 04-Oct-2011
1598,Revenue,CCHD,Supported Living - KD,Private & Voluntary Home Care,Willowbank Care Limited,953.92, 18-Oct-2011
1599,Revenue,CCHD,Supported Living - KD,Private & Voluntary Home Care,Willowbank Care Limited,3338.78, 20-Oct-2011
1600,Revenue,CCHD,Supported Living - KD,Private & Voluntary Home Care,Willowbank Care Limited,4237.16, 04-Oct-2011
1601,Revenue,CCHD,Supported Living - KD,Private & Voluntary Home Care,Willowbank Care Limited,4237.16, 20-Oct-2011
1602,Revenue,CCHD,Supported Living - KD,Private & Voluntary Home Care,Willowbank Care Limited,921.3, 13-Oct-2011
1603,Revenue,CCHD,Supported Living - KD,Private & Voluntary Home Care,Willowbank Care Limited,1358.28, 21-Oct-2011
1604,Revenue,CCHD,Supported Living - KD,Private & Voluntary Home Care,Willowbank Care Limited,4091.56, 04-Oct-2011
1605,Revenue,CCHD,Supported Living - KD,Private & Voluntary Home Care,Willowbank Care Limited,4091.56, 18-Oct-2011
1606,Revenue,CCHD,Supported Living - KD,Private & Voluntary Home Care,Willowbank Care Limited,6191.18, 04-Oct-2011
1607,Revenue,CCHD,Supported Living - KD,Private & Voluntary Home Care,Willowbank Care Limited,6191.18, 18-Oct-2011
1608,Revenue,CCHD,Supported Living - KD,Private & Voluntary Home Care,Willowbank Care Limited,3338.78, 20-Oct-2011
1609,Revenue,CCHD,Supported Living - KD,Private & Voluntary Home Care,Willowbank Care Limited,2756.94, 04-Oct-2011
1610,Revenue,CCHD,Supported Living - KD,Private & Voluntary Home Care,Willowbank Care Limited,2756.94, 20-Oct-2011
1611,Revenue,CCHD,Supported Living - KD,Private & Voluntary Home Care,Willowbank Care Limited,917.42, 04-Oct-2011
1612,Revenue,CCHD,Supported Living - KD,Private & Voluntary Home Care,Willowbank Care Limited,4743.08, 04-Oct-2011
1613,Revenue,CCHD,Supported Living - KD,Private & Voluntary Home Care,Willowbank Care Limited,4743.08, 20-Oct-2011
1614,Revenue,CCHD,Supported Living - KD,Private & Voluntary Home Care,Willowbank Care Limited,2047.78, 04-Oct-2011
1615,Revenue,CCHD,Supported Living - KD,Private & Voluntary Home Care,Willowbank Care Limited,2047.78, 18-Oct-2011
1616,Revenue,CCHD,Supported Living - KD,Private & Voluntary Home Care,Willowbank Care Limited,2598.36, 04-Oct-2011
1617,Revenue,CCHD,Supported Living - KD,Private & Voluntary Home Care,Willowbank Care Limited,2598.36, 18-Oct-2011
1618,Revenue,CCHD,Supported Living (S28a),Private & Voluntary Home Care,Willowbank Care Limited,4186.02, 25-Oct-2011
1619,Revenue,CCHD,Supported Living (S28a),Private & Voluntary Home Care,Willowbank Care Limited,4616.5, 26-Oct-2011
1620,Revenue,CCHD,Supported Living (S28a),Private & Voluntary Home Care,Willowbank Care Limited,4616.5, 25-Oct-2011
1621,Revenue,CCHD,Supported Living - KD,Private & Voluntary Home Care,Willowbank Care Limited,2999.98, 04-Oct-2011
1622,Revenue,CCHD,Supported Living - KD,Private & Voluntary Home Care,Willowbank Care Limited,2999.98, 18-Oct-2011
1623,Revenue,CCHD,Supported Living - KD,Private & Voluntary Home Care,Willowbank Care Limited,3024.78, 04-Oct-2011
1624,Revenue,CCHD,Supported Living - KD,Private & Voluntary Home Care,Willowbank Care Limited,3024.78, 20-Oct-2011
1625,Revenue,CCHD,Supported Living - KD,Private & Voluntary Home Care,Willowbank Care Limited,2251.48, 04-Oct-2011
1626,Revenue,CCHD,Supported Living - KD,Private & Voluntary Home Care,Willowbank Care Limited,2251.48, 20-Oct-2011
1627,Revenue,CCHD,Frenchay Hospital Purchasing,Residential Homes,Winash Care Home,2350.08, 04-Oct-2011
1628,Revenue,CCHD,Day Care - North,Private & Voluntary Day Care,Windmill Care Limited,840, 03-Oct-2011
1629,Revenue,CCHD,Elderly MH non-res purchasing,Private & Voluntary Day Care,Windmill Care Limited,573.3, 03-Oct-2011
1630,Revenue,CCHD,Elderly Purchasing - North,Residential Homes,Windmill House,1106.92, 04-Oct-2011
1631,Revenue,CCHD,Elderly Mental Health,Residential Homes,Windmill House,1279.12, 04-Oct-2011
1632,Revenue,CCHD,Elderly Mental Health,Residential Homes,Windmill House,1215.96, 04-Oct-2011
1633,Revenue,CCHD,Frenchay Hospital Purchasing,Residential Homes,Windmill House,763.52, 04-Oct-2011
1634,Revenue,CCHD,Elderly Purchasing - North,Residential Homes,Windmill House,891.12, 04-Oct-2011
1635,Revenue,CCHD,Southmead Hospital Purchasing,Residential Homes,Windmill House,2458, 04-Oct-2011
1636,Revenue,CCHD,Minor Adaptations Service,Operational Equipment,Winzer Wurth Industrial Ltd,501.87, 03-Oct-2011
1637,Revenue,CCHD,Frenchay Hospital Purchasing,Residential Homes,Wisteria House,1229, 04-Oct-2011
1638,Revenue,CCHD,Frenchay Hospital Purchasing,Nursing Homes,Woodlands Healthcare Limited,3923.92, 28-Oct-2011
1639,Revenue,CCHD,Southmead Hospital Purchasing,Nursing Homes,Woodlands Healthcare Limited,4451.6, 28-Oct-2011
1640,Revenue,CCHD,South Glos Users in South Glos Homes,Nursing Homes,Woodlands Healthcare Limited,1506.27, 28-Oct-2011
1641,Revenue,CCHD,Elderly Purchasing - North,Nursing Homes,Woodlands Manor,1604.96, 04-Oct-2011
1642,Revenue,CCHD,Elderly Purchasing - North,Nursing Homes,Woodlands Manor,1617.44, 04-Oct-2011
1643,Revenue,CCHD,Purchase of Non-Res Care - PS,Private & Voluntary Day Care,Your Say,524.75, 26-Oct-2011
,,,,,,5561304.87,
1647,Revenue,CECR,Corporate Legal Section,Membership Fees,Achilles Information Limited,625, 28-Oct-2011
1648,Revenue,CECR,CECR Procurement Team,Membership Fees,Achilles Information Limited,625, 28-Oct-2011
1649,Revenue,CECR,Hanham Library,Prop.Serv. General Repairs,Apre Surfacing Limited,2472.5, 21-Oct-2011
1650,Revenue,CECR,Hanham Youth Centre,Prop.Serv. General Repairs,Apre Surfacing Limited,2472.5, 21-Oct-2011
1651,Revenue,CECR,Buildings Holding a/c,Fees - General,Atkins Limited,7237, 27-Oct-2011
1652,Revenue,CECR,Buildings Holding a/c,Fees - General,Atkins Limited,2168.75, 27-Oct-2011
1653,Revenue,CECR,District Audit Fees,Audit Fees,Audit Commision,26146, 07-Oct-2011
1654,Revenue,CECR,Infrastructure - Comm,Software Support & Maintenance,Autodata Products Plc,4250, 14-Oct-2011
1655,Revenue,CECR,Infrastructure - Comm,Computer Equipment - Maintenance,B2Net Ltd,1830.5, 06-Oct-2011
1656,Revenue,CECR,Pre 1996 Pensions,Annual Pension,Bath & North East Somerset Dist Council,9173.57, 06-Oct-2011
1657,Revenue,CECR,Pre 1996 Pensions,Annual Pension,Bath & North East Somerset Dist Council,9223.24, 06-Oct-2011
1658,Revenue,CECR,Pre 1996 Pensions,Annual Pension,Bath & North East Somerset Dist Council,16083.06, 06-Oct-2011
1659,Revenue,CECR,Pre 1996 Pensions,Annual Pension,Bath & North East Somerset Dist Council,33545.92, 06-Oct-2011
1660,Revenue,CECR,CECR Procurement Team,Membership Fees,BIP Solutions Limited,800, 18-Oct-2011
1661,Revenue,CECR,Members Support,Other Premises Costs,Bristol Sound Systems Limited,210, 14-Oct-2011
1662,Revenue,CECR,Members Support,Other Premises Costs,Bristol Sound Systems Limited,210, 14-Oct-2011
1663,Revenue,CECR,Members Support,Other Premises Costs,Bristol Sound Systems Limited,210, 14-Oct-2011
1664,Revenue,CECR,Members Support,Other Premises Costs,Bristol Sound Systems Limited,210, 14-Oct-2011
1665,Revenue,CECR,Broad Lane Depot,Water Charges,Bristol Wessex Billing Services Limited,1002.22, 06-Oct-2011
1666,Revenue,CECR,Thornbury Council Offices,Water Charges,Bristol Wessex Billing Services Limited,3026.6, 26-Oct-2011
1667,Revenue,CECR,Page Park,Water Charges,Bristol Wessex Billing Services Limited,1984.27, 24-Oct-2011
1668,Revenue,CECR,Service Reviews Prog - ICT Costs,Software Purchase,Capita Business Services Ltd,3447, 20-Oct-2011
1669,Revenue,CECR,QSD Document Management,Software Support & Maintenance,Capita Business Services Ltd,2692.5, 14-Oct-2011
1670,Revenue,CECR,Service Reviews Prog - ICT Costs,Agency Staff (Admin/Support Staff) Pay,Cash Friday at Lloyds TSB,570, 07-Oct-2011
1671,Revenue,CECR,Service Reviews Prog - ICT Costs,Agency Staff (Admin/Support Staff) Pay,Cash Friday at Lloyds TSB,1425, 14-Oct-2011
1672,Revenue,CECR,Service Reviews Prog - ICT Costs,Agency Staff (Admin/Support Staff) Pay,Cash Friday at Lloyds TSB,1425, 14-Oct-2011
1673,Revenue,CECR,Service Reviews Prog - ICT Costs,Agency Staff (Admin/Support Staff) Pay,Cash Friday at Lloyds TSB,1425, 28-Oct-2011
1674,Revenue,CECR,Service Reviews Prog - ICT Costs,Agency Staff (Admin/Support Staff) Pay,Cash Friday at Lloyds TSB,1425, 21-Oct-2011
1675,Revenue,CECR,Service Reviews Prog - ICT Costs,Agency Staff (Admin/Support Staff) Pay,Cash Friday at Lloyds TSB,1140, 28-Oct-2011
1676,Revenue,CECR,PSD Mech Engineers,Agency Staff (Operational)/PCT Pay,CDI Anders Elite Limited,1274, 14-Oct-2011
1677,Revenue,CECR,PSD Mech Engineers,Agency Staff (Operational)/PCT Pay,CDI Anders Elite Limited,1050, 13-Oct-2011
1678,Revenue,CECR,PSD Mech Engineers,Agency Staff (Operational)/PCT Pay,CDI Anders Elite Limited,1050, 25-Oct-2011
1679,Revenue,CECR,Service Reviews Prog - ICT Costs,Software Purchase,Computacenter (UK) Ltd,12883.2, 05-Oct-2011
1680,Revenue,CECR,PSD Property Records,Software Purchase,Davian Systems Ltd,2700, 20-Oct-2011
1681,Revenue,CECR,Council Tax Division,Printing & Stationery,Deltor Communications Limited,1659, 21-Oct-2011
1682,Revenue,CECR,Cambrian Green Day Service,Electricity,E.ON,1096.08, 14-Oct-2011
1683,Revenue,CECR,Benefits Administration,Agency Staff (Admin/Support Staff) Pay,Eden Brown Limited,1027, 06-Oct-2011
1684,Revenue,CECR,Benefits Administration,Agency Staff (Admin/Support Staff) Pay,Eden Brown Limited,526.5, 12-Oct-2011
1685,Revenue,CECR,Benefits Administration,Agency Staff (Admin/Support Staff) Pay,Eden Brown Limited,832, 19-Oct-2011
1686,Revenue,CECR,Benefits Administration,Agency Staff (Admin/Support Staff) Pay,Eden Brown Limited,1027, 26-Oct-2011
1687,Revenue,CECR,Kingswood Locality Hub,Electricity,EDF Energy 1 Limited,915.43, 21-Oct-2011
1688,Revenue,CECR,Kingswood Locality Hub,Electricity,EDF Energy 1 Limited,1300.16, 21-Oct-2011
1689,Revenue,CECR,Pomphrey Hill Pavilion,Electricity,EDF Energy 1 Limited,493.56, 21-Oct-2011
1690,Revenue,CECR,Yate Library,Electricity,EDF Energy 1 Limited,535.4, 21-Oct-2011
1691,Revenue,CECR,Thornbury Council Offices,Electricity,EDF Energy 1 Limited,9176.53, 21-Oct-2011
1692,Revenue,CECR,Kingswood Civic Centre,Electricity,EDF Energy 1 Limited,3393.07, 21-Oct-2011
1693,Revenue,CECR,Nibley Court Offices,Electricity,EDF Energy 1 Limited,1544.51, 21-Oct-2011
1694,Revenue,CECR,Almondsbury Depot,Electricity,EDF Energy 1 Limited,1236.77, 21-Oct-2011
1695,Revenue,CECR,Broad Lane Depot,Electricity,EDF Energy 1 Limited,2254.88, 21-Oct-2011
1696,Revenue,CECR,Downend Day Centre,Electricity,EDF Energy 1 Limited,900.21, 21-Oct-2011
1697,Revenue,CECR,Blackhorse RAC,Electricity,EDF Energy 1 Limited,653.73, 21-Oct-2011
1698,Revenue,CECR,Vinney Green Offices,Electricity,EDF Energy 1 Limited,422.35, 05-Oct-2011
1699,Revenue,CECR,Vinney Green Offices,Electricity,EDF Energy 1 Limited,485.32, 21-Oct-2011
1700,Revenue,CECR,Yate Outdoor Sports Centre,Electricity,EDF Energy 1 Limited,1450.32, 21-Oct-2011
1701,Revenue,CECR,Thornbury Library,Electricity,EDF Energy 1 Limited,558.9, 21-Oct-2011
1702,Revenue,CECR,Badminton Road Offices,Electricity,EDF Energy 1 Limited,9394.02, 05-Oct-2011
1703,Revenue,CECR,QSD Controls,Consultants Fees,Esteem Systems Plc,2700, 20-Oct-2011
1704,Revenue,CECR,Corporate Legal Section,Computer Equipment - Purchase,E-Voice Speech Recognition Ltd,953, 07-Oct-2011
1705,Revenue,CECR,CECR Procurement Team,Training Expenses,Filton College,1485, 27-Oct-2011
1706,Revenue,CECR,PSD Clerk of Works,Agency Staff (Admin/Support Staff) Pay,Franklyn Recruitment Limited,1558.48, 14-Oct-2011
1707,Revenue,CECR,Severn Beach Surestart Centre,Prop.Serv. General Repairs,Geoff Lewis Flooring Limited,744, 19-Oct-2011
1708,Revenue,CECR,Benefits Administration,Agency Staff (Admin/Support Staff) Pay,Giant Group Plc,999, 06-Oct-2011
1709,Revenue,CECR,Benefits Administration,Agency Staff (Admin/Support Staff) Pay,Giant Group Plc,668.25, 13-Oct-2011
1710,Revenue,CECR,Benefits Administration,Agency Staff (Admin/Support Staff) Pay,Giant Group Plc,999, 18-Oct-2011
1711,Revenue,CECR,Benefits Administration,Agency Staff (Admin/Support Staff) Pay,Giant Group Plc,999, 28-Oct-2011
1712,Revenue,CECR,Accomm. Works Reloc. Costs,Litter Bins,Glasdon Uk Limited,4907.52, 25-Oct-2011
1713,Revenue,CECR,Accomm. Works Reloc. Costs,Litter Bins,Glasdon Uk Limited,2668.43, 11-Oct-2011
1714,Revenue,CECR,Archives and Records,Archiving,Gloucestershire County Council,28694, 20-Oct-2011
1715,Revenue,CECR,Corporate Legal Section,Fees - General,H M Land Registry,511, 11-Oct-2011
1716,Revenue,CECR,Electoral Expenses,Other Supplies & Services,H M Revenue & Customs,40409.61, 27-Oct-2011
1717,Revenue,CECR,C&RS Streetcare Helpdesk,Public Transport - Staff,Hanham Taxis,960, 25-Oct-2011
1718,Revenue,CECR,PSD Quantity Surveyors,Agency Staff (Admin/Support Staff) Pay,Hays Specialist Recruitment,782.04, 04-Oct-2011
1719,Revenue,CECR,PSD Quantity Surveyors,Agency Staff (Admin/Support Staff) Pay,Hays Specialist Recruitment,782.04, 06-Oct-2011
1720,Revenue,CECR,PSD Quantity Surveyors,Agency Staff (Admin/Support Staff) Pay,Hays Specialist Recruitment,893.76, 11-Oct-2011
1721,Revenue,CECR,PSD Quantity Surveyors,Agency Staff (Admin/Support Staff) Pay,Hays Specialist Recruitment,766.08, 14-Oct-2011
1722,Revenue,CECR,PSD Quantity Surveyors,Agency Staff (Admin/Support Staff) Pay,Hays Specialist Recruitment,782.04, 27-Oct-2011
1723,Revenue,CECR,Finishing,Equipment Maintenance,Heidelberg Graphic Equipment Limited,467.16, 04-Oct-2011
1724,Revenue,CECR,One Stop Shops - General,Equipment Maintenance,HFX Limited,600, 20-Oct-2011
1725,Revenue,CECR,Service Reviews Prog - ICT Costs,Agency Staff (Admin/Support Staff) Pay,Huxley Assoc Ltd,1154.4, 13-Oct-2011
1726,Revenue,CECR,Service Reviews Prog - ICT Costs,Agency Staff (Admin/Support Staff) Pay,Huxley Assoc Ltd,4289.4, 21-Oct-2011
1727,Revenue,CECR,Service Reviews Prog - ICT Costs,Agency Staff (Admin/Support Staff) Pay,Huxley Assoc Ltd,1425, 28-Oct-2011
1728,Revenue,CECR,Staff Health & Welfare,Occupational Health Fees,IMASS Group,5000, 21-Oct-2011
1729,Revenue,CECR,Staff Health & Welfare,Occupational Health Fees,IMASS Group,3203.05, 05-Oct-2011
1730,Revenue,CECR,Staff Health & Welfare,Occupational Health Fees,IMASS Group,3990.21, 06-Oct-2011
1731,Revenue,CECR,Registration Services,Printing & Stationery,Insignia Limited,836.68, 20-Oct-2011
1732,Revenue,CECR,Staff Health & Welfare,Medical Fees,Interchange,2475, 10-Oct-2011
1733,Revenue,CECR,Applications - Discr,Other Supplies & Services,Interchange,270, 10-Oct-2011
1734,Revenue,CECR,C&RS Streetcare Helpdesk,Medical Fees,Interchange,180, 10-Oct-2011
1735,Revenue,CECR,CCHD Finance Team,Training Expenses,Kaplan Financial,427.5, 07-Oct-2011
1736,Revenue,CECR,Corporate Accommodation - Moves,Storage & Removal,Lloyds TSB Commercial Finance Limited,978.75, 07-Oct-2011
1737,Revenue,CECR,Corporate Accommodation - Moves,Storage & Removal,Lloyds TSB Commercial Finance Limited,2255.16, 12-Oct-2011
1738,Revenue,CECR,Corporate Accommodation - Moves,Storage & Removal,Lloyds TSB Commercial Finance Limited,575, 12-Oct-2011
1739,Revenue,CECR,Corporate Accommodation - Moves,Storage & Removal,Lloyds TSB Commercial Finance Limited,910, 12-Oct-2011
1740,Revenue,CECR,Corporate Accommodation - Moves,Storage & Removal,Lloyds TSB Commercial Finance Limited,1082, 14-Oct-2011
1741,Revenue,CECR,Corporate Accommodation - Moves,Storage & Removal,Lloyds TSB Commercial Finance Limited,440.55, 24-Oct-2011
1742,Revenue,CECR,Corporate Accommodation - Moves,Storage & Removal,Lloyds TSB Commercial Finance Limited,423.1, 24-Oct-2011
1743,Revenue,CECR,Mail Processing Team,Security Systems,Loomis UK Limited,561.1, 05-Oct-2011
1744,Revenue,CECR,Thornbury Council Offices,Cleaning & Domestic Supplies,Mags Cleaning Services,450, 25-Oct-2011
1745,Revenue,CECR,Customer Services - Comm,Software Support & Maintenance,Marval Software Limited,1418, 06-Oct-2011
1746,Revenue,CECR,Memorial Hall Charfield Public Convenien,Prop.Serv. General Repairs,Merlin Housing Society,250, 05-Oct-2011
1747,Revenue,CECR,Oldland Youth Centre,Vandalism,Merlin Housing Society,500, 05-Oct-2011
1748,Revenue,CECR,E&CS Finance Team,Agency Staff (Admin/Support Staff) Pay,Michael Page International,714.47, 05-Oct-2011
1749,Revenue,CECR,E&CS Finance Team,Agency Staff (Admin/Support Staff) Pay,Michael Page International,689.42, 04-Oct-2011
1750,Revenue,CECR,E&CS Finance Team,Agency Staff (Admin/Support Staff) Pay,Michael Page International,767.57, 13-Oct-2011
1751,Revenue,CECR,E&CS Finance Team,Agency Staff (Admin/Support Staff) Pay,Michael Page International,769.12, 19-Oct-2011
1752,Revenue,CECR,E&CS Finance Team,Agency Staff (Admin/Support Staff) Pay,Michael Page International,700.13, 21-Oct-2011
1753,Revenue,CECR,E&CS Finance Team,Agency Staff (Admin/Support Staff) Pay,Michael Page International,1178.1, 31-Oct-2011
1754,Revenue,CECR,E&CS Finance Team,Agency Staff (Admin/Support Staff) Pay,Michael Page International,801.37, 31-Oct-2011
1755,Revenue,CECR,Benefits Administration,Agency Staff (Admin/Support Staff) Pay,Morgan Hunt Public Sector Limited,969.6, 11-Oct-2011
1756,Revenue,CECR,Benefits Administration,Agency Staff (Admin/Support Staff) Pay,Morgan Hunt Public Sector Limited,969.6, 07-Oct-2011
1757,Revenue,CECR,Benefits Administration,Agency Staff (Admin/Support Staff) Pay,Morgan Hunt Public Sector Limited,969.6, 14-Oct-2011
1758,Revenue,CECR,Benefits Administration,Agency Staff (Admin/Support Staff) Pay,Morgan Hunt Public Sector Limited,642, 14-Oct-2011
1759,Revenue,CECR,Benefits Administration,Agency Staff (Admin/Support Staff) Pay,Morgan Hunt Public Sector Limited,546, 14-Oct-2011
1760,Revenue,CECR,Benefits Administration,Agency Staff (Admin/Support Staff) Pay,Morgan Hunt Public Sector Limited,969.6, 21-Oct-2011
1761,Revenue,CECR,Benefits Administration,Agency Staff (Admin/Support Staff) Pay,Morgan Hunt Public Sector Limited,924, 21-Oct-2011
1762,Revenue,CECR,Benefits Administration,Agency Staff (Admin/Support Staff) Pay,Morgan Hunt Public Sector Limited,900, 21-Oct-2011
1763,Revenue,CECR,Benefits Administration,Agency Staff (Admin/Support Staff) Pay,Morgan Hunt Public Sector Limited,969.6, 28-Oct-2011
1764,Revenue,CECR,Benefits Administration,Agency Staff (Admin/Support Staff) Pay,Morgan Hunt Public Sector Limited,969.6, 28-Oct-2011
1765,Revenue,CECR,Benefits Administration,Agency Staff (Admin/Support Staff) Pay,Morgan Hunt Public Sector Limited,884.76, 28-Oct-2011
1766,Revenue,CECR,Benefits Administration,Agency Staff (Admin/Support Staff) Pay,Morgan Hunt Public Sector Limited,969.6, 28-Oct-2011
1767,Revenue,CECR,Benefits Administration,Agency Staff (Admin/Support Staff) Pay,Morgan Hunt Public Sector Limited,969.6, 28-Oct-2011
1768,Revenue,CECR,Benefits Administration,Agency Staff (Admin/Support Staff) Pay,Morgan Hunt Public Sector Limited,969.6, 28-Oct-2011
1769,Revenue,CECR,Benefits Administration,Agency Staff (Admin/Support Staff) Pay,Morgan Hunt Public Sector Limited,852, 28-Oct-2011
1770,Revenue,CECR,Benefits Administration,Agency Staff (Admin/Support Staff) Pay,Morgan Hunt Public Sector Limited,960, 28-Oct-2011
1771,Revenue,CECR,Cadbury Heath Youth Centre,Security Systems,National Security Group,1200, 18-Oct-2011
1772,Revenue,CECR,Ridgewood Site,Security Systems,National Security Group,490.16, 25-Oct-2011
1773,Revenue,CECR,Downend Day Centre,Other Premises Costs,National Security Group,815.35, 17-Oct-2011
1774,Revenue,CECR,Thornbury Council Offices,Security Systems,National Security Group,450.2, 07-Oct-2011
1775,Revenue,CECR,Badminton Road Offices,Security Systems,National Security Group,1161.57, 07-Oct-2011
1776,Revenue,CECR,Thornbury Council Offices,Security Systems,National Security Group,499.76, 07-Oct-2011
1777,Revenue,CECR,Broad Lane Depot,Security Systems,National Security Group,473.86, 07-Oct-2011
1778,Revenue,CECR,Badminton Road Offices,Security Systems,National Security Group,1158.47, 07-Oct-2011
1779,Revenue,CECR,Thornbury Council Offices,Security Systems,National Security Group,691.81, 25-Oct-2011
1780,Revenue,CECR,Broad Lane Depot,Security Systems,National Security Group,606.1, 25-Oct-2011
1781,Revenue,CECR,Badminton Road Offices,Security Systems,National Security Group,1096.52, 25-Oct-2011
1782,Revenue,CECR,Kingswood Civic Centre,Security Systems,National Security Group,1652.4, 25-Oct-2011
1783,Revenue,CECR,Thornbury Council Offices,Security Systems,National Security Group,1005.25, 25-Oct-2011
1784,Revenue,CECR,Badminton Road Offices,Security Systems,National Security Group,1090.32, 25-Oct-2011
1785,Revenue,CECR,Kingswood Civic Centre,Security Systems,National Security Group,1019.02, 25-Oct-2011
1786,Revenue,CECR,Thornbury Council Offices,Security Systems,National Security Group,444.01, 25-Oct-2011
1787,Revenue,CECR,Concessionary Travel,Printing & Stationery,North Somerset Council,1240, 21-Oct-2011
1788,Revenue,CECR,Benefits Administration,Computer Equipment - Purchase,Northgate Information Solutions UK Limited,1192.88, 28-Oct-2011
1789,Revenue,CECR,Infrastructure - Discr,Other Supplies & Services,ONI Plc,750, 26-Oct-2011
1790,Revenue,CECR,"Oaklands, Almondsbury Site",Fuel Oil,Pace Petroleum Limited,1964.08, 24-Oct-2011
1791,Revenue,CECR,Council Tax Division,Printing & Stationery,Paddock Print,1750, 17-Oct-2011
1792,Revenue,CECR,Benefits Administration,Printing & Stationery,Paddock Print,857.5, 17-Oct-2011
1793,Revenue,CECR,Court Road Child & Family Centre,Service Contracts,PHS Group Plc,693, 13-Oct-2011
1794,Revenue,CECR,Self-Service Printing & Copying,Equipment Maintenance,Portrayal Limited,1397.9, 26-Oct-2011
1795,Revenue,CECR,Self-Service Printing & Copying,Equipment Maintenance,Portrayal Limited,764.53, 26-Oct-2011
1796,Revenue,CECR,Self-Service Printing & Copying,Equipment Maintenance,Portrayal Limited,4024.07, 26-Oct-2011
1797,Revenue,CECR,Self-Service Printing & Copying,Equipment Maintenance,Portrayal Limited,1009.69, 26-Oct-2011
1798,Revenue,CECR,High Volume - Thornbury,Equipment Maintenance,Portrayal Limited,400.33, 26-Oct-2011
1799,Revenue,CECR,High Volume - Kingswood,Equipment Maintenance,Portrayal Limited,364.2, 26-Oct-2011
1800,Revenue,CECR,Colour,Equipment Maintenance,Portrayal Limited,1397.9, 26-Oct-2011
1801,Revenue,CECR,Self-Service Printing & Copying,Office Supplies & Equipment,Portrayal Limited,1530, 14-Oct-2011
1802,Revenue,CECR,Customer Services - Discr,Software Purchase,Portrayal Limited,800.8, 14-Oct-2011
1803,Revenue,CECR,Self-Service Printing & Copying,Office Supplies & Equipment,Portrayal Limited,3207, 27-Oct-2011
1804,Revenue,CECR,Franking and Postage Costs,Postages,Postage By Phone-Pitney Bowes Ltd,3009.6, 13-Oct-2011
1805,Revenue,CECR,Self-Service Printing & Copying,Printing & Stationery,Premier Paper Group Limited,66.05, 03-Oct-2011
1806,Revenue,CECR,Offset DI,Printing & Stationery,Premier Paper Group Limited,640.26, 03-Oct-2011
1807,Revenue,CECR,Self-Service Printing & Copying,Printing & Stationery,Premier Paper Group Limited,425, 06-Oct-2011
1808,Revenue,CECR,Self-Service Printing & Copying,Printing & Stationery,Premier Paper Group Limited,3825, 06-Oct-2011
1809,Revenue,CECR,Offset GTO,Printing & Stationery,Premier Paper Group Limited,404.48, 19-Oct-2011
1810,Revenue,CECR,Offset DI,Printing & Stationery,Premier Paper Group Limited,476.1, 19-Oct-2011
1811,Revenue,CECR,Offset GTO,Other Consumable Materials,Presstek Europe Limited,299.56, 07-Oct-2011
1812,Revenue,CECR,Offset DI,Other Consumable Materials,Presstek Europe Limited,363.05, 07-Oct-2011
1813,Revenue,CECR,SR Enabling -  External support,Consultants Fees,Price Waterhouse Coopers LLp,23968, 17-Oct-2011
1814,Revenue,CECR,SR Enabling -  External support,Consultants Fees,Price Waterhouse Coopers LLp,11307, 17-Oct-2011
1815,Revenue,CECR,SR Enabling -  External support,Consultants Fees,Price Waterhouse Coopers LLp,20984, 17-Oct-2011
1816,Revenue,CECR,SR Enabling -  External support,Consultants Fees,Price Waterhouse Coopers LLp,69741, 21-Oct-2011
1817,Revenue,CECR,Badminton Road Offices,Cleaning & Domestic Supplies,Professional Hygiene Ltd,504.9, 14-Oct-2011
1818,Revenue,CECR,Kingswood Civic Centre,Cleaning & Domestic Supplies,Professional Hygiene Ltd,750.58, 25-Oct-2011
1819,Revenue,CECR,Kingswood Locality Hub,Cleaning & Domestic Supplies,Professional Hygiene Ltd,722.72, 25-Oct-2011
1820,Revenue,CECR,Kingswood Locality Hub,Cleaning & Domestic Supplies,Professional Hygiene Ltd,486.78, 25-Oct-2011
1821,Revenue,CECR,Badminton Road Offices,Cleaning & Domestic Supplies,Professional Hygiene Ltd,2470.55, 13-Oct-2011
1822,Revenue,CECR,Longwell Green Leisure Centre,Prop.Serv. General Repairs,Pure Group,746, 03-Oct-2011
1823,Revenue,CECR,Service Reviews Prog - ICT Costs,Agency Staff (Admin/Support Staff) Pay,RBS Invoice Finance Limited,5000, 07-Oct-2011
1824,Revenue,CECR,PSD Valuation & Property Management,Membership Fees,Reed Business Information Ltd,1575, 14-Oct-2011
1825,Revenue,CECR,QSD Controls,Consultants Fees,Richard Ward,2700, 13-Oct-2011
1826,Revenue,CECR,QSD Controls,Consultants Fees,Richard Ward,1350, 21-Oct-2011
1827,Revenue,CECR,E&CS Finance Team,Agency Staff (Admin/Support Staff) Pay,Robert Half International,788, 03-Oct-2011
1828,Revenue,CECR,E&CS Finance Team,Agency Staff (Admin/Support Staff) Pay,Robert Half International,809.2, 13-Oct-2011
1829,Revenue,CECR,E&CS Finance Team,Agency Staff (Admin/Support Staff) Pay,Robert Half International,819.8, 19-Oct-2011
1830,Revenue,CECR,E&CS Finance Team,Agency Staff (Admin/Support Staff) Pay,Robert Half International,812.6, 31-Oct-2011
1831,Revenue,CECR,Election Services,Postages,Royal Mail Group Plc,883.45, 14-Oct-2011
1832,Revenue,CECR,Election Services,Postages,Royal Mail Group Plc,8788.91, 25-Oct-2011
1833,Revenue,CECR,Outgoing Mail,Postages,Royal Mail Group Plc,2359.7, 04-Oct-2011
1834,Revenue,CECR,Infrastructure - Discr,Agency Staff (Admin/Support Staff) Pay,Sanderson Recruitment PLC,4125, 10-Oct-2011
1835,Revenue,CECR,Infrastructure - Comm,Agency Staff (Admin/Support Staff) Pay,Sanderson Recruitment PLC,1556.5, 05-Oct-2011
1836,Revenue,CECR,Customer Services - Comm,Agency Staff (Admin/Support Staff) Pay,Sanderson Recruitment PLC,875.28, 05-Oct-2011
1837,Revenue,CECR,Service Reviews Prog - ICT Costs,Agency Staff (Admin/Support Staff) Pay,Sanderson Recruitment PLC,5000, 05-Oct-2011
1838,Revenue,CECR,Infrastructure - Discr,Agency Staff (Admin/Support Staff) Pay,Sanderson Recruitment PLC,3344, 05-Oct-2011
1839,Revenue,CECR,Infrastructure - Comm,Agency Staff (Admin/Support Staff) Pay,Sanderson Recruitment PLC,2442.4, 07-Oct-2011
1840,Revenue,CECR,Customer Services - Comm,Agency Staff (Admin/Support Staff) Pay,Sanderson Recruitment PLC,2417.8, 07-Oct-2011
1841,Revenue,CECR,Service Reviews Prog - ICT Costs,Agency Staff (Admin/Support Staff) Pay,Sanderson Recruitment PLC,4275, 07-Oct-2011
1842,Revenue,CECR,Customer Services - Comm,Agency Staff (Admin/Support Staff) Pay,Sanderson Recruitment PLC,2476.68, 07-Oct-2011
1843,Revenue,CECR,Service Reviews Prog - ICT Costs,Agency Staff (Admin/Support Staff) Pay,Sanderson Recruitment PLC,4950, 14-Oct-2011
1844,Revenue,CECR,Service Reviews Prog - ICT Costs,Agency Staff (Admin/Support Staff) Pay,Sanderson Recruitment PLC,5130, 28-Oct-2011
1845,Revenue,CECR,Capital Charges & Interest on Balances,Fees - General,Sector Treasury Services Ltd,10500, 04-Oct-2011
1846,Revenue,CECR,Accomm. Works Reloc. Costs,Other Supplies & Services,Seton Limited,585.45, 07-Oct-2011
1847,Revenue,CECR,Corporate Training Growth,Books & Publications,SHL Group Ltd,1081.5, 27-Oct-2011
1848,Revenue,CECR,Corporate Communications,Software Support & Maintenance,Siteimprove Ltd,873.26, 14-Oct-2011
1849,Revenue,CECR,Applications - Comm,Software Support & Maintenance,Siteimprove Ltd,873.26, 14-Oct-2011
1850,Revenue,CECR,Customer Relations,Software Support & Maintenance,Siteimprove Ltd,873.26, 14-Oct-2011
1851,Revenue,CECR,Pre 1996 Pensions,Annual Pension,Somerset County Council,3000, 20-Oct-2011
1852,Revenue,CECR,Travellers Site - Winterbourne,Vandalism,South West Glass Limited,585, 03-Oct-2011
1853,Revenue,CECR,Bradley Stoke Library,Electricity,Sphere Leisure Ltd,779.29, 24-Oct-2011
1854,Revenue,CECR,Bradley Stoke Library,Gas,Sphere Leisure Ltd,0.82, 24-Oct-2011
1855,Revenue,CECR,Infrastructure - Discr,Computer Equipment - Maintenance,Support Warehouse Ltd t/a Care Pack Sales,1130, 28-Oct-2011
1856,Revenue,CECR,Service Review Programme - HR Support,Consultants Fees,The Hay Group Management Limited,6447.2, 28-Oct-2011
1857,Revenue,CECR,Improvement Fund,Rent,The Park Hotel,491.67, 18-Oct-2011
1858,Revenue,CECR,Member Development,External Lecturers Fees,Tim Young,1116.44, 13-Oct-2011
1859,Revenue,CECR,Corporate Legal Section,Other Supplies & Services,TMP (UK) Limited,576.2, 14-Oct-2011
1860,Revenue,CECR,Outgoing Mail,Postages,TNT Post South West Limited,96.19, 03-Oct-2011
1861,Revenue,CECR,Outgoing Mail,Postages,TNT Post South West Limited,530.63, 03-Oct-2011
1862,Revenue,CECR,Outgoing Mail,Postages,TNT Post South West Limited,174.52, 03-Oct-2011
1863,Revenue,CECR,Outgoing Mail,Postages,TNT Post South West Limited,190.36, 03-Oct-2011
1864,Revenue,CECR,Outgoing Mail,Postages,TNT Post South West Limited,77.42, 03-Oct-2011
1865,Revenue,CECR,Outgoing Mail,Postages,TNT Post South West Limited,36.36, 03-Oct-2011
1866,Revenue,CECR,Outgoing Mail,Postages,TNT Post South West Limited,259.1, 03-Oct-2011
1867,Revenue,CECR,Outgoing Mail,Postages,TNT Post South West Limited,226.56, 24-Oct-2011
1868,Revenue,CECR,Outgoing Mail,Postages,TNT Post South West Limited,736.3, 24-Oct-2011
1869,Revenue,CECR,Outgoing Mail,Postages,TNT Post South West Limited,78.31, 24-Oct-2011
1870,Revenue,CECR,Outgoing Mail,Postages,TNT Post South West Limited,196.94, 24-Oct-2011
1871,Revenue,CECR,Outgoing Mail,Postages,TNT Post South West Limited,51.1, 24-Oct-2011
1872,Revenue,CECR,Outgoing Mail,Postages,TNT Post South West Limited,45.58, 24-Oct-2011
1873,Revenue,CECR,Outgoing Mail,Postages,TNT Post South West Limited,220.96, 24-Oct-2011
1874,Revenue,CECR,Outgoing Mail,Postages,TNT Post South West Limited,262.48, 24-Oct-2011
1875,Revenue,CECR,Outgoing Mail,Postages,TNT Post South West Limited,1675.12, 24-Oct-2011
1876,Revenue,CECR,Outgoing Mail,Postages,TNT Post South West Limited,120.9, 24-Oct-2011
1877,Revenue,CECR,Outgoing Mail,Postages,TNT Post South West Limited,122.54, 24-Oct-2011
1878,Revenue,CECR,Outgoing Mail,Postages,TNT Post South West Limited,13.09, 24-Oct-2011
1879,Revenue,CECR,Outgoing Mail,Postages,TNT Post South West Limited,100.83, 24-Oct-2011
1880,Revenue,CECR,Outgoing Mail,Postages,TNT Post South West Limited,202.12, 24-Oct-2011
1881,Revenue,CECR,Outgoing Mail,Postages,TNT Post South West Limited,1000.44, 24-Oct-2011
1882,Revenue,CECR,Outgoing Mail,Postages,TNT Post South West Limited,755.06, 24-Oct-2011
1883,Revenue,CECR,Outgoing Mail,Postages,TNT Post South West Limited,108.4, 24-Oct-2011
1884,Revenue,CECR,Outgoing Mail,Postages,TNT Post South West Limited,142.6, 24-Oct-2011
1885,Revenue,CECR,Outgoing Mail,Postages,TNT Post South West Limited,35.94, 24-Oct-2011
1886,Revenue,CECR,Outgoing Mail,Postages,TNT Post South West Limited,127.42, 24-Oct-2011
1887,Revenue,CECR,Outgoing Mail,Postages,TNT Post South West Limited,259.06, 24-Oct-2011
